Workbook

Sheet СТАТ.ЧЕМПИОНАТЫ
C1: ср значение | D1: сумма | E1: сумм | F1: сумм | G1: сумм | H1: сумм
B2: Чемпионат | C2: % усп | D2: О / П | E2: Буст. | F2: Счет | G2: Разн. | H2: Исход
B3: Англия | C3: =AVERAGEIFS('Конкурсы - рейтинг new'!N:N,'Конкурсы - рейтинг new'!Q:Q,"значения из листа АНГЛИЯ") -> 45.90748768 | D3: =SUMIFS('Конкурсы - рейтинг new'!I:I,'Конкурсы - рейтинг new'!Q:Q,"значения из листа АНГЛИЯ") -> 1024 | E3: =SUMIFS('Конкурсы - рейтинг new'!F:F,'Конкурсы - рейтинг new'!Q:Q,"значения из листа АНГЛИЯ") -> 8916 | F3: =SUMIFS('Конкурсы - рейтинг new'!K:K,'Конкурсы - рейтинг new'!Q:Q,"значения из листа АНГЛИЯ") -> 757 | G3: =SUMIFS('Конкурсы - рейтинг new'!L:L,'Конкурсы - рейтинг new'!Q:Q,"значения из листа АНГЛИЯ") -> 1024 | H3: =SUMIFS('Конкурсы - рейтинг new'!M:M,'Конкурсы - рейтинг new'!Q:Q,"значения из листа АНГЛИЯ") -> 2689
B4: Германия | C4: =AVERAGEIFS('Конкурсы - рейтинг new'!N:N,'Конкурсы - рейтинг new'!Q:Q,"значения из листа ГЕРМАНИЯ") -> 41.31512048 | D4: =SUMIFS('Конкурсы - рейтинг new'!I:I,'Конкурсы - рейтинг new'!Q:Q,"значения из листа ГЕРМАНИЯ") -> 665 | E4: =SUMIFS('Конкурсы - рейтинг new'!F:F,'Конкурсы - рейтинг new'!Q:Q,"значения из листа ГЕРМАНИЯ") -> 6425 | F4: =SUMIFS('Конкурсы - рейтинг new'!K:K,'Конкурсы - рейтинг new'!Q:Q,"значения из листа ГЕРМАНИЯ") -> 432 | G4: =SUMIFS('Конкурсы - рейтинг new'!L:L,'Конкурсы - рейтинг new'!Q:Q,"значения из листа ГЕРМАНИЯ") -> 665 | H4: =SUMIFS('Конкурсы - рейтинг new'!M:M,'Конкурсы - рейтинг new'!Q:Q,"значения из листа ГЕРМАНИЯ") -> 1961
B5: Испания
B6: Италия
B7: Франция
B8: ЛЧ

Sheet Конкурсы - рейтинг new
A1: для упорядычивания перед вводом данных,,, если сортировать по столбцу "ВСЕ ОЧКИ сумма", чтоб вернуть в исходное состояние | D1: преобразован формат ячеек в числовой
A2: номер по порядку | B2: # | C2: Пользователь | D2: Очки | E2: Прог, | F2: Буст, | G2: До лидера | H2: Прогнозы / Матчи | I2: О / П | J2: Успешные прогнозы | K2: Счет | L2: Разн, | M2: Исход | N2: % усп | O2: Ошибки | P2: Сумма коэфов | Q2: тупо 500 значений с листов, остальные тоже прописать с выделением по 500 строк | R2: ВСЕ ОЧКИ сумма
A3: 1 | B3: =АНГЛИЯ!B3 -> 0 | C3: =АНГЛИЯ!C3 -> АНГЛИЯ | D3: =VALUE(АНГЛИЯ!D3) -> 0 | E3: =VALUE(АНГЛИЯ!E3) -> 0 | F3: =VALUE(АНГЛИЯ!F3) -> 0 | G3: =VALUE(АНГЛИЯ!G3) -> 0 | H3: =АНГЛИЯ!H3 -> 0 | I3: =IFERROR(SUBSTITUTE(АНГЛИЯ!L3,".",","),"") ->  | J3: =VALUE(АНГЛИЯ!J3) -> 0 | K3: =VALUE(АНГЛИЯ!K3) -> 0 | L3: =VALUE(АНГЛИЯ!L3) -> 0 | M3: =VALUE(АНГЛИЯ!M3) -> 0 | N3: =IFERROR(VALUE(SUBSTITUTE(АНГЛИЯ!N3,".",",")),"") ->  | O3: =VALUE(АНГЛИЯ!O3) -> 0 | P3: =IFERROR(VALUE(SUBSTITUTE(АНГЛИЯ!P3,".",",")),"") ->  | R3: =SUMIF(C:C,C3,D:D) -> 0
A4: 2 | B4: =АНГЛИЯ!B4 -> 1 | C4: =АНГЛИЯ!C4 -> Рощенюк Юрій | D4: =VALUE(АНГЛИЯ!D4) -> 861 | E4: =VALUE(АНГЛИЯ!E4) -> 696 | F4: =VALUE(АНГЛИЯ!F4) -> 165 | G4: =VALUE(АНГЛИЯ!G4) -> 0 | H4: =АНГЛИЯ!H4 -> 80 / 380 | I4: =IFERROR(VALUE(SUBSTITUTE(АНГЛИЯ!L4,".",",")),"") -> 11 | J4: =VALUE(АНГЛИЯ!J4) -> 48 | K4: =VALUE(АНГЛИЯ!K4) -> 5 | L4: =VALUE(АНГЛИЯ!L4) -> 11 | M4: =VALUE(АНГЛИЯ!M4) -> 32 | N4: =IFERROR(VALUE(SUBSTITUTE(АНГЛИЯ!N4,".",",")),"") -> 60 | O4: =VALUE(АНГЛИЯ!O4) -> 32 | P4: =IFERROR(VALUE(SUBSTITUTE(АНГЛИЯ!P4,".",",")),"") -> 81.05 | Q4: значения из листа АНГЛИЯ | R4: =SUMIF(C:C,C4,D:D) -> 1470
A5: 3 | B5: =АНГЛИЯ!B5 -> 2 | C5: =АНГЛИЯ!C5 -> Rodrimes | D5: =VALUE(АНГЛИЯ!D5) -> 851 | E5: =VALUE(АНГЛИЯ!E5) -> 704 | F5: =VALUE(АНГЛИЯ!F5) -> 147 | G5: =VALUE(АНГЛИЯ!G5) -> 10 | H5: =АНГЛИЯ!H5 -> 80 / 380 | I5: =IFERROR(VALUE(SUBSTITUTE(АНГЛИЯ!L5,".",",")),"") -> 12 | J5: =VALUE(АНГЛИЯ!J5) -> 50 | K5: =VALUE(АНГЛИЯ!K5) -> 8 | L5: =VALUE(АНГЛИЯ!L5) -> 12 | M5: =VALUE(АНГЛИЯ!M5) -> 30 | N5: =IFERROR(VALUE(SUBSTITUTE(АНГЛИЯ!N5,".",",")),"") -> 62.5 | O5: =VALUE(АНГЛИЯ!O5) -> 30 | P5: =IFERROR(VALUE(SUBSTITUTE(АНГЛИЯ!P5,".",",")),"") -> 92.55 | Q5: значения из листа АНГЛИЯ | R5: =SUMIF(C:C,C5,D:D) -> 1445
A6: 4 | B6: =АНГЛИЯ!B6 -> 3 | C6: =АНГЛИЯ!C6 -> pjohov | D6: =VALUE(АНГЛИЯ!D6) -> 844 | E6: =VALUE(АНГЛИЯ!E6) -> 727 | F6: =VALUE(АНГЛИЯ!F6) -> 117 | G6: =VALUE(АНГЛИЯ!G6) -> 17 | H6: =АНГЛИЯ!H6 -> 80 / 380 | I6: =IFERROR(VALUE(SUBSTITUTE(АНГЛИЯ!L6,".",",")),"") -> 17 | J6: =VALUE(АНГЛИЯ!J6) -> 53 | K6: =VALUE(АНГЛИЯ!K6) -> 7 | L6: =VALUE(АНГЛИЯ!L6) -> 17 | M6: =VALUE(АНГЛИЯ!M6) -> 29 | N6: =IFERROR(VALUE(SUBSTITUTE(АНГЛИЯ!N6,".",",")),"") -> 66.25 | O6: =VALUE(АНГЛИЯ!O6) -> 27 | P6: =IFERROR(VALUE(SUBSTITUTE(АНГЛИЯ!P6,".",",")),"") -> 101.87 | Q6: значения из листа АНГЛИЯ | R6: =SUMIF(C:C,C6,D:D) -> 844
A7: 5 | B7: =АНГЛИЯ!B7 -> 4 | C7: =АНГЛИЯ!C7 -> Ihor Vinnichuk | D7: =VALUE(АНГЛИЯ!D7) -> 842 | E7: =VALUE(АНГЛИЯ!E7) -> 717 | F7: =VALUE(АНГЛИЯ!F7) -> 125 | G7: =VALUE(АНГЛИЯ!G7) -> 19 | H7: =АНГЛИЯ!H7 -> 80 / 380 | I7: =IFERROR(VALUE(SUBSTITUTE(АНГЛИЯ!L7,".",",")),"") -> 10 | J7: =VALUE(АНГЛИЯ!J7) -> 48 | K7: =VALUE(АНГЛИЯ!K7) -> 12 | L7: =VALUE(АНГЛИЯ!L7) -> 10 | M7: =VALUE(АНГЛИЯ!M7) -> 26 | N7: =IFERROR(VALUE(SUBSTITUTE(АНГЛИЯ!N7,".",",")),"") -> 60 | O7: =VALUE(АНГЛИЯ!O7) -> 32 | P7: =IFERROR(VALUE(SUBSTITUTE(АНГЛИЯ!P7,".",",")),"") -> 87.12 | Q7: значения из листа АНГЛИЯ | R7: =SUMIF(C:C,C7,D:D) -> 1492
A8: 6 | B8: =АНГЛИЯ!B8 -> 5 | C8: =АНГЛИЯ!C8 -> Squidward Patrikovich | D8: =VALUE(АНГЛИЯ!D8) -> 842 | E8: =VALUE(АНГЛИЯ!E8) -> 679 | F8: =VALUE(АНГЛИЯ!F8) -> 163 | G8: =VALUE(АНГЛИЯ!G8) -> 19 | H8: =АНГЛИЯ!H8 -> 80 / 380 | I8: =IFERROR(VALUE(SUBSTITUTE(АНГЛИЯ!L8,".",",")),"") -> 9 | J8: =VALUE(АНГЛИЯ!J8) -> 47 | K8: =VALUE(АНГЛИЯ!K8) -> 8 | L8: =VALUE(АНГЛИЯ!L8) -> 9 | M8: =VALUE(АНГЛИЯ!M8) -> 30 | N8: =IFERROR(VALUE(SUBSTITUTE(АНГЛИЯ!N8,".",",")),"") -> 58.75 | O8: =VALUE(АНГЛИЯ!O8) -> 33 | P8: =IFERROR(VALUE(SUBSTITUTE(АНГЛИЯ!P8,".",",")),"") -> 93.01 | Q8: значения из листа АНГЛИЯ | R8: =SUMIF(C:C,C8,D:D) -> 1347
A9: 7 | B9: =АНГЛИЯ!B9 -> 6 | C9: =АНГЛИЯ!C9 -> victor.bogatov | D9: =VALUE(АНГЛИЯ!D9) -> 839 | E9: =VALUE(АНГЛИЯ!E9) -> 684 | F9: =VALUE(АНГЛИЯ!F9) -> 155 | G9: =VALUE(АНГЛИЯ!G9) -> 22 | H9: =АНГЛИЯ!H9 -> 80 / 380 | I9: =IFERROR(VALUE(SUBSTITUTE(АНГЛИЯ!L9,".",",")),"") -> 14 | J9: =VALUE(АНГЛИЯ!J9) -> 48 | K9: =VALUE(АНГЛИЯ!K9) -> 7 | L9: =VALUE(АНГЛИЯ!L9) -> 14 | M9: =VALUE(АНГЛИЯ!M9) -> 27 | N9: =IFERROR(VALUE(SUBSTITUTE(АНГЛИЯ!N9,".",",")),"") -> 60 | O9: =VALUE(АНГЛИЯ!O9) -> 32 | P9: =IFERROR(VALUE(SUBSTITUTE(АНГЛИЯ!P9,".",",")),"") -> 83.72 | Q9: значения из листа АНГЛИЯ | R9: =SUMIF(C:C,C9,D:D) -> 1470
A10: 8 | B10: =АНГЛИЯ!B10 -> 7 | C10: =АНГЛИЯ!C10 -> dyadya | D10: =VALUE(АНГЛИЯ!D10) -> 835 | E10: =VALUE(АНГЛИЯ!E10) -> 682 | F10: =VALUE(АНГЛИЯ!F10) -> 153 | G10: =VALUE(АНГЛИЯ!G10) -> 26 | H10: =АНГЛИЯ!H10 -> 80 / 380 | I10: =IFERROR(VALUE(SUBSTITUTE(АНГЛИЯ!L10,".",",")),"") -> 11 | J10: =VALUE(АНГЛИЯ!J10) -> 51 | K10: =VALUE(АНГЛИЯ!K10) -> 6 | L10: =VALUE(АНГЛИЯ!L10) -> 11 | M10: =VALUE(АНГЛИЯ!M10) -> 34 | N10: =IFERROR(VALUE(SUBSTITUTE(АНГЛИЯ!N10,".",",")),"") -> 63.75 | O10: =VALUE(АНГЛИЯ!O10) -> 29 | P10: =IFERROR(VALUE(SUBSTITUTE(АНГЛИЯ!P10,".",",")),"") -> 96.97 | Q10: значения из листа АНГЛИЯ | R10: =SUMIF(C:C,C10,D:D) -> 1491
A11: 9 | B11: =АНГЛИЯ!B11 -> 8 | C11: =АНГЛИЯ!C11 -> Føliant | D11: =VALUE(АНГЛИЯ!D11) -> 834 | E11: =VALUE(АНГЛИЯ!E11) -> 711 | F11: =VALUE(АНГЛИЯ!F11) -> 123 | G11: =VALUE(АНГЛИЯ!G11) -> 27 | H11: =АНГЛИЯ!H11 -> 80 / 380 | I11: =IFERROR(VALUE(SUBSTITUTE(АНГЛИЯ!L11,".",",")),"") -> 12 | J11: =VALUE(АНГЛИЯ!J11) -> 47 | K11: =VALUE(АНГЛИЯ!K11) -> 7 | L11: =VALUE(АНГЛИЯ!L11) -> 12 | M11: =VALUE(АНГЛИЯ!M11) -> 28 | N11: =IFERROR(VALUE(SUBSTITUTE(АНГЛИЯ!N11,".",",")),"") -> 58.75 | O11: =VALUE(АНГЛИЯ!O11) -> 33 | P11: =IFERROR(VALUE(SUBSTITUTE(АНГЛИЯ!P11,".",",")),"") -> 81.85 | Q11: значения из листа АНГЛИЯ | R11: =SUMIF(C:C,C11,D:D) -> 1471
A12: 10 | B12: =АНГЛИЯ!B12 -> 9 | C12: =АНГЛИЯ!C12 -> ПЧАНИ | D12: =VALUE(АНГЛИЯ!D12) -> 829 | E12: =VALUE(АНГЛИЯ!E12) -> 687 | F12: =VALUE(АНГЛИЯ!F12) -> 142 | G12: =VALUE(АНГЛИЯ!G12) -> 32 | H12: =АНГЛИЯ!H12 -> 80 / 380 | I12: =IFERROR(VALUE(SUBSTITUTE(АНГЛИЯ!L12,".",",")),"") -> 7 | J12: =VALUE(АНГЛИЯ!J12) -> 47 | K12: =VALUE(АНГЛИЯ!K12) -> 9 | L12: =VALUE(АНГЛИЯ!L12) -> 7 | M12: =VALUE(АНГЛИЯ!M12) -> 31 | N12: =IFERROR(VALUE(SUBSTITUTE(АНГЛИЯ!N12,".",",")),"") -> 58.75 | O12: =VALUE(АНГЛИЯ!O12) -> 33 | P12: =IFERROR(VALUE(SUBSTITUTE(АНГЛИЯ!P12,".",",")),"") -> 84.57 | Q12: значения из листа АНГЛИЯ | R12: =SUMIF(C:C,C12,D:D) -> 1457
A13: 11 | B13: =АНГЛИЯ!B13 -> 10 | C13: =АНГЛИЯ!C13 -> Prosto_Serega | D13: =VALUE(АНГЛИЯ!D13) -> 828 | E13: =VALUE(АНГЛИЯ!E13) -> 684 | F13: =VALUE(АНГЛИЯ!F13) -> 144 | G13: =VALUE(АНГЛИЯ!G13) -> 33 | H13: =АНГЛИЯ!H13 -> 80 / 380 | I13: =IFERROR(VALUE(SUBSTITUTE(АНГЛИЯ!L13,".",",")),"") -> 11 | J13: =VALUE(АНГЛИЯ!J13) -> 48 | K13: =VALUE(АНГЛИЯ!K13) -> 7 | L13: =VALUE(АНГЛИЯ!L13) -> 11 | M13: =VALUE(АНГЛИЯ!M13) -> 30 | N13: =IFERROR(VALUE(SUBSTITUTE(АНГЛИЯ!N13,".",",")),"") -> 60 | O13: =VALUE(АНГЛИЯ!O13) -> 32 | P13: =IFERROR(VALUE(SUBSTITUTE(АНГЛИЯ!P13,".",",")),"") -> 84.22 | Q13: значения из листа АНГЛИЯ | R13: =SUMIF(C:C,C13,D:D) -> 1450
A14: 12 | B14: =АНГЛИЯ!B14 -> 11 | C14: =АНГЛИЯ!C14 -> SERG | D14: =VALUE(АНГЛИЯ!D14) -> 825 | E14: =VALUE(АНГЛИЯ!E14) -> 716 | F14: =VALUE(АНГЛИЯ!F14) -> 109 | G14: =VALUE(АНГЛИЯ!G14) -> 36 | H14: =АНГЛИЯ!H14 -> 80 / 380 | I14: =IFERROR(VALUE(SUBSTITUTE(АНГЛИЯ!L14,".",",")),"") -> 8 | J14: =VALUE(АНГЛИЯ!J14) -> 50 | K14: =VALUE(АНГЛИЯ!K14) -> 13 | L14: =VALUE(АНГЛИЯ!L14) -> 8 | M14: =VALUE(АНГЛИЯ!M14) -> 29 | N14: =IFERROR(VALUE(SUBSTITUTE(АНГЛИЯ!N14,".",",")),"") -> 62.5 | O14: =VALUE(АНГЛИЯ!O14) -> 30 | P14: =IFERROR(VALUE(SUBSTITUTE(АНГЛИЯ!P14,".",",")),"") -> 94.12 | Q14: значения из листа АНГЛИЯ | R14: =SUMIF(C:C,C14,D:D) -> 1400
A15: 13 | B15: =АНГЛИЯ!B15 -> 12 | C15: =АНГЛИЯ!C15 -> come back | D15: =VALUE(АНГЛИЯ!D15) -> 823 | E15: =VALUE(АНГЛИЯ!E15) -> 690 | F15: =VALUE(АНГЛИЯ!F15) -> 133 | G15: =VALUE(АНГЛИЯ!G15) -> 38 | H15: =АНГЛИЯ!H15 -> 80 / 380 | I15: =IFERROR(VALUE(SUBSTITUTE(АНГЛИЯ!L15,".",",")),"") -> 10 | J15: =VALUE(АНГЛИЯ!J15) -> 48 | K15: =VALUE(АНГЛИЯ!K15) -> 6 | L15: =VALUE(АНГЛИЯ!L15) -> 10 | M15: =VALUE(АНГЛИЯ!M15) -> 32 | N15: =IFERROR(VALUE(SUBSTITUTE(АНГЛИЯ!N15,".",",")),"") -> 60 | O15: =VALUE(АНГЛИЯ!O15) -> 32 | P15: =IFERROR(VALUE(SUBSTITUTE(АНГЛИЯ!P15,".",",")),"") -> 84.95 | Q15: значения из листа АНГЛИЯ | R15: =SUMIF(C:C,C15,D:D) -> 1425
A16: 14 | B16: =АНГЛИЯ!B16 -> 13 | C16: =АНГЛИЯ!C16 -> Sashilo | D16: =VALUE(АНГЛИЯ!D16) -> 815 | E16: =VALUE(АНГЛИЯ!E16) -> 714 | F16: =VALUE(АНГЛИЯ!F16) -> 101 | G16: =VALUE(АНГЛИЯ!G16) -> 46 | H16: =АНГЛИЯ!H16 -> 80 / 380 | I16: =IFERROR(VALUE(SUBSTITUTE(АНГЛИЯ!L16,".",",")),"") -> 15 | J16: =VALUE(АНГЛИЯ!J16) -> 50 | K16: =VALUE(АНГЛИЯ!K16) -> 10 | L16: =VALUE(АНГЛИЯ!L16) -> 15 | M16: =VALUE(АНГЛИЯ!M16) -> 25 | N16: =IFERROR(VALUE(SUBSTITUTE(АНГЛИЯ!N16,".",",")),"") -> 62.5 | O16: =VALUE(АНГЛИЯ!O16) -> 30 | P16: =IFERROR(VALUE(SUBSTITUTE(АНГЛИЯ!P16,".",",")),"") -> 91.72 | Q16: значения из листа АНГЛИЯ | R16: =SUMIF(C:C,C16,D:D) -> 1401
A17: 15 | B17: =АНГЛИЯ!B17 -> 14 | C17: =АНГЛИЯ!C17 -> Doom Breaker | D17: =VALUE(АНГЛИЯ!D17) -> 814 | E17: =VALUE(АНГЛИЯ!E17) -> 685 | F17: =VALUE(АНГЛИЯ!F17) -> 129 | G17: =VALUE(АНГЛИЯ!G17) -> 47 | H17: =АНГЛИЯ!H17 -> 75 / 380 | I17: =IFERROR(VALUE(SUBSTITUTE(АНГЛИЯ!L17,".",",")),"") -> 12 | J17: =VALUE(АНГЛИЯ!J17) -> 48 | K17: =VALUE(АНГЛИЯ!K17) -> 8 | L17: =VALUE(АНГЛИЯ!L17) -> 12 | M17: =VALUE(АНГЛИЯ!M17) -> 28 | N17: =IFERROR(VALUE(SUBSTITUTE(АНГЛИЯ!N17,".",",")),"") -> 64 | O17: =VALUE(АНГЛИЯ!O17) -> 27 | P17: =IFERROR(VALUE(SUBSTITUTE(АНГЛИЯ!P17,".",",")),"") -> 85.45 | Q17: значения из листа АНГЛИЯ | R17: =SUMIF(C:C,C17,D:D) -> 1434
A18: 16 | B18: =АНГЛИЯ!B18 -> 15 | C18: =АНГЛИЯ!C18 -> bafan | D18: =VALUE(АНГЛИЯ!D18) -> 805 | E18: =VALUE(АНГЛИЯ!E18) -> 683 | F18: =VALUE(АНГЛИЯ!F18) -> 122 | G18: =VALUE(АНГЛИЯ!G18) -> 56 | H18: =АНГЛИЯ!H18 -> 80 / 380 | I18: =IFERROR(VALUE(SUBSTITUTE(АНГЛИЯ!L18,".",",")),"") -> 7 | J18: =VALUE(АНГЛИЯ!J18) -> 46 | K18: =VALUE(АНГЛИЯ!K18) -> 9 | L18: =VALUE(АНГЛИЯ!L18) -> 7 | M18: =VALUE(АНГЛИЯ!M18) -> 30 | N18: =IFERROR(VALUE(SUBSTITUTE(АНГЛИЯ!N18,".",",")),"") -> 57.5 | O18: =VALUE(АНГЛИЯ!O18) -> 34 | P18: =IFERROR(VALUE(SUBSTITUTE(АНГЛИЯ!P18,".",",")),"") -> 81.45 | Q18: значения из листа АНГЛИЯ | R18: =SUMIF(C:C,C18,D:D) -> 1393
A19: 17 | B19: =АНГЛИЯ!B19 -> 16 | C19: =АНГЛИЯ!C19 -> Anisi | D19: =VALUE(АНГЛИЯ!D19) -> 804 | E19: =VALUE(АНГЛИЯ!E19) -> 710 | F19: =VALUE(АНГЛИЯ!F19) -> 94 | G19: =VALUE(АНГЛИЯ!G19) -> 57 | H19: =АНГЛИЯ!H19 -> 80 / 380 | I19: =IFERROR(VALUE(SUBSTITUTE(АНГЛИЯ!L19,".",",")),"") -> 9 | J19: =VALUE(АНГЛИЯ!J19) -> 48 | K19: =VALUE(АНГЛИЯ!K19) -> 12 | L19: =VALUE(АНГЛИЯ!L19) -> 9 | M19: =VALUE(АНГЛИЯ!M19) -> 27 | N19: =IFERROR(VALUE(SUBSTITUTE(АНГЛИЯ!N19,".",",")),"") -> 60 | O19: =VALUE(АНГЛИЯ!O19) -> 32 | P19: =IFERROR(VALUE(SUBSTITUTE(АНГЛИЯ!P19,".",",")),"") -> 96.89 | Q19: значения из листа АНГЛИЯ | R19: =SUMIF(C:C,C19,D:D) -> 1369
A20: 18 | B20: =АНГЛИЯ!B20 -> 17 | C20: =АНГЛИЯ!C20 -> зенитфан | D20: =VALUE(АНГЛИЯ!D20) -> 804 | E20: =VALUE(АНГЛИЯ!E20) -> 682 | F20: =VALUE(АНГЛИЯ!F20) -> 122 | G20: =VALUE(АНГЛИЯ!G20) -> 57 | H20: =АНГЛИЯ!H20 -> 80 / 380 | I20: =IFERROR(VALUE(SUBSTITUTE(АНГЛИЯ!L20,".",",")),"") -> 9 | J20: =VALUE(АНГЛИЯ!J20) -> 47 | K20: =VALUE(АНГЛИЯ!K20) -> 9 | L20: =VALUE(АНГЛИЯ!L20) -> 9 | M20: =VALUE(АНГЛИЯ!M20) -> 29 | N20: =IFERROR(VALUE(SUBSTITUTE(АНГЛИЯ!N20,".",",")),"") -> 58.75 | O20: =VALUE(АНГЛИЯ!O20) -> 33 | P20: =IFERROR(VALUE(SUBSTITUTE(АНГЛИЯ!P20,".",",")),"") -> 82.22 | Q20: значения из листа АНГЛИЯ | R20: =SUMIF(C:C,C20,D:D) -> 1386
A21: 19 | B21: =АНГЛИЯ!B21 -> 18 | C21: =АНГЛИЯ!C21 -> Кот-63 | D21: =VALUE(АНГЛИЯ!D21) -> 801 | E21: =VALUE(АНГЛИЯ!E21) -> 694 | F21: =VALUE(АНГЛИЯ!F21) -> 107 | G21: =VALUE(АНГЛИЯ!G21) -> 60 | H21: =АНГЛИЯ!H21 -> 80 / 380 | I21: =IFERROR(VALUE(SUBSTITUTE(АНГЛИЯ!L21,".",",")),"") -> 11 | J21: =VALUE(АНГЛИЯ!J21) -> 48 | K21: =VALUE(АНГЛИЯ!K21) -> 7 | L21: =VALUE(АНГЛИЯ!L21) -> 11 | M21: =VALUE(АНГЛИЯ!M21) -> 30 | N21: =IFERROR(VALUE(SUBSTITUTE(АНГЛИЯ!N21,".",",")),"") -> 60 | O21: =VALUE(АНГЛИЯ!O21) -> 32 | P21: =IFERROR(VALUE(SUBSTITUTE(АНГЛИЯ!P21,".",",")),"") -> 82.55 | Q21: значения из листа АНГЛИЯ | R21: =SUMIF(C:C,C21,D:D) -> 1415
A22: 20 | B22: =АНГЛИЯ!B22 -> 19 | C22: =АНГЛИЯ!C22 -> gekson36 | D22: =VALUE(АНГЛИЯ!D22) -> 801 | E22: =VALUE(АНГЛИЯ!E22) -> 684 | F22: =VALUE(АНГЛИЯ!F22) -> 117 | G22: =VALUE(АНГЛИЯ!G22) -> 60 | H22: =АНГЛИЯ!H22 -> 80 / 380 | I22: =IFERROR(VALUE(SUBSTITUTE(АНГЛИЯ!L22,".",",")),"") -> 9 | J22: =VALUE(АНГЛИЯ!J22) -> 48 | K22: =VALUE(АНГЛИЯ!K22) -> 8 | L22: =VALUE(АНГЛИЯ!L22) -> 9 | M22: =VALUE(АНГЛИЯ!M22) -> 31 | N22: =IFERROR(VALUE(SUBSTITUTE(АНГЛИЯ!N22,".",",")),"") -> 60 | O22: =VALUE(АНГЛИЯ!O22) -> 32 | P22: =IFERROR(VALUE(SUBSTITUTE(АНГЛИЯ!P22,".",",")),"") -> 88.97 | Q22: значения из листа АНГЛИЯ | R22: =SUMIF(C:C,C22,D:D) -> 1376
A23: 21 | B23: =АНГЛИЯ!B23 -> 20 | C23: =АНГЛИЯ!C23 -> anogr | D23: =VALUE(АНГЛИЯ!D23) -> 800 | E23: =VALUE(АНГЛИЯ!E23) -> 697 | F23: =VALUE(АНГЛИЯ!F23) -> 103 | G23: =VALUE(АНГЛИЯ!G23) -> 61 | H23: =АНГЛИЯ!H23 -> 80 / 380 | I23: =IFERROR(VALUE(SUBSTITUTE(АНГЛИЯ!L23,".",",")),"") -> 9 | J23: =VALUE(АНГЛИЯ!J23) -> 48 | K23: =VALUE(АНГЛИЯ!K23) -> 8 | L23: =VALUE(АНГЛИЯ!L23) -> 9 | M23: =VALUE(АНГЛИЯ!M23) -> 31 | N23: =IFERROR(VALUE(SUBSTITUTE(АНГЛИЯ!N23,".",",")),"") -> 60 | O23: =VALUE(АНГЛИЯ!O23) -> 32 | P23: =IFERROR(VALUE(SUBSTITUTE(АНГЛИЯ!P23,".",",")),"") -> 85.82 | Q23: значения из листа АНГЛИЯ | R23: =SUMIF(C:C,C23,D:D) -> 1428
A24: 22 | B24: =АНГЛИЯ!B24 -> 21 | C24: =АНГЛИЯ!C24 -> ГОЛ | D24: =VALUE(АНГЛИЯ!D24) -> 798 | E24: =VALUE(АНГЛИЯ!E24) -> 689 | F24: =VALUE(АНГЛИЯ!F24) -> 109 | G24: =VALUE(АНГЛИЯ!G24) -> 63 | H24: =АНГЛИЯ!H24 -> 80 / 380 | I24: =IFERROR(VALUE(SUBSTITUTE(АНГЛИЯ!L24,".",",")),"") -> 9 | J24: =VALUE(АНГЛИЯ!J24) -> 47 | K24: =VALUE(АНГЛИЯ!K24) -> 8 | L24: =VALUE(АНГЛИЯ!L24) -> 9 | M24: =VALUE(АНГЛИЯ!M24) -> 30 | N24: =IFERROR(VALUE(SUBSTITUTE(АНГЛИЯ!N24,".",",")),"") -> 58.75 | O24: =VALUE(АНГЛИЯ!O24) -> 33 | P24: =IFERROR(VALUE(SUBSTITUTE(АНГЛИЯ!P24,".",",")),"") -> 82.97 | Q24: значения из листа АНГЛИЯ | R24: =SUMIF(C:C,C24,D:D) -> 1411
A25: 23 | B25: =АНГЛИЯ!B25 -> 22 | C25: =АНГЛИЯ!C25 -> YumGSt | D25: =VALUE(АНГЛИЯ!D25) -> 798 | E25: =VALUE(АНГЛИЯ!E25) -> 661 | F25: =VALUE(АНГЛИЯ!F25) -> 137 | G25: =VALUE(АНГЛИЯ!G25) -> 63 | H25: =АНГЛИЯ!H25 -> 80 / 380 | I25: =IFERROR(VALUE(SUBSTITUTE(АНГЛИЯ!L25,".",",")),"") -> 10 | J25: =VALUE(АНГЛИЯ!J25) -> 46 | K25: =VALUE(АНГЛИЯ!K25) -> 7 | L25: =VALUE(АНГЛИЯ!L25) -> 10 | M25: =VALUE(АНГЛИЯ!M25) -> 29 | N25: =IFERROR(VALUE(SUBSTITUTE(АНГЛИЯ!N25,".",",")),"") -> 57.5 | O25: =VALUE(АНГЛИЯ!O25) -> 34 | P25: =IFERROR(VALUE(SUBSTITUTE(АНГЛИЯ!P25,".",",")),"") -> 76.42 | Q25: значения из листа АНГЛИЯ | R25: =SUMIF(C:C,C25,D:D) -> 1392
A26: 24 | B26: =АНГЛИЯ!B26 -> 23 | C26: =АНГЛИЯ!C26 -> JUT | D26: =VALUE(АНГЛИЯ!D26) -> 797 | E26: =VALUE(АНГЛИЯ!E26) -> 685 | F26: =VALUE(АНГЛИЯ!F26) -> 112 | G26: =VALUE(АНГЛИЯ!G26) -> 64 | H26: =АНГЛИЯ!H26 -> 80 / 380 | I26: =IFERROR(VALUE(SUBSTITUTE(АНГЛИЯ!L26,".",",")),"") -> 7 | J26: =VALUE(АНГЛИЯ!J26) -> 47 | K26: =VALUE(АНГЛИЯ!K26) -> 10 | L26: =VALUE(АНГЛИЯ!L26) -> 7 | M26: =VALUE(АНГЛИЯ!M26) -> 30 | N26: =IFERROR(VALUE(SUBSTITUTE(АНГЛИЯ!N26,".",",")),"") -> 58.75 | O26: =VALUE(АНГЛИЯ!O26) -> 33 | P26: =IFERROR(VALUE(SUBSTITUTE(АНГЛИЯ!P26,".",",")),"") -> 81.07 | Q26: значения из листа АНГЛИЯ | R26: =SUMIF(C:C,C26,D:D) -> 1376
A27: 25 | B27: =АНГЛИЯ!B27 -> 24 | C27: =АНГЛИЯ!C27 -> gesha0024 | D27: =VALUE(АНГЛИЯ!D27) -> 796 | E27: =VALUE(АНГЛИЯ!E27) -> 658 | F27: =VALUE(АНГЛИЯ!F27) -> 138 | G27: =VALUE(АНГЛИЯ!G27) -> 65 | H27: =АНГЛИЯ!H27 -> 80 / 380 | I27: =IFERROR(VALUE(SUBSTITUTE(АНГЛИЯ!L27,".",",")),"") -> 12 | J27: =VALUE(АНГЛИЯ!J27) -> 44 | K27: =VALUE(АНГЛИЯ!K27) -> 7 | L27: =VALUE(АНГЛИЯ!L27) -> 12 | M27: =VALUE(АНГЛИЯ!M27) -> 25 | N27: =IFERROR(VALUE(SUBSTITUTE(АНГЛИЯ!N27,".",",")),"") -> 55 | O27: =VALUE(АНГЛИЯ!O27) -> 36 | P27: =IFERROR(VALUE(SUBSTITUTE(АНГЛИЯ!P27,".",",")),"") -> 82.03 | Q27: значения из листа АНГЛИЯ | R27: =SUMIF(C:C,C27,D:D) -> 1380
A28: 26 | B28: =АНГЛИЯ!B28 -> 25 | C28: =АНГЛИЯ!C28 -> vasilijponkin712 | D28: =VALUE(АНГЛИЯ!D28) -> 791 | E28: =VALUE(АНГЛИЯ!E28) -> 685 | F28: =VALUE(АНГЛИЯ!F28) -> 106 | G28: =VALUE(АНГЛИЯ!G28) -> 70 | H28: =АНГЛИЯ!H28 -> 80 / 380 | I28: =IFERROR(VALUE(SUBSTITUTE(АНГЛИЯ!L28,".",",")),"") -> 13 | J28: =VALUE(АНГЛИЯ!J28) -> 46 | K28: =VALUE(АНГЛИЯ!K28) -> 4 | L28: =VALUE(АНГЛИЯ!L28) -> 13 | M28: =VALUE(АНГЛИЯ!M28) -> 29 | N28: =IFERROR(VALUE(SUBSTITUTE(АНГЛИЯ!N28,".",",")),"") -> 57.5 | O28: =VALUE(АНГЛИЯ!O28) -> 34 | P28: =IFERROR(VALUE(SUBSTITUTE(АНГЛИЯ!P28,".",",")),"") -> 84.66 | Q28: значения из листа АНГЛИЯ | R28: =SUMIF(C:C,C28,D:D) -> 1438
A29: 27 | B29: =АНГЛИЯ!B29 -> 26 | C29: =АНГЛИЯ!C29 -> Сокол | D29: =VALUE(АНГЛИЯ!D29) -> 790 | E29: =VALUE(АНГЛИЯ!E29) -> 669 | F29: =VALUE(АНГЛИЯ!F29) -> 121 | G29: =VALUE(АНГЛИЯ!G29) -> 71 | H29: =АНГЛИЯ!H29 -> 79 / 380 | I29: =IFERROR(VALUE(SUBSTITUTE(АНГЛИЯ!L29,".",",")),"") -> 9 | J29: =VALUE(АНГЛИЯ!J29) -> 44 | K29: =VALUE(АНГЛИЯ!K29) -> 10 | L29: =VALUE(АНГЛИЯ!L29) -> 9 | M29: =VALUE(АНГЛИЯ!M29) -> 25 | N29: =IFERROR(VALUE(SUBSTITUTE(АНГЛИЯ!N29,".",",")),"") -> 55.7 | O29: =VALUE(АНГЛИЯ!O29) -> 35 | P29: =IFERROR(VALUE(SUBSTITUTE(АНГЛИЯ!P29,".",",")),"") -> 77.37 | Q29: значения из листа АНГЛИЯ | R29: =SUMIF(C:C,C29,D:D) -> 1360
A30: 28 | B30: =АНГЛИЯ!B30 -> 27 | C30: =АНГЛИЯ!C30 -> egk | D30: =VALUE(АНГЛИЯ!D30) -> 789 | E30: =VALUE(АНГЛИЯ!E30) -> 682 | F30: =VALUE(АНГЛИЯ!F30) -> 107 | G30: =VALUE(АНГЛИЯ!G30) -> 72 | H30: =АНГЛИЯ!H30 -> 80 / 380 | I30: =IFERROR(VALUE(SUBSTITUTE(АНГЛИЯ!L30,".",",")),"") -> 10 | J30: =VALUE(АНГЛИЯ!J30) -> 48 | K30: =VALUE(АНГЛИЯ!K30) -> 10 | L30: =VALUE(АНГЛИЯ!L30) -> 10 | M30: =VALUE(АНГЛИЯ!M30) -> 28 | N30: =IFERROR(VALUE(SUBSTITUTE(АНГЛИЯ!N30,".",",")),"") -> 60 | O30: =VALUE(АНГЛИЯ!O30) -> 32 | P30: =IFERROR(VALUE(SUBSTITUTE(АНГЛИЯ!P30,".",",")),"") -> 84.52 | Q30: значения из листа АНГЛИЯ | R30: =SUMIF(C:C,C30,D:D) -> 1428
A31: 29 | B31: =АНГЛИЯ!B31 -> 28 | C31: =АНГЛИЯ!C31 -> Romchyk | D31: =VALUE(АНГЛИЯ!D31) -> 782 | E31: =VALUE(АНГЛИЯ!E31) -> 629 | F31: =VALUE(АНГЛИЯ!F31) -> 153 | G31: =VALUE(АНГЛИЯ!G31) -> 79 | H31: =АНГЛИЯ!H31 -> 80 / 380 | I31: =IFERROR(VALUE(SUBSTITUTE(АНГЛИЯ!L31,".",",")),"") -> 7 | J31: =VALUE(АНГЛИЯ!J31) -> 42 | K31: =VALUE(АНГЛИЯ!K31) -> 3 | L31: =VALUE(АНГЛИЯ!L31) -> 7 | M31: =VALUE(АНГЛИЯ!M31) -> 32 | N31: =IFERROR(VALUE(SUBSTITUTE(АНГЛИЯ!N31,".",",")),"") -> 52.5 | O31: =VALUE(АНГЛИЯ!O31) -> 38 | P31: =IFERROR(VALUE(SUBSTITUTE(АНГЛИЯ!P31,".",",")),"") -> 78.67 | Q31: значения из листа АНГЛИЯ | R31: =SUMIF(C:C,C31,D:D) -> 1360
A32: 30 | B32: =АНГЛИЯ!B32 -> 29 | C32: =АНГЛИЯ!C32 -> Uriy1234 | D32: =VALUE(АНГЛИЯ!D32) -> 780 | E32: =VALUE(АНГЛИЯ!E32) -> 647 | F32: =VALUE(АНГЛИЯ!F32) -> 133 | G32: =VALUE(АНГЛИЯ!G32) -> 81 | H32: =АНГЛИЯ!H32 -> 80 / 380 | I32: =IFERROR(VALUE(SUBSTITUTE(АНГЛИЯ!L32,".",",")),"") -> 11 | J32: =VALUE(АНГЛИЯ!J32) -> 43 | K32: =VALUE(АНГЛИЯ!K32) -> 7 | L32: =VALUE(АНГЛИЯ!L32) -> 11 | M32: =VALUE(АНГЛИЯ!M32) -> 25 | N32: =IFERROR(VALUE(SUBSTITUTE(АНГЛИЯ!N32,".",",")),"") -> 53.75 | O32: =VALUE(АНГЛИЯ!O32) -> 37 | P32: =IFERROR(VALUE(SUBSTITUTE(АНГЛИЯ!P32,".",",")),"") -> 81 | Q32: значения из листа АНГЛИЯ | R32: =SUMIF(C:C,C32,D:D) -> 1244
A33: 31 | B33: =АНГЛИЯ!B33 -> 30 | C33: =АНГЛИЯ!C33 -> Gust | D33: =VALUE(АНГЛИЯ!D33) -> 775 | E33: =VALUE(АНГЛИЯ!E33) -> 644 | F33: =VALUE(АНГЛИЯ!F33) -> 131 | G33: =VALUE(АНГЛИЯ!G33) -> 86 | H33: =АНГЛИЯ!H33 -> 72 / 380 | I33: =IFERROR(VALUE(SUBSTITUTE(АНГЛИЯ!L33,".",",")),"") -> 10 | J33: =VALUE(АНГЛИЯ!J33) -> 45 | K33: =VALUE(АНГЛИЯ!K33) -> 8 | L33: =VALUE(АНГЛИЯ!L33) -> 10 | M33: =VALUE(АНГЛИЯ!M33) -> 27 | N33: =IFERROR(VALUE(SUBSTITUTE(АНГЛИЯ!N33,".",",")),"") -> 62.5 | O33: =VALUE(АНГЛИЯ!O33) -> 27 | P33: =IFERROR(VALUE(SUBSTITUTE(АНГЛИЯ!P33,".",",")),"") -> 83.8 | Q33: значения из листа АНГЛИЯ | R33: =SUMIF(C:C,C33,D:D) -> 775
A34: 32 | B34: =АНГЛИЯ!B34 -> 31 | C34: =АНГЛИЯ!C34 -> Dmitry Tsarytsyn | D34: =VALUE(АНГЛИЯ!D34) -> 774 | E34: =VALUE(АНГЛИЯ!E34) -> 652 | F34: =VALUE(АНГЛИЯ!F34) -> 122 | G34: =VALUE(АНГЛИЯ!G34) -> 87 | H34: =АНГЛИЯ!H34 -> 80 / 380 | I34: =IFERROR(VALUE(SUBSTITUTE(АНГЛИЯ!L34,".",",")),"") -> 9 | J34: =VALUE(АНГЛИЯ!J34) -> 44 | K34: =VALUE(АНГЛИЯ!K34) -> 9 | L34: =VALUE(АНГЛИЯ!L34) -> 9 | M34: =VALUE(АНГЛИЯ!M34) -> 26 | N34: =IFERROR(VALUE(SUBSTITUTE(АНГЛИЯ!N34,".",",")),"") -> 55 | O34: =VALUE(АНГЛИЯ!O34) -> 36 | P34: =IFERROR(VALUE(SUBSTITUTE(АНГЛИЯ!P34,".",",")),"") -> 79.85 | Q34: значения из листа АНГЛИЯ | R34: =SUMIF(C:C,C34,D:D) -> 1345
A35: 33 | B35: =АНГЛИЯ!B35 -> 32 | C35: =АНГЛИЯ!C35 -> khmel95 | D35: =VALUE(АНГЛИЯ!D35) -> 773 | E35: =VALUE(АНГЛИЯ!E35) -> 660 | F35: =VALUE(АНГЛИЯ!F35) -> 113 | G35: =VALUE(АНГЛИЯ!G35) -> 88 | H35: =АНГЛИЯ!H35 -> 80 / 380 | I35: =IFERROR(VALUE(SUBSTITUTE(АНГЛИЯ!L35,".",",")),"") -> 12 | J35: =VALUE(АНГЛИЯ!J35) -> 46 | K35: =VALUE(АНГЛИЯ!K35) -> 7 | L35: =VALUE(АНГЛИЯ!L35) -> 12 | M35: =VALUE(АНГЛИЯ!M35) -> 27 | N35: =IFERROR(VALUE(SUBSTITUTE(АНГЛИЯ!N35,".",",")),"") -> 57.5 | O35: =VALUE(АНГЛИЯ!O35) -> 34 | P35: =IFERROR(VALUE(SUBSTITUTE(АНГЛИЯ!P35,".",",")),"") -> 83.49 | Q35: значения из листа АНГЛИЯ | R35: =SUMIF(C:C,C35,D:D) -> 1315
A36: 34 | B36: =АНГЛИЯ!B36 -> 33 | C36: =АНГЛИЯ!C36 -> Serzhik | D36: =VALUE(АНГЛИЯ!D36) -> 771 | E36: =VALUE(АНГЛИЯ!E36) -> 679 | F36: =VALUE(АНГЛИЯ!F36) -> 92 | G36: =VALUE(АНГЛИЯ!G36) -> 90 | H36: =АНГЛИЯ!H36 -> 80 / 380 | I36: =IFERROR(VALUE(SUBSTITUTE(АНГЛИЯ!L36,".",",")),"") -> 12 | J36: =VALUE(АНГЛИЯ!J36) -> 46 | K36: =VALUE(АНГЛИЯ!K36) -> 9 | L36: =VALUE(АНГЛИЯ!L36) -> 12 | M36: =VALUE(АНГЛИЯ!M36) -> 25 | N36: =IFERROR(VALUE(SUBSTITUTE(АНГЛИЯ!N36,".",",")),"") -> 57.5 | O36: =VALUE(АНГЛИЯ!O36) -> 34 | P36: =IFERROR(VALUE(SUBSTITUTE(АНГЛИЯ!P36,".",",")),"") -> 82.22 | Q36: значения из листа АНГЛИЯ | R36: =SUMIF(C:C,C36,D:D) -> 1411
A37: 35 | B37: =АНГЛИЯ!B37 -> 34 | C37: =АНГЛИЯ!C37 -> Lazy Flash | D37: =VALUE(АНГЛИЯ!D37) -> 766 | E37: =VALUE(АНГЛИЯ!E37) -> 652 | F37: =VALUE(АНГЛИЯ!F37) -> 114 | G37: =VALUE(АНГЛИЯ!G37) -> 95 | H37: =АНГЛИЯ!H37 -> 80 / 380 | I37: =IFERROR(VALUE(SUBSTITUTE(АНГЛИЯ!L37,".",",")),"") -> 9 | J37: =VALUE(АНГЛИЯ!J37) -> 47 | K37: =VALUE(АНГЛИЯ!K37) -> 6 | L37: =VALUE(АНГЛИЯ!L37) -> 9 | M37: =VALUE(АНГЛИЯ!M37) -> 32 | N37: =IFERROR(VALUE(SUBSTITUTE(АНГЛИЯ!N37,".",",")),"") -> 58.75 | O37: =VALUE(АНГЛИЯ!O37) -> 33 | P37: =IFERROR(VALUE(SUBSTITUTE(АНГЛИЯ!P37,".",",")),"") -> 83.67 | Q37: значения из листа АНГЛИЯ | R37: =SUMIF(C:C,C37,D:D) -> 1350
A38: 36 | B38: =АНГЛИЯ!B38 -> 35 | C38: =АНГЛИЯ!C38 -> Яг Морт | D38: =VALUE(АНГЛИЯ!D38) -> 759 | E38: =VALUE(АНГЛИЯ!E38) -> 685 | F38: =VALUE(АНГЛИЯ!F38) -> 74 | G38: =VALUE(АНГЛИЯ!G38) -> 102 | H38: =АНГЛИЯ!H38 -> 80 / 380 | I38: =IFERROR(VALUE(SUBSTITUTE(АНГЛИЯ!L38,".",",")),"") -> 11 | J38: =VALUE(АНГЛИЯ!J38) -> 47 | K38: =VALUE(АНГЛИЯ!K38) -> 8 | L38: =VALUE(АНГЛИЯ!L38) -> 11 | M38: =VALUE(АНГЛИЯ!M38) -> 28 | N38: =IFERROR(VALUE(SUBSTITUTE(АНГЛИЯ!N38,".",",")),"") -> 58.75 | O38: =VALUE(АНГЛИЯ!O38) -> 33 | P38: =IFERROR(VALUE(SUBSTITUTE(АНГЛИЯ!P38,".",",")),"") -> 87.34 | Q38: значения из листа АНГЛИЯ | R38: =SUMIF(C:C,C38,D:D) -> 1376
A39: 37 | B39: =АНГЛИЯ!B39 -> 36 | C39: =АНГЛИЯ!C39 -> Вовчикас | D39: =VALUE(АНГЛИЯ!D39) -> 759 | E39: =VALUE(АНГЛИЯ!E39) -> 636 | F39: =VALUE(АНГЛИЯ!F39) -> 123 | G39: =VALUE(АНГЛИЯ!G39) -> 102 | H39: =АНГЛИЯ!H39 -> 80 / 380 | I39: =IFERROR(VALUE(SUBSTITUTE(АНГЛИЯ!L39,".",",")),"") -> 9 | J39: =VALUE(АНГЛИЯ!J39) -> 46 | K39: =VALUE(АНГЛИЯ!K39) -> 6 | L39: =VALUE(АНГЛИЯ!L39) -> 9 | M39: =VALUE(АНГЛИЯ!M39) -> 31 | N39: =IFERROR(VALUE(SUBSTITUTE(АНГЛИЯ!N39,".",",")),"") -> 57.5 | O39: =VALUE(АНГЛИЯ!O39) -> 34 | P39: =IFERROR(VALUE(SUBSTITUTE(АНГЛИЯ!P39,".",",")),"") -> 85.11 | Q39: значения из листа АНГЛИЯ | R39: =SUMIF(C:C,C39,D:D) -> 1377
A40: 38 | B40: =АНГЛИЯ!B40 -> 37 | C40: =АНГЛИЯ!C40 -> murzikov | D40: =VALUE(АНГЛИЯ!D40) -> 757 | E40: =VALUE(АНГЛИЯ!E40) -> 682 | F40: =VALUE(АНГЛИЯ!F40) -> 75 | G40: =VALUE(АНГЛИЯ!G40) -> 104 | H40: =АНГЛИЯ!H40 -> 80 / 380 | I40: =IFERROR(VALUE(SUBSTITUTE(АНГЛИЯ!L40,".",",")),"") -> 11 | J40: =VALUE(АНГЛИЯ!J40) -> 46 | K40: =VALUE(АНГЛИЯ!K40) -> 8 | L40: =VALUE(АНГЛИЯ!L40) -> 11 | M40: =VALUE(АНГЛИЯ!M40) -> 27 | N40: =IFERROR(VALUE(SUBSTITUTE(АНГЛИЯ!N40,".",",")),"") -> 57.5 | O40: =VALUE(АНГЛИЯ!O40) -> 34 | P40: =IFERROR(VALUE(SUBSTITUTE(АНГЛИЯ!P40,".",",")),"") -> 81.22 | Q40: значения из листа АНГЛИЯ | R40: =SUMIF(C:C,C40,D:D) -> 1349
A41: 39 | B41: =АНГЛИЯ!B41 -> 38 | C41: =АНГЛИЯ!C41 -> baron | D41: =VALUE(АНГЛИЯ!D41) -> 757 | E41: =VALUE(АНГЛИЯ!E41) -> 659 | F41: =VALUE(АНГЛИЯ!F41) -> 98 | G41: =VALUE(АНГЛИЯ!G41) -> 104 | H41: =АНГЛИЯ!H41 -> 79 / 380 | I41: =IFERROR(VALUE(SUBSTITUTE(АНГЛИЯ!L41,".",",")),"") -> 7 | J41: =VALUE(АНГЛИЯ!J41) -> 44 | K41: =VALUE(АНГЛИЯ!K41) -> 12 | L41: =VALUE(АНГЛИЯ!L41) -> 7 | M41: =VALUE(АНГЛИЯ!M41) -> 25 | N41: =IFERROR(VALUE(SUBSTITUTE(АНГЛИЯ!N41,".",",")),"") -> 55.7 | O41: =VALUE(АНГЛИЯ!O41) -> 35 | P41: =IFERROR(VALUE(SUBSTITUTE(АНГЛИЯ!P41,".",",")),"") -> 83.54 | Q41: значения из листа АНГЛИЯ | R41: =SUMIF(C:C,C41,D:D) -> 757
A42: 40 | B42: =АНГЛИЯ!B42 -> 39 | C42: =АНГЛИЯ!C42 -> SSAKALAS | D42: =VALUE(АНГЛИЯ!D42) -> 756 | E42: =VALUE(АНГЛИЯ!E42) -> 660 | F42: =VALUE(АНГЛИЯ!F42) -> 96 | G42: =VALUE(АНГЛИЯ!G42) -> 105 | H42: =АНГЛИЯ!H42 -> 80 / 380 | I42: =IFERROR(VALUE(SUBSTITUTE(АНГЛИЯ!L42,".",",")),"") -> 14 | J42: =VALUE(АНГЛИЯ!J42) -> 44 | K42: =VALUE(АНГЛИЯ!K42) -> 4 | L42: =VALUE(АНГЛИЯ!L42) -> 14 | M42: =VALUE(АНГЛИЯ!M42) -> 26 | N42: =IFERROR(VALUE(SUBSTITUTE(АНГЛИЯ!N42,".",",")),"") -> 55 | O42: =VALUE(АНГЛИЯ!O42) -> 36 | P42: =IFERROR(VALUE(SUBSTITUTE(АНГЛИЯ!P42,".",",")),"") -> 73.61 | Q42: значения из листа АНГЛИЯ | R42: =SUMIF(C:C,C42,D:D) -> 1377
A43: 41 | B43: =АНГЛИЯ!B43 -> 40 | C43: =АНГЛИЯ!C43 -> 22rus | D43: =VALUE(АНГЛИЯ!D43) -> 756 | E43: =VALUE(АНГЛИЯ!E43) -> 635 | F43: =VALUE(АНГЛИЯ!F43) -> 121 | G43: =VALUE(АНГЛИЯ!G43) -> 105 | H43: =АНГЛИЯ!H43 -> 80 / 380 | I43: =IFERROR(VALUE(SUBSTITUTE(АНГЛИЯ!L43,".",",")),"") -> 7 | J43: =VALUE(АНГЛИЯ!J43) -> 44 | K43: =VALUE(АНГЛИЯ!K43) -> 6 | L43: =VALUE(АНГЛИЯ!L43) -> 7 | M43: =VALUE(АНГЛИЯ!M43) -> 31 | N43: =IFERROR(VALUE(SUBSTITUTE(АНГЛИЯ!N43,".",",")),"") -> 55 | O43: =VALUE(АНГЛИЯ!O43) -> 36 | P43: =IFERROR(VALUE(SUBSTITUTE(АНГЛИЯ!P43,".",",")),"") -> 70.87 | Q43: значения из листа АНГЛИЯ | R43: =SUMIF(C:C,C43,D:D) -> 1407
A44: 42 | B44: =АНГЛИЯ!B44 -> 41 | C44: =АНГЛИЯ!C44 -> Сергей Бернадский | D44: =VALUE(АНГЛИЯ!D44) -> 754 | E44: =VALUE(АНГЛИЯ!E44) -> 670 | F44: =VALUE(АНГЛИЯ!F44) -> 84 | G44: =VALUE(АНГЛИЯ!G44) -> 107 | H44: =АНГЛИЯ!H44 -> 80 / 380 | I44: =IFERROR(VALUE(SUBSTITUTE(АНГЛИЯ!L44,".",",")),"") -> 11 | J44: =VALUE(АНГЛИЯ!J44) -> 47 | K44: =VALUE(АНГЛИЯ!K44) -> 7 | L44: =VALUE(АНГЛИЯ!L44) -> 11 | M44: =VALUE(АНГЛИЯ!M44) -> 29 | N44: =IFERROR(VALUE(SUBSTITUTE(АНГЛИЯ!N44,".",",")),"") -> 58.75 | O44: =VALUE(АНГЛИЯ!O44) -> 33 | P44: =IFERROR(VALUE(SUBSTITUTE(АНГЛИЯ!P44,".",",")),"") -> 80.35 | Q44: значения из листа АНГЛИЯ | R44: =SUMIF(C:C,C44,D:D) -> 1361
A45: 43 | B45: =АНГЛИЯ!B45 -> 42 | C45: =АНГЛИЯ!C45 -> Angelneit-73 | D45: =VALUE(АНГЛИЯ!D45) -> 754 | E45: =VALUE(АНГЛИЯ!E45) -> 665 | F45: =VALUE(АНГЛИЯ!F45) -> 89 | G45: =VALUE(АНГЛИЯ!G45) -> 107 | H45: =АНГЛИЯ!H45 -> 79 / 380 | I45: =IFERROR(VALUE(SUBSTITUTE(АНГЛИЯ!L45,".",",")),"") -> 13 | J45: =VALUE(АНГЛИЯ!J45) -> 45 | K45: =VALUE(АНГЛИЯ!K45) -> 7 | L45: =VALUE(АНГЛИЯ!L45) -> 13 | M45: =VALUE(АНГЛИЯ!M45) -> 25 | N45: =IFERROR(VALUE(SUBSTITUTE(АНГЛИЯ!N45,".",",")),"") -> 56.96 | O45: =VALUE(АНГЛИЯ!O45) -> 34 | P45: =IFERROR(VALUE(SUBSTITUTE(АНГЛИЯ!P45,".",",")),"") -> 78.96 | Q45: значения из листа АНГЛИЯ | R45: =SUMIF(C:C,C45,D:D) -> 1402
A46: 44 | B46: =АНГЛИЯ!B46 -> 43 | C46: =АНГЛИЯ!C46 -> Микола Білак | D46: =VALUE(АНГЛИЯ!D46) -> 752 | E46: =VALUE(АНГЛИЯ!E46) -> 661 | F46: =VALUE(АНГЛИЯ!F46) -> 91 | G46: =VALUE(АНГЛИЯ!G46) -> 109 | H46: =АНГЛИЯ!H46 -> 80 / 380 | I46: =IFERROR(VALUE(SUBSTITUTE(АНГЛИЯ!L46,".",",")),"") -> 12 | J46: =VALUE(АНГЛИЯ!J46) -> 42 | K46: =VALUE(АНГЛИЯ!K46) -> 3 | L46: =VALUE(АНГЛИЯ!L46) -> 12 | M46: =VALUE(АНГЛИЯ!M46) -> 27 | N46: =IFERROR(VALUE(SUBSTITUTE(АНГЛИЯ!N46,".",",")),"") -> 52.5 | O46: =VALUE(АНГЛИЯ!O46) -> 38 | P46: =IFERROR(VALUE(SUBSTITUTE(АНГЛИЯ!P46,".",",")),"") -> 76.24 | Q46: значения из листа АНГЛИЯ | R46: =SUMIF(C:C,C46,D:D) -> 1309
A47: 45 | B47: =АНГЛИЯ!B47 -> 44 | C47: =АНГЛИЯ!C47 -> roman.valman | D47: =VALUE(АНГЛИЯ!D47) -> 750 | E47: =VALUE(АНГЛИЯ!E47) -> 643 | F47: =VALUE(АНГЛИЯ!F47) -> 107 | G47: =VALUE(АНГЛИЯ!G47) -> 111 | H47: =АНГЛИЯ!H47 -> 73 / 380 | I47: =IFERROR(VALUE(SUBSTITUTE(АНГЛИЯ!L47,".",",")),"") -> 7 | J47: =VALUE(АНГЛИЯ!J47) -> 43 | K47: =VALUE(АНГЛИЯ!K47) -> 12 | L47: =VALUE(АНГЛИЯ!L47) -> 7 | M47: =VALUE(АНГЛИЯ!M47) -> 24 | N47: =IFERROR(VALUE(SUBSTITUTE(АНГЛИЯ!N47,".",",")),"") -> 58.9 | O47: =VALUE(АНГЛИЯ!O47) -> 30 | P47: =IFERROR(VALUE(SUBSTITUTE(АНГЛИЯ!P47,".",",")),"") -> 78.11 | Q47: значения из листа АНГЛИЯ | R47: =SUMIF(C:C,C47,D:D) -> 1249
A48: 46 | B48: =АНГЛИЯ!B48 -> 45 | C48: =АНГЛИЯ!C48 -> SuperVlad | D48: =VALUE(АНГЛИЯ!D48) -> 749 | E48: =VALUE(АНГЛИЯ!E48) -> 624 | F48: =VALUE(АНГЛИЯ!F48) -> 125 | G48: =VALUE(АНГЛИЯ!G48) -> 112 | H48: =АНГЛИЯ!H48 -> 73 / 380 | I48: =IFERROR(VALUE(SUBSTITUTE(АНГЛИЯ!L48,".",",")),"") -> 8 | J48: =VALUE(АНГЛИЯ!J48) -> 47 | K48: =VALUE(АНГЛИЯ!K48) -> 6 | L48: =VALUE(АНГЛИЯ!L48) -> 8 | M48: =VALUE(АНГЛИЯ!M48) -> 33 | N48: =IFERROR(VALUE(SUBSTITUTE(АНГЛИЯ!N48,".",",")),"") -> 64.38 | O48: =VALUE(АНГЛИЯ!O48) -> 26 | P48: =IFERROR(VALUE(SUBSTITUTE(АНГЛИЯ!P48,".",",")),"") -> 83.06 | Q48: значения из листа АНГЛИЯ | R48: =SUMIF(C:C,C48,D:D) -> 1263
A49: 47 | B49: =АНГЛИЯ!B49 -> 46 | C49: =АНГЛИЯ!C49 -> Las Kij | D49: =VALUE(АНГЛИЯ!D49) -> 748 | E49: =VALUE(АНГЛИЯ!E49) -> 636 | F49: =VALUE(АНГЛИЯ!F49) -> 112 | G49: =VALUE(АНГЛИЯ!G49) -> 113 | H49: =АНГЛИЯ!H49 -> 80 / 380 | I49: =IFERROR(VALUE(SUBSTITUTE(АНГЛИЯ!L49,".",",")),"") -> 12 | J49: =VALUE(АНГЛИЯ!J49) -> 44 | K49: =VALUE(АНГЛИЯ!K49) -> 12 | L49: =VALUE(АНГЛИЯ!L49) -> 12 | M49: =VALUE(АНГЛИЯ!M49) -> 20 | N49: =IFERROR(VALUE(SUBSTITUTE(АНГЛИЯ!N49,".",",")),"") -> 55 | O49: =VALUE(АНГЛИЯ!O49) -> 36 | P49: =IFERROR(VALUE(SUBSTITUTE(АНГЛИЯ!P49,".",",")),"") -> 81.96 | Q49: значения из листа АНГЛИЯ | R49: =SUMIF(C:C,C49,D:D) -> 1317
A50: 48 | B50: =АНГЛИЯ!B50 -> 47 | C50: =АНГЛИЯ!C50 -> anton | D50: =VALUE(АНГЛИЯ!D50) -> 743 | E50: =VALUE(АНГЛИЯ!E50) -> 675 | F50: =VALUE(АНГЛИЯ!F50) -> 68 | G50: =VALUE(АНГЛИЯ!G50) -> 118 | H50: =АНГЛИЯ!H50 -> 79 / 380 | I50: =IFERROR(VALUE(SUBSTITUTE(АНГЛИЯ!L50,".",",")),"") -> 7 | J50: =VALUE(АНГЛИЯ!J50) -> 46 | K50: =VALUE(АНГЛИЯ!K50) -> 8 | L50: =VALUE(АНГЛИЯ!L50) -> 7 | M50: =VALUE(АНГЛИЯ!M50) -> 31 | N50: =IFERROR(VALUE(SUBSTITUTE(АНГЛИЯ!N50,".",",")),"") -> 58.23 | O50: =VALUE(АНГЛИЯ!O50) -> 33 | P50: =IFERROR(VALUE(SUBSTITUTE(АНГЛИЯ!P50,".",",")),"") -> 79.17 | Q50: значения из листа АНГЛИЯ | R50: =SUMIF(C:C,C50,D:D) -> 1240
A51: 49 | B51: =АНГЛИЯ!B51 -> 48 | C51: =АНГЛИЯ!C51 -> Куров Олег | D51: =VALUE(АНГЛИЯ!D51) -> 743 | E51: =VALUE(АНГЛИЯ!E51) -> 663 | F51: =VALUE(АНГЛИЯ!F51) -> 80 | G51: =VALUE(АНГЛИЯ!G51) -> 118 | H51: =АНГЛИЯ!H51 -> 80 / 380 | I51: =IFERROR(VALUE(SUBSTITUTE(АНГЛИЯ!L51,".",",")),"") -> 13 | J51: =VALUE(АНГЛИЯ!J51) -> 45 | K51: =VALUE(АНГЛИЯ!K51) -> 4 | L51: =VALUE(АНГЛИЯ!L51) -> 13 | M51: =VALUE(АНГЛИЯ!M51) -> 28 | N51: =IFERROR(VALUE(SUBSTITUTE(АНГЛИЯ!N51,".",",")),"") -> 56.25 | O51: =VALUE(АНГЛИЯ!O51) -> 35 | P51: =IFERROR(VALUE(SUBSTITUTE(АНГЛИЯ!P51,".",",")),"") -> 78.81 | Q51: значения из листа АНГЛИЯ | R51: =SUMIF(C:C,C51,D:D) -> 743
A52: 50 | B52: =АНГЛИЯ!B52 -> 49 | C52: =АНГЛИЯ!C52 -> Андрій Кожумяка | D52: =VALUE(АНГЛИЯ!D52) -> 740 | E52: =VALUE(АНГЛИЯ!E52) -> 646 | F52: =VALUE(АНГЛИЯ!F52) -> 94 | G52: =VALUE(АНГЛИЯ!G52) -> 121 | H52: =АНГЛИЯ!H52 -> 80 / 380 | I52: =IFERROR(VALUE(SUBSTITUTE(АНГЛИЯ!L52,".",",")),"") -> 8 | J52: =VALUE(АНГЛИЯ!J52) -> 46 | K52: =VALUE(АНГЛИЯ!K52) -> 8 | L52: =VALUE(АНГЛИЯ!L52) -> 8 | M52: =VALUE(АНГЛИЯ!M52) -> 30 | N52: =IFERROR(VALUE(SUBSTITUTE(АНГЛИЯ!N52,".",",")),"") -> 57.5 | O52: =VALUE(АНГЛИЯ!O52) -> 34 | P52: =IFERROR(VALUE(SUBSTITUTE(АНГЛИЯ!P52,".",",")),"") -> 82.31 | Q52: значения из листа АНГЛИЯ | R52: =SUMIF(C:C,C52,D:D) -> 1311
A53: 51 | B53: =АНГЛИЯ!B53 -> 50 | C53: =АНГЛИЯ!C53 -> Андрей | D53: =VALUE(АНГЛИЯ!D53) -> 737 | E53: =VALUE(АНГЛИЯ!E53) -> 658 | F53: =VALUE(АНГЛИЯ!F53) -> 79 | G53: =VALUE(АНГЛИЯ!G53) -> 124 | H53: =АНГЛИЯ!H53 -> 80 / 380 | I53: =IFERROR(VALUE(SUBSTITUTE(АНГЛИЯ!L53,".",",")),"") -> 17 | J53: =VALUE(АНГЛИЯ!J53) -> 47 | K53: =VALUE(АНГЛИЯ!K53) -> 5 | L53: =VALUE(АНГЛИЯ!L53) -> 17 | M53: =VALUE(АНГЛИЯ!M53) -> 25 | N53: =IFERROR(VALUE(SUBSTITUTE(АНГЛИЯ!N53,".",",")),"") -> 58.75 | O53: =VALUE(АНГЛИЯ!O53) -> 33 | P53: =IFERROR(VALUE(SUBSTITUTE(АНГЛИЯ!P53,".",",")),"") -> 102.71 | Q53: значения из листа АНГЛИЯ | R53: =SUMIF(C:C,C53,D:D) -> 1286
A54: 52 | B54: =АНГЛИЯ!B54 -> 51 | C54: =АНГЛИЯ!C54 -> aleks050874 | D54: =VALUE(АНГЛИЯ!D54) -> 730 | E54: =VALUE(АНГЛИЯ!E54) -> 671 | F54: =VALUE(АНГЛИЯ!F54) -> 59 | G54: =VALUE(АНГЛИЯ!G54) -> 131 | H54: =АНГЛИЯ!H54 -> 75 / 380 | I54: =IFERROR(VALUE(SUBSTITUTE(АНГЛИЯ!L54,".",",")),"") -> 14 | J54: =VALUE(АНГЛИЯ!J54) -> 46 | K54: =VALUE(АНГЛИЯ!K54) -> 8 | L54: =VALUE(АНГЛИЯ!L54) -> 14 | M54: =VALUE(АНГЛИЯ!M54) -> 24 | N54: =IFERROR(VALUE(SUBSTITUTE(АНГЛИЯ!N54,".",",")),"") -> 61.33 | O54: =VALUE(АНГЛИЯ!O54) -> 29 | P54: =IFERROR(VALUE(SUBSTITUTE(АНГЛИЯ!P54,".",",")),"") -> 89.88 | Q54: значения из листа АНГЛИЯ | R54: =SUMIF(C:C,C54,D:D) -> 1294
A55: 53 | B55: =АНГЛИЯ!B55 -> 52 | C55: =АНГЛИЯ!C55 -> Роман Кибкало | D55: =VALUE(АНГЛИЯ!D55) -> 727 | E55: =VALUE(АНГЛИЯ!E55) -> 657 | F55: =VALUE(АНГЛИЯ!F55) -> 70 | G55: =VALUE(АНГЛИЯ!G55) -> 134 | H55: =АНГЛИЯ!H55 -> 80 / 380 | I55: =IFERROR(VALUE(SUBSTITUTE(АНГЛИЯ!L55,".",",")),"") -> 11 | J55: =VALUE(АНГЛИЯ!J55) -> 46 | K55: =VALUE(АНГЛИЯ!K55) -> 10 | L55: =VALUE(АНГЛИЯ!L55) -> 11 | M55: =VALUE(АНГЛИЯ!M55) -> 25 | N55: =IFERROR(VALUE(SUBSTITUTE(АНГЛИЯ!N55,".",",")),"") -> 57.5 | O55: =VALUE(АНГЛИЯ!O55) -> 34 | P55: =IFERROR(VALUE(SUBSTITUTE(АНГЛИЯ!P55,".",",")),"") -> 92.65 | Q55: значения из листа АНГЛИЯ | R55: =SUMIF(C:C,C55,D:D) -> 727
A56: 54 | B56: =АНГЛИЯ!B56 -> 53 | C56: =АНГЛИЯ!C56 -> SkVaL | D56: =VALUE(АНГЛИЯ!D56) -> 726 | E56: =VALUE(АНГЛИЯ!E56) -> 661 | F56: =VALUE(АНГЛИЯ!F56) -> 65 | G56: =VALUE(АНГЛИЯ!G56) -> 135 | H56: =АНГЛИЯ!H56 -> 80 / 380 | I56: =IFERROR(VALUE(SUBSTITUTE(АНГЛИЯ!L56,".",",")),"") -> 9 | J56: =VALUE(АНГЛИЯ!J56) -> 47 | K56: =VALUE(АНГЛИЯ!K56) -> 4 | L56: =VALUE(АНГЛИЯ!L56) -> 9 | M56: =VALUE(АНГЛИЯ!M56) -> 34 | N56: =IFERROR(VALUE(SUBSTITUTE(АНГЛИЯ!N56,".",",")),"") -> 58.75 | O56: =VALUE(АНГЛИЯ!O56) -> 33 | P56: =IFERROR(VALUE(SUBSTITUTE(АНГЛИЯ!P56,".",",")),"") -> 78.87 | Q56: значения из листа АНГЛИЯ | R56: =SUMIF(C:C,C56,D:D) -> 1304
A57: 55 | B57: =АНГЛИЯ!B57 -> 54 | C57: =АНГЛИЯ!C57 -> Aneta81 | D57: =VALUE(АНГЛИЯ!D57) -> 717 | E57: =VALUE(АНГЛИЯ!E57) -> 668 | F57: =VALUE(АНГЛИЯ!F57) -> 49 | G57: =VALUE(АНГЛИЯ!G57) -> 144 | H57: =АНГЛИЯ!H57 -> 75 / 380 | I57: =IFERROR(VALUE(SUBSTITUTE(АНГЛИЯ!L57,".",",")),"") -> 9 | J57: =VALUE(АНГЛИЯ!J57) -> 47 | K57: =VALUE(АНГЛИЯ!K57) -> 11 | L57: =VALUE(АНГЛИЯ!L57) -> 9 | M57: =VALUE(АНГЛИЯ!M57) -> 27 | N57: =IFERROR(VALUE(SUBSTITUTE(АНГЛИЯ!N57,".",",")),"") -> 62.67 | O57: =VALUE(АНГЛИЯ!O57) -> 28 | P57: =IFERROR(VALUE(SUBSTITUTE(АНГЛИЯ!P57,".",",")),"") -> 86.61 | Q57: значения из листа АНГЛИЯ | R57: =SUMIF(C:C,C57,D:D) -> 1222
A58: 56 | B58: =АНГЛИЯ!B58 -> 55 | C58: =АНГЛИЯ!C58 -> LioMart | D58: =VALUE(АНГЛИЯ!D58) -> 716 | E58: =VALUE(АНГЛИЯ!E58) -> 628 | F58: =VALUE(АНГЛИЯ!F58) -> 88 | G58: =VALUE(АНГЛИЯ!G58) -> 145 | H58: =АНГЛИЯ!H58 -> 80 / 380 | I58: =IFERROR(VALUE(SUBSTITUTE(АНГЛИЯ!L58,".",",")),"") -> 7 | J58: =VALUE(АНГЛИЯ!J58) -> 47 | K58: =VALUE(АНГЛИЯ!K58) -> 5 | L58: =VALUE(АНГЛИЯ!L58) -> 7 | M58: =VALUE(АНГЛИЯ!M58) -> 35 | N58: =IFERROR(VALUE(SUBSTITUTE(АНГЛИЯ!N58,".",",")),"") -> 58.75 | O58: =VALUE(АНГЛИЯ!O58) -> 33 | P58: =IFERROR(VALUE(SUBSTITUTE(АНГЛИЯ!P58,".",",")),"") -> 79.92 | Q58: значения из листа АНГЛИЯ | R58: =SUMIF(C:C,C58,D:D) -> 1310
A59: 57 | B59: =АНГЛИЯ!B59 -> 56 | C59: =АНГЛИЯ!C59 -> azarte | D59: =VALUE(АНГЛИЯ!D59) -> 713 | E59: =VALUE(АНГЛИЯ!E59) -> 597 | F59: =VALUE(АНГЛИЯ!F59) -> 116 | G59: =VALUE(АНГЛИЯ!G59) -> 148 | H59: =АНГЛИЯ!H59 -> 73 / 380 | I59: =IFERROR(VALUE(SUBSTITUTE(АНГЛИЯ!L59,".",",")),"") -> 12 | J59: =VALUE(АНГЛИЯ!J59) -> 41 | K59: =VALUE(АНГЛИЯ!K59) -> 9 | L59: =VALUE(АНГЛИЯ!L59) -> 12 | M59: =VALUE(АНГЛИЯ!M59) -> 20 | N59: =IFERROR(VALUE(SUBSTITUTE(АНГЛИЯ!N59,".",",")),"") -> 56.16 | O59: =VALUE(АНГЛИЯ!O59) -> 32 | P59: =IFERROR(VALUE(SUBSTITUTE(АНГЛИЯ!P59,".",",")),"") -> 67.57 | Q59: значения из листа АНГЛИЯ | R59: =SUMIF(C:C,C59,D:D) -> 1256
A60: 58 | B60: =АНГЛИЯ!B60 -> 57 | C60: =АНГЛИЯ!C60 -> Zirka | D60: =VALUE(АНГЛИЯ!D60) -> 694 | E60: =VALUE(АНГЛИЯ!E60) -> 605 | F60: =VALUE(АНГЛИЯ!F60) -> 89 | G60: =VALUE(АНГЛИЯ!G60) -> 167 | H60: =АНГЛИЯ!H60 -> 80 / 380 | I60: =IFERROR(VALUE(SUBSTITUTE(АНГЛИЯ!L60,".",",")),"") -> 11 | J60: =VALUE(АНГЛИЯ!J60) -> 41 | K60: =VALUE(АНГЛИЯ!K60) -> 6 | L60: =VALUE(АНГЛИЯ!L60) -> 11 | M60: =VALUE(АНГЛИЯ!M60) -> 24 | N60: =IFERROR(VALUE(SUBSTITUTE(АНГЛИЯ!N60,".",",")),"") -> 51.25 | O60: =VALUE(АНГЛИЯ!O60) -> 39 | P60: =IFERROR(VALUE(SUBSTITUTE(АНГЛИЯ!P60,".",",")),"") -> 72.19 | Q60: значения из листа АНГЛИЯ | R60: =SUMIF(C:C,C60,D:D) -> 1307
A61: 59 | B61: =АНГЛИЯ!B61 -> 58 | C61: =АНГЛИЯ!C61 -> Doktoroff | D61: =VALUE(АНГЛИЯ!D61) -> 680 | E61: =VALUE(АНГЛИЯ!E61) -> 680 | F61: =VALUE(АНГЛИЯ!F61) -> 0 | G61: =VALUE(АНГЛИЯ!G61) -> 181 | H61: =АНГЛИЯ!H61 -> 80 / 380 | I61: =IFERROR(VALUE(SUBSTITUTE(АНГЛИЯ!L61,".",",")),"") -> 8 | J61: =VALUE(АНГЛИЯ!J61) -> 47 | K61: =VALUE(АНГЛИЯ!K61) -> 8 | L61: =VALUE(АНГЛИЯ!L61) -> 8 | M61: =VALUE(АНГЛИЯ!M61) -> 31 | N61: =IFERROR(VALUE(SUBSTITUTE(АНГЛИЯ!N61,".",",")),"") -> 58.75 | O61: =VALUE(АНГЛИЯ!O61) -> 33 | P61: =IFERROR(VALUE(SUBSTITUTE(АНГЛИЯ!P61,".",",")),"") -> 79.82 | Q61: значения из листа АНГЛИЯ | R61: =SUMIF(C:C,C61,D:D) -> 1194
A62: 60 | B62: =АНГЛИЯ!B62 -> 59 | C62: =АНГЛИЯ!C62 -> Андрій Огороднік | D62: =VALUE(АНГЛИЯ!D62) -> 674 | E62: =VALUE(АНГЛИЯ!E62) -> 600 | F62: =VALUE(АНГЛИЯ!F62) -> 74 | G62: =VALUE(АНГЛИЯ!G62) -> 187 | H62: =АНГЛИЯ!H62 -> 70 / 380 | I62: =IFERROR(VALUE(SUBSTITUTE(АНГЛИЯ!L62,".",",")),"") -> 10 | J62: =VALUE(АНГЛИЯ!J62) -> 44 | K62: =VALUE(АНГЛИЯ!K62) -> 10 | L62: =VALUE(АНГЛИЯ!L62) -> 10 | M62: =VALUE(АНГЛИЯ!M62) -> 24 | N62: =IFERROR(VALUE(SUBSTITUTE(АНГЛИЯ!N62,".",",")),"") -> 62.86 | O62: =VALUE(АНГЛИЯ!O62) -> 26 | P62: =IFERROR(VALUE(SUBSTITUTE(АНГЛИЯ!P62,".",",")),"") -> 90.13 | Q62: значения из листа АНГЛИЯ | R62: =SUMIF(C:C,C62,D:D) -> 1010
A63: 61 | B63: =АНГЛИЯ!B63 -> 60 | C63: =АНГЛИЯ!C63 -> rumkot | D63: =VALUE(АНГЛИЯ!D63) -> 672 | E63: =VALUE(АНГЛИЯ!E63) -> 672 | F63: =VALUE(АНГЛИЯ!F63) -> 0 | G63: =VALUE(АНГЛИЯ!G63) -> 189 | H63: =АНГЛИЯ!H63 -> 80 / 380 | I63: =IFERROR(VALUE(SUBSTITUTE(АНГЛИЯ!L63,".",",")),"") -> 13 | J63: =VALUE(АНГЛИЯ!J63) -> 47 | K63: =VALUE(АНГЛИЯ!K63) -> 6 | L63: =VALUE(АНГЛИЯ!L63) -> 13 | M63: =VALUE(АНГЛИЯ!M63) -> 28 | N63: =IFERROR(VALUE(SUBSTITUTE(АНГЛИЯ!N63,".",",")),"") -> 58.75 | O63: =VALUE(АНГЛИЯ!O63) -> 33 | P63: =IFERROR(VALUE(SUBSTITUTE(АНГЛИЯ!P63,".",",")),"") -> 82.77 | Q63: значения из листа АНГЛИЯ | R63: =SUMIF(C:C,C63,D:D) -> 1146
A64: 62 | B64: =АНГЛИЯ!B64 -> 61 | C64: =АНГЛИЯ!C64 -> BIHHI87 | D64: =VALUE(АНГЛИЯ!D64) -> 665 | E64: =VALUE(АНГЛИЯ!E64) -> 598 | F64: =VALUE(АНГЛИЯ!F64) -> 67 | G64: =VALUE(АНГЛИЯ!G64) -> 196 | H64: =АНГЛИЯ!H64 -> 70 / 380 | I64: =IFERROR(VALUE(SUBSTITUTE(АНГЛИЯ!L64,".",",")),"") -> 6 | J64: =VALUE(АНГЛИЯ!J64) -> 44 | K64: =VALUE(АНГЛИЯ!K64) -> 6 | L64: =VALUE(АНГЛИЯ!L64) -> 6 | M64: =VALUE(АНГЛИЯ!M64) -> 32 | N64: =IFERROR(VALUE(SUBSTITUTE(АНГЛИЯ!N64,".",",")),"") -> 62.86 | O64: =VALUE(АНГЛИЯ!O64) -> 26 | P64: =IFERROR(VALUE(SUBSTITUTE(АНГЛИЯ!P64,".",",")),"") -> 83.45 | Q64: значения из листа АНГЛИЯ | R64: =SUMIF(C:C,C64,D:D) -> 665
A65: 63 | B65: =АНГЛИЯ!B65 -> 62 | C65: =АНГЛИЯ!C65 -> Pavel4613 | D65: =VALUE(АНГЛИЯ!D65) -> 664 | E65: =VALUE(АНГЛИЯ!E65) -> 664 | F65: =VALUE(АНГЛИЯ!F65) -> 0 | G65: =VALUE(АНГЛИЯ!G65) -> 197 | H65: =АНГЛИЯ!H65 -> 80 / 380 | I65: =IFERROR(VALUE(SUBSTITUTE(АНГЛИЯ!L65,".",",")),"") -> 10 | J65: =VALUE(АНГЛИЯ!J65) -> 45 | K65: =VALUE(АНГЛИЯ!K65) -> 10 | L65: =VALUE(АНГЛИЯ!L65) -> 10 | M65: =VALUE(АНГЛИЯ!M65) -> 25 | N65: =IFERROR(VALUE(SUBSTITUTE(АНГЛИЯ!N65,".",",")),"") -> 56.25 | O65: =VALUE(АНГЛИЯ!O65) -> 35 | P65: =IFERROR(VALUE(SUBSTITUTE(АНГЛИЯ!P65,".",",")),"") -> 87.84 | Q65: значения из листа АНГЛИЯ | R65: =SUMIF(C:C,C65,D:D) -> 1191
A66: 64 | B66: =АНГЛИЯ!B66 -> 63 | C66: =АНГЛИЯ!C66 -> Petrovish-35. | D66: =VALUE(АНГЛИЯ!D66) -> 657 | E66: =VALUE(АНГЛИЯ!E66) -> 568 | F66: =VALUE(АНГЛИЯ!F66) -> 89 | G66: =VALUE(АНГЛИЯ!G66) -> 204 | H66: =АНГЛИЯ!H66 -> 70 / 380 | I66: =IFERROR(VALUE(SUBSTITUTE(АНГЛИЯ!L66,".",",")),"") -> 4 | J66: =VALUE(АНГЛИЯ!J66) -> 39 | K66: =VALUE(АНГЛИЯ!K66) -> 6 | L66: =VALUE(АНГЛИЯ!L66) -> 4 | M66: =VALUE(АНГЛИЯ!M66) -> 29 | N66: =IFERROR(VALUE(SUBSTITUTE(АНГЛИЯ!N66,".",",")),"") -> 55.71 | O66: =VALUE(АНГЛИЯ!O66) -> 31 | P66: =IFERROR(VALUE(SUBSTITUTE(АНГЛИЯ!P66,".",",")),"") -> 66.96 | Q66: значения из листа АНГЛИЯ | R66: =SUMIF(C:C,C66,D:D) -> 1144
A67: 65 | B67: =АНГЛИЯ!B67 -> 64 | C67: =АНГЛИЯ!C67 -> cska5 | D67: =VALUE(АНГЛИЯ!D67) -> 653 | E67: =VALUE(АНГЛИЯ!E67) -> 653 | F67: =VALUE(АНГЛИЯ!F67) -> 0 | G67: =VALUE(АНГЛИЯ!G67) -> 208 | H67: =АНГЛИЯ!H67 -> 80 / 380 | I67: =IFERROR(VALUE(SUBSTITUTE(АНГЛИЯ!L67,".",",")),"") -> 6 | J67: =VALUE(АНГЛИЯ!J67) -> 45 | K67: =VALUE(АНГЛИЯ!K67) -> 7 | L67: =VALUE(АНГЛИЯ!L67) -> 6 | M67: =VALUE(АНГЛИЯ!M67) -> 32 | N67: =IFERROR(VALUE(SUBSTITUTE(АНГЛИЯ!N67,".",",")),"") -> 56.25 | O67: =VALUE(АНГЛИЯ!O67) -> 35 | P67: =IFERROR(VALUE(SUBSTITUTE(АНГЛИЯ!P67,".",",")),"") -> 77.12 | Q67: значения из листа АНГЛИЯ | R67: =SUMIF(C:C,C67,D:D) -> 1164
A68: 66 | B68: =АНГЛИЯ!B68 -> 65 | C68: =АНГЛИЯ!C68 -> aleks22411971 | D68: =VALUE(АНГЛИЯ!D68) -> 644 | E68: =VALUE(АНГЛИЯ!E68) -> 644 | F68: =VALUE(АНГЛИЯ!F68) -> 0 | G68: =VALUE(АНГЛИЯ!G68) -> 217 | H68: =АНГЛИЯ!H68 -> 80 / 380 | I68: =IFERROR(VALUE(SUBSTITUTE(АНГЛИЯ!L68,".",",")),"") -> 10 | J68: =VALUE(АНГЛИЯ!J68) -> 46 | K68: =VALUE(АНГЛИЯ!K68) -> 7 | L68: =VALUE(АНГЛИЯ!L68) -> 10 | M68: =VALUE(АНГЛИЯ!M68) -> 29 | N68: =IFERROR(VALUE(SUBSTITUTE(АНГЛИЯ!N68,".",",")),"") -> 57.5 | O68: =VALUE(АНГЛИЯ!O68) -> 34 | P68: =IFERROR(VALUE(SUBSTITUTE(АНГЛИЯ!P68,".",",")),"") -> 91.15 | Q68: значения из листа АНГЛИЯ | R68: =SUMIF(C:C,C68,D:D) -> 1196
A69: 67 | B69: =АНГЛИЯ!B69 -> 66 | C69: =АНГЛИЯ!C69 -> ruslan | D69: =VALUE(АНГЛИЯ!D69) -> 634 | E69: =VALUE(АНГЛИЯ!E69) -> 634 | F69: =VALUE(АНГЛИЯ!F69) -> 0 | G69: =VALUE(АНГЛИЯ!G69) -> 227 | H69: =АНГЛИЯ!H69 -> 74 / 380 | I69: =IFERROR(VALUE(SUBSTITUTE(АНГЛИЯ!L69,".",",")),"") -> 11 | J69: =VALUE(АНГЛИЯ!J69) -> 45 | K69: =VALUE(АНГЛИЯ!K69) -> 4 | L69: =VALUE(АНГЛИЯ!L69) -> 11 | M69: =VALUE(АНГЛИЯ!M69) -> 30 | N69: =IFERROR(VALUE(SUBSTITUTE(АНГЛИЯ!N69,".",",")),"") -> 60.81 | O69: =VALUE(АНГЛИЯ!O69) -> 29 | P69: =IFERROR(VALUE(SUBSTITUTE(АНГЛИЯ!P69,".",",")),"") -> 86.78 | Q69: значения из листа АНГЛИЯ | R69: =SUMIF(C:C,C69,D:D) -> 1069
A70: 68 | B70: =АНГЛИЯ!B70 -> 67 | C70: =АНГЛИЯ!C70 -> hnatko | D70: =VALUE(АНГЛИЯ!D70) -> 628 | E70: =VALUE(АНГЛИЯ!E70) -> 618 | F70: =VALUE(АНГЛИЯ!F70) -> 10 | G70: =VALUE(АНГЛИЯ!G70) -> 233 | H70: =АНГЛИЯ!H70 -> 78 / 380 | I70: =IFERROR(VALUE(SUBSTITUTE(АНГЛИЯ!L70,".",",")),"") -> 13 | J70: =VALUE(АНГЛИЯ!J70) -> 38 | K70: =VALUE(АНГЛИЯ!K70) -> 6 | L70: =VALUE(АНГЛИЯ!L70) -> 13 | M70: =VALUE(АНГЛИЯ!M70) -> 19 | N70: =IFERROR(VALUE(SUBSTITUTE(АНГЛИЯ!N70,".",",")),"") -> 48.72 | O70: =VALUE(АНГЛИЯ!O70) -> 40 | P70: =IFERROR(VALUE(SUBSTITUTE(АНГЛИЯ!P70,".",",")),"") -> 74.84 | Q70: значения из листа АНГЛИЯ | R70: =SUMIF(C:C,C70,D:D) -> 1086
A71: 69 | B71: =АНГЛИЯ!B71 -> 68 | C71: =АНГЛИЯ!C71 -> VladS | D71: =VALUE(АНГЛИЯ!D71) -> 628 | E71: =VALUE(АНГЛИЯ!E71) -> 540 | F71: =VALUE(АНГЛИЯ!F71) -> 88 | G71: =VALUE(АНГЛИЯ!G71) -> 233 | H71: =АНГЛИЯ!H71 -> 60 / 380 | I71: =IFERROR(VALUE(SUBSTITUTE(АНГЛИЯ!L71,".",",")),"") -> 4 | J71: =VALUE(АНГЛИЯ!J71) -> 38 | K71: =VALUE(АНГЛИЯ!K71) -> 8 | L71: =VALUE(АНГЛИЯ!L71) -> 4 | M71: =VALUE(АНГЛИЯ!M71) -> 26 | N71: =IFERROR(VALUE(SUBSTITUTE(АНГЛИЯ!N71,".",",")),"") -> 63.33 | O71: =VALUE(АНГЛИЯ!O71) -> 22 | P71: =IFERROR(VALUE(SUBSTITUTE(АНГЛИЯ!P71,".",",")),"") -> 69.31 | Q71: значения из листа АНГЛИЯ | R71: =SUMIF(C:C,C71,D:D) -> 956
A72: 70 | B72: =АНГЛИЯ!B72 -> 69 | C72: =АНГЛИЯ!C72 -> MasterC4 | D72: =VALUE(АНГЛИЯ!D72) -> 625 | E72: =VALUE(АНГЛИЯ!E72) -> 534 | F72: =VALUE(АНГЛИЯ!F72) -> 91 | G72: =VALUE(АНГЛИЯ!G72) -> 236 | H72: =АНГЛИЯ!H72 -> 62 / 380 | I72: =IFERROR(VALUE(SUBSTITUTE(АНГЛИЯ!L72,".",",")),"") -> 10 | J72: =VALUE(АНГЛИЯ!J72) -> 39 | K72: =VALUE(АНГЛИЯ!K72) -> 5 | L72: =VALUE(АНГЛИЯ!L72) -> 10 | M72: =VALUE(АНГЛИЯ!M72) -> 24 | N72: =IFERROR(VALUE(SUBSTITUTE(АНГЛИЯ!N72,".",",")),"") -> 62.9 | O72: =VALUE(АНГЛИЯ!O72) -> 23 | P72: =IFERROR(VALUE(SUBSTITUTE(АНГЛИЯ!P72,".",",")),"") -> 76.65 | Q72: значения из листа АНГЛИЯ | R72: =SUMIF(C:C,C72,D:D) -> 1099
A73: 71 | B73: =АНГЛИЯ!B73 -> 70 | C73: =АНГЛИЯ!C73 -> Emmanuel Oboubi | D73: =VALUE(АНГЛИЯ!D73) -> 623 | E73: =VALUE(АНГЛИЯ!E73) -> 535 | F73: =VALUE(АНГЛИЯ!F73) -> 88 | G73: =VALUE(АНГЛИЯ!G73) -> 238 | H73: =АНГЛИЯ!H73 -> 61 / 380 | I73: =IFERROR(VALUE(SUBSTITUTE(АНГЛИЯ!L73,".",",")),"") -> 10 | J73: =VALUE(АНГЛИЯ!J73) -> 37 | K73: =VALUE(АНГЛИЯ!K73) -> 3 | L73: =VALUE(АНГЛИЯ!L73) -> 10 | M73: =VALUE(АНГЛИЯ!M73) -> 24 | N73: =IFERROR(VALUE(SUBSTITUTE(АНГЛИЯ!N73,".",",")),"") -> 60.66 | O73: =VALUE(АНГЛИЯ!O73) -> 24 | P73: =IFERROR(VALUE(SUBSTITUTE(АНГЛИЯ!P73,".",",")),"") -> 70.76 | Q73: значения из листа АНГЛИЯ | R73: =SUMIF(C:C,C73,D:D) -> 1010
A74: 72 | B74: =АНГЛИЯ!B74 -> 71 | C74: =АНГЛИЯ!C74 -> Вова Щур | D74: =VALUE(АНГЛИЯ!D74) -> 618 | E74: =VALUE(АНГЛИЯ!E74) -> 618 | F74: =VALUE(АНГЛИЯ!F74) -> 0 | G74: =VALUE(АНГЛИЯ!G74) -> 243 | H74: =АНГЛИЯ!H74 -> 80 / 380 | I74: =IFERROR(VALUE(SUBSTITUTE(АНГЛИЯ!L74,".",",")),"") -> 9 | J74: =VALUE(АНГЛИЯ!J74) -> 45 | K74: =VALUE(АНГЛИЯ!K74) -> 10 | L74: =VALUE(АНГЛИЯ!L74) -> 9 | M74: =VALUE(АНГЛИЯ!M74) -> 26 | N74: =IFERROR(VALUE(SUBSTITUTE(АНГЛИЯ!N74,".",",")),"") -> 56.25 | O74: =VALUE(АНГЛИЯ!O74) -> 35 | P74: =IFERROR(VALUE(SUBSTITUTE(АНГЛИЯ!P74,".",",")),"") -> 78.99 | Q74: значения из листа АНГЛИЯ | R74: =SUMIF(C:C,C74,D:D) -> 1038
A75: 73 | B75: =АНГЛИЯ!B75 -> 72 | C75: =АНГЛИЯ!C75 -> ziama | D75: =VALUE(АНГЛИЯ!D75) -> 605 | E75: =VALUE(АНГЛИЯ!E75) -> 509 | F75: =VALUE(АНГЛИЯ!F75) -> 96 | G75: =VALUE(АНГЛИЯ!G75) -> 256 | H75: =АНГЛИЯ!H75 -> 70 / 380 | I75: =IFERROR(VALUE(SUBSTITUTE(АНГЛИЯ!L75,".",",")),"") -> 10 | J75: =VALUE(АНГЛИЯ!J75) -> 29 | K75: =VALUE(АНГЛИЯ!K75) -> 8 | L75: =VALUE(АНГЛИЯ!L75) -> 10 | M75: =VALUE(АНГЛИЯ!M75) -> 11 | N75: =IFERROR(VALUE(SUBSTITUTE(АНГЛИЯ!N75,".",",")),"") -> 41.43 | O75: =VALUE(АНГЛИЯ!O75) -> 41 | P75: =IFERROR(VALUE(SUBSTITUTE(АНГЛИЯ!P75,".",",")),"") -> 82.3 | Q75: значения из листа АНГЛИЯ | R75: =SUMIF(C:C,C75,D:D) -> 996
A76: 74 | B76: =АНГЛИЯ!B76 -> 73 | C76: =АНГЛИЯ!C76 -> Sergyn9 | D76: =VALUE(АНГЛИЯ!D76) -> 595 | E76: =VALUE(АНГЛИЯ!E76) -> 503 | F76: =VALUE(АНГЛИЯ!F76) -> 92 | G76: =VALUE(АНГЛИЯ!G76) -> 266 | H76: =АНГЛИЯ!H76 -> 54 / 380 | I76: =IFERROR(VALUE(SUBSTITUTE(АНГЛИЯ!L76,".",",")),"") -> 10 | J76: =VALUE(АНГЛИЯ!J76) -> 37 | K76: =VALUE(АНГЛИЯ!K76) -> 8 | L76: =VALUE(АНГЛИЯ!L76) -> 10 | M76: =VALUE(АНГЛИЯ!M76) -> 19 | N76: =IFERROR(VALUE(SUBSTITUTE(АНГЛИЯ!N76,".",",")),"") -> 68.52 | O76: =VALUE(АНГЛИЯ!O76) -> 17 | P76: =IFERROR(VALUE(SUBSTITUTE(АНГЛИЯ!P76,".",",")),"") -> 71.33 | Q76: значения из листа АНГЛИЯ | R76: =SUMIF(C:C,C76,D:D) -> 831
A77: 75 | B77: =АНГЛИЯ!B77 -> 74 | C77: =АНГЛИЯ!C77 -> DAV1978 | D77: =VALUE(АНГЛИЯ!D77) -> 586 | E77: =VALUE(АНГЛИЯ!E77) -> 586 | F77: =VALUE(АНГЛИЯ!F77) -> 0 | G77: =VALUE(АНГЛИЯ!G77) -> 275 | H77: =АНГЛИЯ!H77 -> 80 / 380 | I77: =IFERROR(VALUE(SUBSTITUTE(АНГЛИЯ!L77,".",",")),"") -> 13 | J77: =VALUE(АНГЛИЯ!J77) -> 34 | K77: =VALUE(АНГЛИЯ!K77) -> 4 | L77: =VALUE(АНГЛИЯ!L77) -> 13 | M77: =VALUE(АНГЛИЯ!M77) -> 17 | N77: =IFERROR(VALUE(SUBSTITUTE(АНГЛИЯ!N77,".",",")),"") -> 42.5 | O77: =VALUE(АНГЛИЯ!O77) -> 46 | P77: =IFERROR(VALUE(SUBSTITUTE(АНГЛИЯ!P77,".",",")),"") -> 67.53 | Q77: значения из листа АНГЛИЯ | R77: =SUMIF(C:C,C77,D:D) -> 1068
A78: 76 | B78: =АНГЛИЯ!B78 -> 75 | C78: =АНГЛИЯ!C78 -> динамо | D78: =VALUE(АНГЛИЯ!D78) -> 571 | E78: =VALUE(АНГЛИЯ!E78) -> 496 | F78: =VALUE(АНГЛИЯ!F78) -> 75 | G78: =VALUE(АНГЛИЯ!G78) -> 290 | H78: =АНГЛИЯ!H78 -> 60 / 380 | I78: =IFERROR(VALUE(SUBSTITUTE(АНГЛИЯ!L78,".",",")),"") -> 3 | J78: =VALUE(АНГЛИЯ!J78) -> 33 | K78: =VALUE(АНГЛИЯ!K78) -> 7 | L78: =VALUE(АНГЛИЯ!L78) -> 3 | M78: =VALUE(АНГЛИЯ!M78) -> 23 | N78: =IFERROR(VALUE(SUBSTITUTE(АНГЛИЯ!N78,".",",")),"") -> 55 | O78: =VALUE(АНГЛИЯ!O78) -> 27 | P78: =IFERROR(VALUE(SUBSTITUTE(АНГЛИЯ!P78,".",",")),"") -> 60.22 | Q78: значения из листа АНГЛИЯ | R78: =SUMIF(C:C,C78,D:D) -> 958
A79: 77 | B79: =АНГЛИЯ!B79 -> 76 | C79: =АНГЛИЯ!C79 -> Tosha13 | D79: =VALUE(АНГЛИЯ!D79) -> 549 | E79: =VALUE(АНГЛИЯ!E79) -> 468 | F79: =VALUE(АНГЛИЯ!F79) -> 81 | G79: =VALUE(АНГЛИЯ!G79) -> 312 | H79: =АНГЛИЯ!H79 -> 50 / 380 | I79: =IFERROR(VALUE(SUBSTITUTE(АНГЛИЯ!L79,".",",")),"") -> 6 | J79: =VALUE(АНГЛИЯ!J79) -> 31 | K79: =VALUE(АНГЛИЯ!K79) -> 8 | L79: =VALUE(АНГЛИЯ!L79) -> 6 | M79: =VALUE(АНГЛИЯ!M79) -> 17 | N79: =IFERROR(VALUE(SUBSTITUTE(АНГЛИЯ!N79,".",",")),"") -> 62 | O79: =VALUE(АНГЛИЯ!O79) -> 19 | P79: =IFERROR(VALUE(SUBSTITUTE(АНГЛИЯ!P79,".",",")),"") -> 55.18 | Q79: значения из листа АНГЛИЯ | R79: =SUMIF(C:C,C79,D:D) -> 859
A80: 78 | B80: =АНГЛИЯ!B80 -> 77 | C80: =АНГЛИЯ!C80 -> nickthesecond | D80: =VALUE(АНГЛИЯ!D80) -> 548 | E80: =VALUE(АНГЛИЯ!E80) -> 482 | F80: =VALUE(АНГЛИЯ!F80) -> 66 | G80: =VALUE(АНГЛИЯ!G80) -> 313 | H80: =АНГЛИЯ!H80 -> 70 / 380 | I80: =IFERROR(VALUE(SUBSTITUTE(АНГЛИЯ!L80,".",",")),"") -> 8 | J80: =VALUE(АНГЛИЯ!J80) -> 27 | K80: =VALUE(АНГЛИЯ!K80) -> 6 | L80: =VALUE(АНГЛИЯ!L80) -> 8 | M80: =VALUE(АНГЛИЯ!M80) -> 13 | N80: =IFERROR(VALUE(SUBSTITUTE(АНГЛИЯ!N80,".",",")),"") -> 38.57 | O80: =VALUE(АНГЛИЯ!O80) -> 43 | P80: =IFERROR(VALUE(SUBSTITUTE(АНГЛИЯ!P80,".",",")),"") -> 73.94 | Q80: значения из листа АНГЛИЯ | R80: =SUMIF(C:C,C80,D:D) -> 912
A81: 79 | B81: =АНГЛИЯ!B81 -> 78 | C81: =АНГЛИЯ!C81 -> dander | D81: =VALUE(АНГЛИЯ!D81) -> 526 | E81: =VALUE(АНГЛИЯ!E81) -> 474 | F81: =VALUE(АНГЛИЯ!F81) -> 52 | G81: =VALUE(АНГЛИЯ!G81) -> 335 | H81: =АНГЛИЯ!H81 -> 70 / 380 | I81: =IFERROR(VALUE(SUBSTITUTE(АНГЛИЯ!L81,".",",")),"") -> 6 | J81: =VALUE(АНГЛИЯ!J81) -> 27 | K81: =VALUE(АНГЛИЯ!K81) -> 9 | L81: =VALUE(АНГЛИЯ!L81) -> 6 | M81: =VALUE(АНГЛИЯ!M81) -> 12 | N81: =IFERROR(VALUE(SUBSTITUTE(АНГЛИЯ!N81,".",",")),"") -> 38.57 | O81: =VALUE(АНГЛИЯ!O81) -> 43 | P81: =IFERROR(VALUE(SUBSTITUTE(АНГЛИЯ!P81,".",",")),"") -> 66.49 | Q81: значения из листа АНГЛИЯ | R81: =SUMIF(C:C,C81,D:D) -> 891
A82: 80 | B82: =АНГЛИЯ!B82 -> 79 | C82: =АНГЛИЯ!C82 -> l1der | D82: =VALUE(АНГЛИЯ!D82) -> 526 | E82: =VALUE(АНГЛИЯ!E82) -> 461 | F82: =VALUE(АНГЛИЯ!F82) -> 65 | G82: =VALUE(АНГЛИЯ!G82) -> 335 | H82: =АНГЛИЯ!H82 -> 70 / 380 | I82: =IFERROR(VALUE(SUBSTITUTE(АНГЛИЯ!L82,".",",")),"") -> 7 | J82: =VALUE(АНГЛИЯ!J82) -> 26 | K82: =VALUE(АНГЛИЯ!K82) -> 8 | L82: =VALUE(АНГЛИЯ!L82) -> 7 | M82: =VALUE(АНГЛИЯ!M82) -> 11 | N82: =IFERROR(VALUE(SUBSTITUTE(АНГЛИЯ!N82,".",",")),"") -> 37.14 | O82: =VALUE(АНГЛИЯ!O82) -> 44 | P82: =IFERROR(VALUE(SUBSTITUTE(АНГЛИЯ!P82,".",",")),"") -> 72.46 | Q82: значения из листа АНГЛИЯ | R82: =SUMIF(C:C,C82,D:D) -> 907
A83: 81 | B83: =АНГЛИЯ!B83 -> 80 | C83: =АНГЛИЯ!C83 -> sergey.derx | D83: =VALUE(АНГЛИЯ!D83) -> 507 | E83: =VALUE(АНГЛИЯ!E83) -> 483 | F83: =VALUE(АНГЛИЯ!F83) -> 24 | G83: =VALUE(АНГЛИЯ!G83) -> 354 | H83: =АНГЛИЯ!H83 -> 70 / 380 | I83: =IFERROR(VALUE(SUBSTITUTE(АНГЛИЯ!L83,".",",")),"") -> 6 | J83: =VALUE(АНГЛИЯ!J83) -> 29 | K83: =VALUE(АНГЛИЯ!K83) -> 7 | L83: =VALUE(АНГЛИЯ!L83) -> 6 | M83: =VALUE(АНГЛИЯ!M83) -> 16 | N83: =IFERROR(VALUE(SUBSTITUTE(АНГЛИЯ!N83,".",",")),"") -> 41.43 | O83: =VALUE(АНГЛИЯ!O83) -> 41 | P83: =IFERROR(VALUE(SUBSTITUTE(АНГЛИЯ!P83,".",",")),"") -> 80 | Q83: значения из листа АНГЛИЯ | R83: =SUMIF(C:C,C83,D:D) -> 835
A84: 82 | B84: =АНГЛИЯ!B84 -> 81 | C84: =АНГЛИЯ!C84 -> andrpo1 | D84: =VALUE(АНГЛИЯ!D84) -> 496 | E84: =VALUE(АНГЛИЯ!E84) -> 446 | F84: =VALUE(АНГЛИЯ!F84) -> 50 | G84: =VALUE(АНГЛИЯ!G84) -> 365 | H84: =АНГЛИЯ!H84 -> 70 / 380 | I84: =IFERROR(VALUE(SUBSTITUTE(АНГЛИЯ!L84,".",",")),"") -> 11 | J84: =VALUE(АНГЛИЯ!J84) -> 25 | K84: =VALUE(АНГЛИЯ!K84) -> 4 | L84: =VALUE(АНГЛИЯ!L84) -> 11 | M84: =VALUE(АНГЛИЯ!M84) -> 10 | N84: =IFERROR(VALUE(SUBSTITUTE(АНГЛИЯ!N84,".",",")),"") -> 35.71 | O84: =VALUE(АНГЛИЯ!O84) -> 45 | P84: =IFERROR(VALUE(SUBSTITUTE(АНГЛИЯ!P84,".",",")),"") -> 61.24 | Q84: значения из листа АНГЛИЯ | R84: =SUMIF(C:C,C84,D:D) -> 829
A85: 83 | B85: =АНГЛИЯ!B85 -> 82 | C85: =АНГЛИЯ!C85 -> sergeyn | D85: =VALUE(АНГЛИЯ!D85) -> 495 | E85: =VALUE(АНГЛИЯ!E85) -> 417 | F85: =VALUE(АНГЛИЯ!F85) -> 78 | G85: =VALUE(АНГЛИЯ!G85) -> 366 | H85: =АНГЛИЯ!H85 -> 70 / 380 | I85: =IFERROR(VALUE(SUBSTITUTE(АНГЛИЯ!L85,".",",")),"") -> 6 | J85: =VALUE(АНГЛИЯ!J85) -> 22 | K85: =VALUE(АНГЛИЯ!K85) -> 3 | L85: =VALUE(АНГЛИЯ!L85) -> 6 | M85: =VALUE(АНГЛИЯ!M85) -> 13 | N85: =IFERROR(VALUE(SUBSTITUTE(АНГЛИЯ!N85,".",",")),"") -> 31.43 | O85: =VALUE(АНГЛИЯ!O85) -> 48 | P85: =IFERROR(VALUE(SUBSTITUTE(АНГЛИЯ!P85,".",",")),"") -> 52.65 | Q85: значения из листа АНГЛИЯ | R85: =SUMIF(C:C,C85,D:D) -> 795
A86: 84 | B86: =АНГЛИЯ!B86 -> 83 | C86: =АНГЛИЯ!C86 -> sparta1 | D86: =VALUE(АНГЛИЯ!D86) -> 480 | E86: =VALUE(АНГЛИЯ!E86) -> 418 | F86: =VALUE(АНГЛИЯ!F86) -> 62 | G86: =VALUE(АНГЛИЯ!G86) -> 381 | H86: =АНГЛИЯ!H86 -> 70 / 380 | I86: =IFERROR(VALUE(SUBSTITUTE(АНГЛИЯ!L86,".",",")),"") -> 9 | J86: =VALUE(АНГЛИЯ!J86) -> 23 | K86: =VALUE(АНГЛИЯ!K86) -> 2 | L86: =VALUE(АНГЛИЯ!L86) -> 9 | M86: =VALUE(АНГЛИЯ!M86) -> 12 | N86: =IFERROR(VALUE(SUBSTITUTE(АНГЛИЯ!N86,".",",")),"") -> 32.86 | O86: =VALUE(АНГЛИЯ!O86) -> 47 | P86: =IFERROR(VALUE(SUBSTITUTE(АНГЛИЯ!P86,".",",")),"") -> 53.35 | Q86: значения из листа АНГЛИЯ | R86: =SUMIF(C:C,C86,D:D) -> 835
A87: 85 | B87: =АНГЛИЯ!B87 -> 84 | C87: =АНГЛИЯ!C87 -> Drezden1 | D87: =VALUE(АНГЛИЯ!D87) -> 477 | E87: =VALUE(АНГЛИЯ!E87) -> 406 | F87: =VALUE(АНГЛИЯ!F87) -> 71 | G87: =VALUE(АНГЛИЯ!G87) -> 384 | H87: =АНГЛИЯ!H87 -> 70 / 380 | I87: =IFERROR(VALUE(SUBSTITUTE(АНГЛИЯ!L87,".",",")),"") -> 6 | J87: =VALUE(АНГЛИЯ!J87) -> 20 | K87: =VALUE(АНГЛИЯ!K87) -> 4 | L87: =VALUE(АНГЛИЯ!L87) -> 6 | M87: =VALUE(АНГЛИЯ!M87) -> 10 | N87: =IFERROR(VALUE(SUBSTITUTE(АНГЛИЯ!N87,".",",")),"") -> 28.57 | O87: =VALUE(АНГЛИЯ!O87) -> 50 | P87: =IFERROR(VALUE(SUBSTITUTE(АНГЛИЯ!P87,".",",")),"") -> 53.12 | Q87: значения из листа АНГЛИЯ | R87: =SUMIF(C:C,C87,D:D) -> 826
A88: 86 | B88: =АНГЛИЯ!B88 -> 85 | C88: =АНГЛИЯ!C88 -> RMadrid | D88: =VALUE(АНГЛИЯ!D88) -> 476 | E88: =VALUE(АНГЛИЯ!E88) -> 425 | F88: =VALUE(АНГЛИЯ!F88) -> 51 | G88: =VALUE(АНГЛИЯ!G88) -> 385 | H88: =АНГЛИЯ!H88 -> 70 / 380 | I88: =IFERROR(VALUE(SUBSTITUTE(АНГЛИЯ!L88,".",",")),"") -> 9 | J88: =VALUE(АНГЛИЯ!J88) -> 23 | K88: =VALUE(АНГЛИЯ!K88) -> 2 | L88: =VALUE(АНГЛИЯ!L88) -> 9 | M88: =VALUE(АНГЛИЯ!M88) -> 12 | N88: =IFERROR(VALUE(SUBSTITUTE(АНГЛИЯ!N88,".",",")),"") -> 32.86 | O88: =VALUE(АНГЛИЯ!O88) -> 47 | P88: =IFERROR(VALUE(SUBSTITUTE(АНГЛИЯ!P88,".",",")),"") -> 56.78 | Q88: значения из листа АНГЛИЯ | R88: =SUMIF(C:C,C88,D:D) -> 780
A89: 87 | B89: =АНГЛИЯ!B89 -> 86 | C89: =АНГЛИЯ!C89 -> Garry | D89: =VALUE(АНГЛИЯ!D89) -> 468 | E89: =VALUE(АНГЛИЯ!E89) -> 432 | F89: =VALUE(АНГЛИЯ!F89) -> 36 | G89: =VALUE(АНГЛИЯ!G89) -> 393 | H89: =АНГЛИЯ!H89 -> 70 / 380 | I89: =IFERROR(VALUE(SUBSTITUTE(АНГЛИЯ!L89,".",",")),"") -> 6 | J89: =VALUE(АНГЛИЯ!J89) -> 23 | K89: =VALUE(АНГЛИЯ!K89) -> 4 | L89: =VALUE(АНГЛИЯ!L89) -> 6 | M89: =VALUE(АНГЛИЯ!M89) -> 13 | N89: =IFERROR(VALUE(SUBSTITUTE(АНГЛИЯ!N89,".",",")),"") -> 32.86 | O89: =VALUE(АНГЛИЯ!O89) -> 47 | P89: =IFERROR(VALUE(SUBSTITUTE(АНГЛИЯ!P89,".",",")),"") -> 61.45 | Q89: значения из листа АНГЛИЯ | R89: =SUMIF(C:C,C89,D:D) -> 799
A90: 88 | B90: =АНГЛИЯ!B90 -> 87 | C90: =АНГЛИЯ!C90 -> Динар | D90: =VALUE(АНГЛИЯ!D90) -> 468 | E90: =VALUE(АНГЛИЯ!E90) -> 429 | F90: =VALUE(АНГЛИЯ!F90) -> 39 | G90: =VALUE(АНГЛИЯ!G90) -> 393 | H90: =АНГЛИЯ!H90 -> 70 / 380 | I90: =IFERROR(VALUE(SUBSTITUTE(АНГЛИЯ!L90,".",",")),"") -> 5 | J90: =VALUE(АНГЛИЯ!J90) -> 21 | K90: =VALUE(АНГЛИЯ!K90) -> 7 | L90: =VALUE(АНГЛИЯ!L90) -> 5 | M90: =VALUE(АНГЛИЯ!M90) -> 9 | N90: =IFERROR(VALUE(SUBSTITUTE(АНГЛИЯ!N90,".",",")),"") -> 30 | O90: =VALUE(АНГЛИЯ!O90) -> 49 | P90: =IFERROR(VALUE(SUBSTITUTE(АНГЛИЯ!P90,".",",")),"") -> 66.64 | Q90: значения из листа АНГЛИЯ | R90: =SUMIF(C:C,C90,D:D) -> 786
A91: 89 | B91: =АНГЛИЯ!B91 -> 88 | C91: =АНГЛИЯ!C91 -> dmol13 | D91: =VALUE(АНГЛИЯ!D91) -> 465 | E91: =VALUE(АНГЛИЯ!E91) -> 405 | F91: =VALUE(АНГЛИЯ!F91) -> 60 | G91: =VALUE(АНГЛИЯ!G91) -> 396 | H91: =АНГЛИЯ!H91 -> 70 / 380 | I91: =IFERROR(VALUE(SUBSTITUTE(АНГЛИЯ!L91,".",",")),"") -> 5 | J91: =VALUE(АНГЛИЯ!J91) -> 21 | K91: =VALUE(АНГЛИЯ!K91) -> 6 | L91: =VALUE(АНГЛИЯ!L91) -> 5 | M91: =VALUE(АНГЛИЯ!M91) -> 10 | N91: =IFERROR(VALUE(SUBSTITUTE(АНГЛИЯ!N91,".",",")),"") -> 30 | O91: =VALUE(АНГЛИЯ!O91) -> 49 | P91: =IFERROR(VALUE(SUBSTITUTE(АНГЛИЯ!P91,".",",")),"") -> 64.41 | Q91: значения из листа АНГЛИЯ | R91: =SUMIF(C:C,C91,D:D) -> 871
A92: 90 | B92: =АНГЛИЯ!B92 -> 89 | C92: =АНГЛИЯ!C92 -> white force | D92: =VALUE(АНГЛИЯ!D92) -> 458 | E92: =VALUE(АНГЛИЯ!E92) -> 404 | F92: =VALUE(АНГЛИЯ!F92) -> 54 | G92: =VALUE(АНГЛИЯ!G92) -> 403 | H92: =АНГЛИЯ!H92 -> 70 / 380 | I92: =IFERROR(VALUE(SUBSTITUTE(АНГЛИЯ!L92,".",",")),"") -> 6 | J92: =VALUE(АНГЛИЯ!J92) -> 18 | K92: =VALUE(АНГЛИЯ!K92) -> 1 | L92: =VALUE(АНГЛИЯ!L92) -> 6 | M92: =VALUE(АНГЛИЯ!M92) -> 11 | N92: =IFERROR(VALUE(SUBSTITUTE(АНГЛИЯ!N92,".",",")),"") -> 25.71 | O92: =VALUE(АНГЛИЯ!O92) -> 52 | P92: =IFERROR(VALUE(SUBSTITUTE(АНГЛИЯ!P92,".",",")),"") -> 40.75 | Q92: значения из листа АНГЛИЯ | R92: =SUMIF(C:C,C92,D:D) -> 837
A93: 91 | B93: =АНГЛИЯ!B93 -> 90 | C93: =АНГЛИЯ!C93 -> sS1mple | D93: =VALUE(АНГЛИЯ!D93) -> 452 | E93: =VALUE(АНГЛИЯ!E93) -> 422 | F93: =VALUE(АНГЛИЯ!F93) -> 30 | G93: =VALUE(АНГЛИЯ!G93) -> 409 | H93: =АНГЛИЯ!H93 -> 70 / 380 | I93: =IFERROR(VALUE(SUBSTITUTE(АНГЛИЯ!L93,".",",")),"") -> 9 | J93: =VALUE(АНГЛИЯ!J93) -> 23 | K93: =VALUE(АНГЛИЯ!K93) -> 2 | L93: =VALUE(АНГЛИЯ!L93) -> 9 | M93: =VALUE(АНГЛИЯ!M93) -> 12 | N93: =IFERROR(VALUE(SUBSTITUTE(АНГЛИЯ!N93,".",",")),"") -> 32.86 | O93: =VALUE(АНГЛИЯ!O93) -> 47 | P93: =IFERROR(VALUE(SUBSTITUTE(АНГЛИЯ!P93,".",",")),"") -> 55.43 | Q93: значения из листа АНГЛИЯ | R93: =SUMIF(C:C,C93,D:D) -> 779
A94: 92 | B94: =АНГЛИЯ!B94 -> 91 | C94: =АНГЛИЯ!C94 -> danaygol | D94: =VALUE(АНГЛИЯ!D94) -> 451 | E94: =VALUE(АНГЛИЯ!E94) -> 426 | F94: =VALUE(АНГЛИЯ!F94) -> 25 | G94: =VALUE(АНГЛИЯ!G94) -> 410 | H94: =АНГЛИЯ!H94 -> 55 / 380 | I94: =IFERROR(VALUE(SUBSTITUTE(АНГЛИЯ!L94,".",",")),"") -> 6 | J94: =VALUE(АНГЛИЯ!J94) -> 27 | K94: =VALUE(АНГЛИЯ!K94) -> 6 | L94: =VALUE(АНГЛИЯ!L94) -> 6 | M94: =VALUE(АНГЛИЯ!M94) -> 15 | N94: =IFERROR(VALUE(SUBSTITUTE(АНГЛИЯ!N94,".",",")),"") -> 49.09 | O94: =VALUE(АНГЛИЯ!O94) -> 28 | P94: =IFERROR(VALUE(SUBSTITUTE(АНГЛИЯ!P94,".",",")),"") -> 52.55 | Q94: значения из листа АНГЛИЯ | R94: =SUMIF(C:C,C94,D:D) -> 917
A95: 93 | B95: =АНГЛИЯ!B95 -> 92 | C95: =АНГЛИЯ!C95 -> Laster | D95: =VALUE(АНГЛИЯ!D95) -> 445 | E95: =VALUE(АНГЛИЯ!E95) -> 399 | F95: =VALUE(АНГЛИЯ!F95) -> 46 | G95: =VALUE(АНГЛИЯ!G95) -> 416 | H95: =АНГЛИЯ!H95 -> 70 / 380 | I95: =IFERROR(VALUE(SUBSTITUTE(АНГЛИЯ!L95,".",",")),"") -> 3 | J95: =VALUE(АНГЛИЯ!J95) -> 19 | K95: =VALUE(АНГЛИЯ!K95) -> 4 | L95: =VALUE(АНГЛИЯ!L95) -> 3 | M95: =VALUE(АНГЛИЯ!M95) -> 12 | N95: =IFERROR(VALUE(SUBSTITUTE(АНГЛИЯ!N95,".",",")),"") -> 27.14 | O95: =VALUE(АНГЛИЯ!O95) -> 51 | P95: =IFERROR(VALUE(SUBSTITUTE(АНГЛИЯ!P95,".",",")),"") -> 46.89 | Q95: значения из листа АНГЛИЯ | R95: =SUMIF(C:C,C95,D:D) -> 731
A96: 94 | B96: =АНГЛИЯ!B96 -> 93 | C96: =АНГЛИЯ!C96 -> FEt1s | D96: =VALUE(АНГЛИЯ!D96) -> 441 | E96: =VALUE(АНГЛИЯ!E96) -> 403 | F96: =VALUE(АНГЛИЯ!F96) -> 38 | G96: =VALUE(АНГЛИЯ!G96) -> 420 | H96: =АНГЛИЯ!H96 -> 70 / 380 | I96: =IFERROR(VALUE(SUBSTITUTE(АНГЛИЯ!L96,".",",")),"") -> 8 | J96: =VALUE(АНГЛИЯ!J96) -> 18 | K96: =VALUE(АНГЛИЯ!K96) -> 5 | L96: =VALUE(АНГЛИЯ!L96) -> 8 | M96: =VALUE(АНГЛИЯ!M96) -> 5 | N96: =IFERROR(VALUE(SUBSTITUTE(АНГЛИЯ!N96,".",",")),"") -> 25.71 | O96: =VALUE(АНГЛИЯ!O96) -> 52 | P96: =IFERROR(VALUE(SUBSTITUTE(АНГЛИЯ!P96,".",",")),"") -> 49 | Q96: значения из листа АНГЛИЯ | R96: =SUMIF(C:C,C96,D:D) -> 806
A97: 95 | B97: =АНГЛИЯ!B97 -> 94 | C97: =АНГЛИЯ!C97 -> Andrii Bilenkyi | D97: =VALUE(АНГЛИЯ!D97) -> 433 | E97: =VALUE(АНГЛИЯ!E97) -> 433 | F97: =VALUE(АНГЛИЯ!F97) -> 0 | G97: =VALUE(АНГЛИЯ!G97) -> 428 | H97: =АНГЛИЯ!H97 -> 54 / 380 | I97: =IFERROR(VALUE(SUBSTITUTE(АНГЛИЯ!L97,".",",")),"") -> 7 | J97: =VALUE(АНГЛИЯ!J97) -> 29 | K97: =VALUE(АНГЛИЯ!K97) -> 6 | L97: =VALUE(АНГЛИЯ!L97) -> 7 | M97: =VALUE(АНГЛИЯ!M97) -> 16 | N97: =IFERROR(VALUE(SUBSTITUTE(АНГЛИЯ!N97,".",",")),"") -> 53.7 | O97: =VALUE(АНГЛИЯ!O97) -> 25 | P97: =IFERROR(VALUE(SUBSTITUTE(АНГЛИЯ!P97,".",",")),"") -> 51.86 | Q97: значения из листа АНГЛИЯ | R97: =SUMIF(C:C,C97,D:D) -> 677
A98: 96 | B98: =АНГЛИЯ!B98 -> 95 | C98: =АНГЛИЯ!C98 -> ivan | D98: =VALUE(АНГЛИЯ!D98) -> 432 | E98: =VALUE(АНГЛИЯ!E98) -> 388 | F98: =VALUE(АНГЛИЯ!F98) -> 44 | G98: =VALUE(АНГЛИЯ!G98) -> 429 | H98: =АНГЛИЯ!H98 -> 70 / 380 | I98: =IFERROR(VALUE(SUBSTITUTE(АНГЛИЯ!L98,".",",")),"") -> 8 | J98: =VALUE(АНГЛИЯ!J98) -> 20 | K98: =VALUE(АНГЛИЯ!K98) -> 2 | L98: =VALUE(АНГЛИЯ!L98) -> 8 | M98: =VALUE(АНГЛИЯ!M98) -> 10 | N98: =IFERROR(VALUE(SUBSTITUTE(АНГЛИЯ!N98,".",",")),"") -> 28.57 | O98: =VALUE(АНГЛИЯ!O98) -> 50 | P98: =IFERROR(VALUE(SUBSTITUTE(АНГЛИЯ!P98,".",",")),"") -> 53.28 | Q98: значения из листа АНГЛИЯ | R98: =SUMIF(C:C,C98,D:D) -> 815
A99: 97 | B99: =АНГЛИЯ!B99 -> 96 | C99: =АНГЛИЯ!C99 -> thpred | D99: =VALUE(АНГЛИЯ!D99) -> 431 | E99: =VALUE(АНГЛИЯ!E99) -> 403 | F99: =VALUE(АНГЛИЯ!F99) -> 28 | G99: =VALUE(АНГЛИЯ!G99) -> 430 | H99: =АНГЛИЯ!H99 -> 70 / 380 | I99: =IFERROR(VALUE(SUBSTITUTE(АНГЛИЯ!L99,".",",")),"") -> 4 | J99: =VALUE(АНГЛИЯ!J99) -> 21 | K99: =VALUE(АНГЛИЯ!K99) -> 5 | L99: =VALUE(АНГЛИЯ!L99) -> 4 | M99: =VALUE(АНГЛИЯ!M99) -> 12 | N99: =IFERROR(VALUE(SUBSTITUTE(АНГЛИЯ!N99,".",",")),"") -> 30 | O99: =VALUE(АНГЛИЯ!O99) -> 49 | P99: =IFERROR(VALUE(SUBSTITUTE(АНГЛИЯ!P99,".",",")),"") -> 47.62 | Q99: значения из листа АНГЛИЯ | R99: =SUMIF(C:C,C99,D:D) -> 765
A100: 98 | B100: =АНГЛИЯ!B100 -> 97 | C100: =АНГЛИЯ!C100 -> forman-gert | D100: =VALUE(АНГЛИЯ!D100) -> 424 | E100: =VALUE(АНГЛИЯ!E100) -> 385 | F100: =VALUE(АНГЛИЯ!F100) -> 39 | G100: =VALUE(АНГЛИЯ!G100) -> 437 | H100: =АНГЛИЯ!H100 -> 70 / 380 | I100: =IFERROR(VALUE(SUBSTITUTE(АНГЛИЯ!L100,".",",")),"") -> 7 | J100: =VALUE(АНГЛИЯ!J100) -> 18 | K100: =VALUE(АНГЛИЯ!K100) -> 3 | L100: =VALUE(АНГЛИЯ!L100) -> 7 | M100: =VALUE(АНГЛИЯ!M100) -> 8 | N100: =IFERROR(VALUE(SUBSTITUTE(АНГЛИЯ!N100,".",",")),"") -> 25.71 | O100: =VALUE(АНГЛИЯ!O100) -> 52 | P100: =IFERROR(VALUE(SUBSTITUTE(АНГЛИЯ!P100,".",",")),"") -> 46.73 | Q100: значения из листа АНГЛИЯ | R100: =SUMIF(C:C,C100,D:D) -> 753
A101: 99 | B101: =АНГЛИЯ!B101 -> 98 | C101: =АНГЛИЯ!C101 -> G3rman | D101: =VALUE(АНГЛИЯ!D101) -> 423 | E101: =VALUE(АНГЛИЯ!E101) -> 381 | F101: =VALUE(АНГЛИЯ!F101) -> 42 | G101: =VALUE(АНГЛИЯ!G101) -> 438 | H101: =АНГЛИЯ!H101 -> 70 / 380 | I101: =IFERROR(VALUE(SUBSTITUTE(АНГЛИЯ!L101,".",",")),"") -> 7 | J101: =VALUE(АНГЛИЯ!J101) -> 18 | K101: =VALUE(АНГЛИЯ!K101) -> 4 | L101: =VALUE(АНГЛИЯ!L101) -> 7 | M101: =VALUE(АНГЛИЯ!M101) -> 7 | N101: =IFERROR(VALUE(SUBSTITUTE(АНГЛИЯ!N101,".",",")),"") -> 25.71 | O101: =VALUE(АНГЛИЯ!O101) -> 52 | P101: =IFERROR(VALUE(SUBSTITUTE(АНГЛИЯ!P101,".",",")),"") -> 52.28 | Q101: значения из листа АНГЛИЯ | R101: =SUMIF(C:C,C101,D:D) -> 772
A102: 100 | B102: =АНГЛИЯ!B102 -> 99 | C102: =АНГЛИЯ!C102 -> serg.ter | D102: =VALUE(АНГЛИЯ!D102) -> 417 | E102: =VALUE(АНГЛИЯ!E102) -> 398 | F102: =VALUE(АНГЛИЯ!F102) -> 19 | G102: =VALUE(АНГЛИЯ!G102) -> 444 | H102: =АНГЛИЯ!H102 -> 70 / 380 | I102: =IFERROR(VALUE(SUBSTITUTE(АНГЛИЯ!L102,".",",")),"") -> 9 | J102: =VALUE(АНГЛИЯ!J102) -> 20 | K102: =VALUE(АНГЛИЯ!K102) -> 2 | L102: =VALUE(АНГЛИЯ!L102) -> 9 | M102: =VALUE(АНГЛИЯ!M102) -> 9 | N102: =IFERROR(VALUE(SUBSTITUTE(АНГЛИЯ!N102,".",",")),"") -> 28.57 | O102: =VALUE(АНГЛИЯ!O102) -> 50 | P102: =IFERROR(VALUE(SUBSTITUTE(АНГЛИЯ!P102,".",",")),"") -> 45.56 | Q102: значения из листа АНГЛИЯ | R102: =SUMIF(C:C,C102,D:D) -> 753
A103: 101 | B103: =АНГЛИЯ!B103 -> 100 | C103: =АНГЛИЯ!C103 -> predictor | D103: =VALUE(АНГЛИЯ!D103) -> 413 | E103: =VALUE(АНГЛИЯ!E103) -> 383 | F103: =VALUE(АНГЛИЯ!F103) -> 30 | G103: =VALUE(АНГЛИЯ!G103) -> 448 | H103: =АНГЛИЯ!H103 -> 70 / 380 | I103: =IFERROR(VALUE(SUBSTITUTE(АНГЛИЯ!L103,".",",")),"") -> 5 | J103: =VALUE(АНГЛИЯ!J103) -> 17 | K103: =VALUE(АНГЛИЯ!K103) -> 2 | L103: =VALUE(АНГЛИЯ!L103) -> 5 | M103: =VALUE(АНГЛИЯ!M103) -> 10 | N103: =IFERROR(VALUE(SUBSTITUTE(АНГЛИЯ!N103,".",",")),"") -> 24.29 | O103: =VALUE(АНГЛИЯ!O103) -> 53 | P103: =IFERROR(VALUE(SUBSTITUTE(АНГЛИЯ!P103,".",",")),"") -> 42.66 | Q103: значения из листа АНГЛИЯ | R103: =SUMIF(C:C,C103,D:D) -> 740
A104: 102 | B104: =АНГЛИЯ!B104 -> 101 | C104: =АНГЛИЯ!C104 -> altaran | D104: =VALUE(АНГЛИЯ!D104) -> 410 | E104: =VALUE(АНГЛИЯ!E104) -> 382 | F104: =VALUE(АНГЛИЯ!F104) -> 28 | G104: =VALUE(АНГЛИЯ!G104) -> 451 | H104: =АНГЛИЯ!H104 -> 70 / 380 | I104: =IFERROR(VALUE(SUBSTITUTE(АНГЛИЯ!L104,".",",")),"") -> 4 | J104: =VALUE(АНГЛИЯ!J104) -> 17 | K104: =VALUE(АНГЛИЯ!K104) -> 3 | L104: =VALUE(АНГЛИЯ!L104) -> 4 | M104: =VALUE(АНГЛИЯ!M104) -> 10 | N104: =IFERROR(VALUE(SUBSTITUTE(АНГЛИЯ!N104,".",",")),"") -> 24.29 | O104: =VALUE(АНГЛИЯ!O104) -> 53 | P104: =IFERROR(VALUE(SUBSTITUTE(АНГЛИЯ!P104,".",",")),"") -> 38.18 | Q104: значения из листа АНГЛИЯ | R104: =SUMIF(C:C,C104,D:D) -> 707
A105: 103 | B105: =АНГЛИЯ!B105 -> 102 | C105: =АНГЛИЯ!C105 -> Sun | D105: =VALUE(АНГЛИЯ!D105) -> 391 | E105: =VALUE(АНГЛИЯ!E105) -> 326 | F105: =VALUE(АНГЛИЯ!F105) -> 65 | G105: =VALUE(АНГЛИЯ!G105) -> 470 | H105: =АНГЛИЯ!H105 -> 40 / 380 | I105: =IFERROR(VALUE(SUBSTITUTE(АНГЛИЯ!L105,".",",")),"") -> 5 | J105: =VALUE(АНГЛИЯ!J105) -> 23 | K105: =VALUE(АНГЛИЯ!K105) -> 4 | L105: =VALUE(АНГЛИЯ!L105) -> 5 | M105: =VALUE(АНГЛИЯ!M105) -> 14 | N105: =IFERROR(VALUE(SUBSTITUTE(АНГЛИЯ!N105,".",",")),"") -> 57.5 | O105: =VALUE(АНГЛИЯ!O105) -> 17 | P105: =IFERROR(VALUE(SUBSTITUTE(АНГЛИЯ!P105,".",",")),"") -> 40.36 | Q105: значения из листа АНГЛИЯ | R105: =SUMIF(C:C,C105,D:D) -> 597
A106: 104 | B106: =АНГЛИЯ!B106 -> 103 | C106: =АНГЛИЯ!C106 -> sergejserikov2017 | D106: =VALUE(АНГЛИЯ!D106) -> 370 | E106: =VALUE(АНГЛИЯ!E106) -> 313 | F106: =VALUE(АНГЛИЯ!F106) -> 57 | G106: =VALUE(АНГЛИЯ!G106) -> 491 | H106: =АНГЛИЯ!H106 -> 39 / 380 | I106: =IFERROR(VALUE(SUBSTITUTE(АНГЛИЯ!L106,".",",")),"") -> 5 | J106: =VALUE(АНГЛИЯ!J106) -> 22 | K106: =VALUE(АНГЛИЯ!K106) -> 2 | L106: =VALUE(АНГЛИЯ!L106) -> 5 | M106: =VALUE(АНГЛИЯ!M106) -> 15 | N106: =IFERROR(VALUE(SUBSTITUTE(АНГЛИЯ!N106,".",",")),"") -> 56.41 | O106: =VALUE(АНГЛИЯ!O106) -> 17 | P106: =IFERROR(VALUE(SUBSTITUTE(АНГЛИЯ!P106,".",",")),"") -> 40.49 | Q106: значения из листа АНГЛИЯ | R106: =SUMIF(C:C,C106,D:D) -> 502
A107: 105 | B107: =АНГЛИЯ!B107 -> 104 | C107: =АНГЛИЯ!C107 -> zTeref | D107: =VALUE(АНГЛИЯ!D107) -> 368 | E107: =VALUE(АНГЛИЯ!E107) -> 333 | F107: =VALUE(АНГЛИЯ!F107) -> 35 | G107: =VALUE(АНГЛИЯ!G107) -> 493 | H107: =АНГЛИЯ!H107 -> 70 / 380 | I107: =IFERROR(VALUE(SUBSTITUTE(АНГЛИЯ!L107,".",",")),"") -> 8 | J107: =VALUE(АНГЛИЯ!J107) -> 14 | K107: =VALUE(АНГЛИЯ!K107) -> 1 | L107: =VALUE(АНГЛИЯ!L107) -> 8 | M107: =VALUE(АНГЛИЯ!M107) -> 5 | N107: =IFERROR(VALUE(SUBSTITUTE(АНГЛИЯ!N107,".",",")),"") -> 20 | O107: =VALUE(АНГЛИЯ!O107) -> 56 | P107: =IFERROR(VALUE(SUBSTITUTE(АНГЛИЯ!P107,".",",")),"") -> 37.41 | Q107: значения из листа АНГЛИЯ | R107: =SUMIF(C:C,C107,D:D) -> 729
A108: 106 | B108: =АНГЛИЯ!B108 -> 105 | C108: =АНГЛИЯ!C108 -> TMfC1924 | D108: =VALUE(АНГЛИЯ!D108) -> 367 | E108: =VALUE(АНГЛИЯ!E108) -> 367 | F108: =VALUE(АНГЛИЯ!F108) -> 0 | G108: =VALUE(АНГЛИЯ!G108) -> 494 | H108: =АНГЛИЯ!H108 -> 41 / 380 | I108: =IFERROR(VALUE(SUBSTITUTE(АНГЛИЯ!L108,".",",")),"") -> 4 | J108: =VALUE(АНГЛИЯ!J108) -> 26 | K108: =VALUE(АНГЛИЯ!K108) -> 5 | L108: =VALUE(АНГЛИЯ!L108) -> 4 | M108: =VALUE(АНГЛИЯ!M108) -> 17 | N108: =IFERROR(VALUE(SUBSTITUTE(АНГЛИЯ!N108,".",",")),"") -> 63.41 | O108: =VALUE(АНГЛИЯ!O108) -> 15 | P108: =IFERROR(VALUE(SUBSTITUTE(АНГЛИЯ!P108,".",",")),"") -> 44.86 | Q108: значения из листа АНГЛИЯ | R108: =SUMIF(C:C,C108,D:D) -> 662
A109: 107 | B109: =АНГЛИЯ!B109 -> 106 | C109: =АНГЛИЯ!C109 -> lond0nka | D109: =VALUE(АНГЛИЯ!D109) -> 347 | E109: =VALUE(АНГЛИЯ!E109) -> 299 | F109: =VALUE(АНГЛИЯ!F109) -> 48 | G109: =VALUE(АНГЛИЯ!G109) -> 514 | H109: =АНГЛИЯ!H109 -> 30 / 380 | I109: =IFERROR(VALUE(SUBSTITUTE(АНГЛИЯ!L109,".",",")),"") -> 5 | J109: =VALUE(АНГЛИЯ!J109) -> 22 | K109: =VALUE(АНГЛИЯ!K109) -> 4 | L109: =VALUE(АНГЛИЯ!L109) -> 5 | M109: =VALUE(АНГЛИЯ!M109) -> 13 | N109: =IFERROR(VALUE(SUBSTITUTE(АНГЛИЯ!N109,".",",")),"") -> 73.33 | O109: =VALUE(АНГЛИЯ!O109) -> 8 | P109: =IFERROR(VALUE(SUBSTITUTE(АНГЛИЯ!P109,".",",")),"") -> 40.3 | Q109: значения из листа АНГЛИЯ | R109: =SUMIF(C:C,C109,D:D) -> 525
A110: 108 | B110: =АНГЛИЯ!B110 -> 107 | C110: =АНГЛИЯ!C110 -> mcichnik | D110: =VALUE(АНГЛИЯ!D110) -> 329 | E110: =VALUE(АНГЛИЯ!E110) -> 282 | F110: =VALUE(АНГЛИЯ!F110) -> 47 | G110: =VALUE(АНГЛИЯ!G110) -> 532 | H110: =АНГЛИЯ!H110 -> 39 / 380 | I110: =IFERROR(VALUE(SUBSTITUTE(АНГЛИЯ!L110,".",",")),"") -> 5 | J110: =VALUE(АНГЛИЯ!J110) -> 18 | K110: =VALUE(АНГЛИЯ!K110) -> 0 | L110: =VALUE(АНГЛИЯ!L110) -> 5 | M110: =VALUE(АНГЛИЯ!M110) -> 13 | N110: =IFERROR(VALUE(SUBSTITUTE(АНГЛИЯ!N110,".",",")),"") -> 46.15 | O110: =VALUE(АНГЛИЯ!O110) -> 21 | P110: =IFERROR(VALUE(SUBSTITUTE(АНГЛИЯ!P110,".",",")),"") -> 31.72 | Q110: значения из листа АНГЛИЯ | R110: =SUMIF(C:C,C110,D:D) -> 485
A111: 109 | B111: =АНГЛИЯ!B111 -> 108 | C111: =АНГЛИЯ!C111 -> rfnhfgc | D111: =VALUE(АНГЛИЯ!D111) -> 322 | E111: =VALUE(АНГЛИЯ!E111) -> 295 | F111: =VALUE(АНГЛИЯ!F111) -> 27 | G111: =VALUE(АНГЛИЯ!G111) -> 539 | H111: =АНГЛИЯ!H111 -> 37 / 380 | I111: =IFERROR(VALUE(SUBSTITUTE(АНГЛИЯ!L111,".",",")),"") -> 4 | J111: =VALUE(АНГЛИЯ!J111) -> 19 | K111: =VALUE(АНГЛИЯ!K111) -> 2 | L111: =VALUE(АНГЛИЯ!L111) -> 4 | M111: =VALUE(АНГЛИЯ!M111) -> 13 | N111: =IFERROR(VALUE(SUBSTITUTE(АНГЛИЯ!N111,".",",")),"") -> 51.35 | O111: =VALUE(АНГЛИЯ!O111) -> 18 | P111: =IFERROR(VALUE(SUBSTITUTE(АНГЛИЯ!P111,".",",")),"") -> 33.95 | Q111: значения из листа АНГЛИЯ | R111: =SUMIF(C:C,C111,D:D) -> 322
A112: 110 | B112: =АНГЛИЯ!B112 -> 109 | C112: =АНГЛИЯ!C112 -> Тагир Мурсалов | D112: =VALUE(АНГЛИЯ!D112) -> 309 | E112: =VALUE(АНГЛИЯ!E112) -> 281 | F112: =VALUE(АНГЛИЯ!F112) -> 28 | G112: =VALUE(АНГЛИЯ!G112) -> 552 | H112: =АНГЛИЯ!H112 -> 40 / 380 | I112: =IFERROR(VALUE(SUBSTITUTE(АНГЛИЯ!L112,".",",")),"") -> 1 | J112: =VALUE(АНГЛИЯ!J112) -> 17 | K112: =VALUE(АНГЛИЯ!K112) -> 4 | L112: =VALUE(АНГЛИЯ!L112) -> 1 | M112: =VALUE(АНГЛИЯ!M112) -> 12 | N112: =IFERROR(VALUE(SUBSTITUTE(АНГЛИЯ!N112,".",",")),"") -> 42.5 | O112: =VALUE(АНГЛИЯ!O112) -> 23 | P112: =IFERROR(VALUE(SUBSTITUTE(АНГЛИЯ!P112,".",",")),"") -> 28.3 | Q112: значения из листа АНГЛИЯ | R112: =SUMIF(C:C,C112,D:D) -> 507
A113: 111 | B113: =АНГЛИЯ!B113 -> 110 | C113: =АНГЛИЯ!C113 -> alex | D113: =VALUE(АНГЛИЯ!D113) -> 299 | E113: =VALUE(АНГЛИЯ!E113) -> 287 | F113: =VALUE(АНГЛИЯ!F113) -> 12 | G113: =VALUE(АНГЛИЯ!G113) -> 562 | H113: =АНГЛИЯ!H113 -> 43 / 380 | I113: =IFERROR(VALUE(SUBSTITUTE(АНГЛИЯ!L113,".",",")),"") -> 6 | J113: =VALUE(АНГЛИЯ!J113) -> 19 | K113: =VALUE(АНГЛИЯ!K113) -> 1 | L113: =VALUE(АНГЛИЯ!L113) -> 6 | M113: =VALUE(АНГЛИЯ!M113) -> 12 | N113: =IFERROR(VALUE(SUBSTITUTE(АНГЛИЯ!N113,".",",")),"") -> 44.19 | O113: =VALUE(АНГЛИЯ!O113) -> 24 | P113: =IFERROR(VALUE(SUBSTITUTE(АНГЛИЯ!P113,".",",")),"") -> 32.55 | Q113: значения из листа АНГЛИЯ | R113: =SUMIF(C:C,C113,D:D) -> 530
A114: 112 | B114: =АНГЛИЯ!B114 -> 111 | C114: =АНГЛИЯ!C114 -> Роман Ороман | D114: =VALUE(АНГЛИЯ!D114) -> 291 | E114: =VALUE(АНГЛИЯ!E114) -> 255 | F114: =VALUE(АНГЛИЯ!F114) -> 36 | G114: =VALUE(АНГЛИЯ!G114) -> 570 | H114: =АНГЛИЯ!H114 -> 30 / 380 | I114: =IFERROR(VALUE(SUBSTITUTE(АНГЛИЯ!L114,".",",")),"") -> 7 | J114: =VALUE(АНГЛИЯ!J114) -> 18 | K114: =VALUE(АНГЛИЯ!K114) -> 3 | L114: =VALUE(АНГЛИЯ!L114) -> 7 | M114: =VALUE(АНГЛИЯ!M114) -> 8 | N114: =IFERROR(VALUE(SUBSTITUTE(АНГЛИЯ!N114,".",",")),"") -> 60 | O114: =VALUE(АНГЛИЯ!O114) -> 12 | P114: =IFERROR(VALUE(SUBSTITUTE(АНГЛИЯ!P114,".",",")),"") -> 32.78 | Q114: значения из листа АНГЛИЯ | R114: =SUMIF(C:C,C114,D:D) -> 465
A115: 113 | B115: =АНГЛИЯ!B115 -> 112 | C115: =АНГЛИЯ!C115 -> Сергій Денькович | D115: =VALUE(АНГЛИЯ!D115) -> 291 | E115: =VALUE(АНГЛИЯ!E115) -> 242 | F115: =VALUE(АНГЛИЯ!F115) -> 49 | G115: =VALUE(АНГЛИЯ!G115) -> 570 | H115: =АНГЛИЯ!H115 -> 30 / 380 | I115: =IFERROR(VALUE(SUBSTITUTE(АНГЛИЯ!L115,".",",")),"") -> 3 | J115: =VALUE(АНГЛИЯ!J115) -> 16 | K115: =VALUE(АНГЛИЯ!K115) -> 4 | L115: =VALUE(АНГЛИЯ!L115) -> 3 | M115: =VALUE(АНГЛИЯ!M115) -> 9 | N115: =IFERROR(VALUE(SUBSTITUTE(АНГЛИЯ!N115,".",",")),"") -> 53.33 | O115: =VALUE(АНГЛИЯ!O115) -> 14 | P115: =IFERROR(VALUE(SUBSTITUTE(АНГЛИЯ!P115,".",",")),"") -> 29.27 | Q115: значения из листа АНГЛИЯ | R115: =SUMIF(C:C,C115,D:D) -> 443
A116: 114 | B116: =АНГЛИЯ!B116 -> 113 | C116: =АНГЛИЯ!C116 -> сафон | D116: =VALUE(АНГЛИЯ!D116) -> 281 | E116: =VALUE(АНГЛИЯ!E116) -> 240 | F116: =VALUE(АНГЛИЯ!F116) -> 41 | G116: =VALUE(АНГЛИЯ!G116) -> 580 | H116: =АНГЛИЯ!H116 -> 31 / 380 | I116: =IFERROR(VALUE(SUBSTITUTE(АНГЛИЯ!L116,".",",")),"") -> 2 | J116: =VALUE(АНГЛИЯ!J116) -> 17 | K116: =VALUE(АНГЛИЯ!K116) -> 3 | L116: =VALUE(АНГЛИЯ!L116) -> 2 | M116: =VALUE(АНГЛИЯ!M116) -> 12 | N116: =IFERROR(VALUE(SUBSTITUTE(АНГЛИЯ!N116,".",",")),"") -> 54.84 | O116: =VALUE(АНГЛИЯ!O116) -> 14 | P116: =IFERROR(VALUE(SUBSTITUTE(АНГЛИЯ!P116,".",",")),"") -> 33.39 | Q116: значения из листа АНГЛИЯ | R116: =SUMIF(C:C,C116,D:D) -> 471
A117: 115 | B117: =АНГЛИЯ!B117 -> 114 | C117: =АНГЛИЯ!C117 -> Osvita Cloud | D117: =VALUE(АНГЛИЯ!D117) -> 250 | E117: =VALUE(АНГЛИЯ!E117) -> 238 | F117: =VALUE(АНГЛИЯ!F117) -> 12 | G117: =VALUE(АНГЛИЯ!G117) -> 611 | H117: =АНГЛИЯ!H117 -> 29 / 380 | I117: =IFERROR(VALUE(SUBSTITUTE(АНГЛИЯ!L117,".",",")),"") -> 2 | J117: =VALUE(АНГЛИЯ!J117) -> 17 | K117: =VALUE(АНГЛИЯ!K117) -> 5 | L117: =VALUE(АНГЛИЯ!L117) -> 2 | M117: =VALUE(АНГЛИЯ!M117) -> 10 | N117: =IFERROR(VALUE(SUBSTITUTE(АНГЛИЯ!N117,".",",")),"") -> 58.62 | O117: =VALUE(АНГЛИЯ!O117) -> 12 | P117: =IFERROR(VALUE(SUBSTITUTE(АНГЛИЯ!P117,".",",")),"") -> 36.06 | Q117: значения из листа АНГЛИЯ | R117: =SUMIF(C:C,C117,D:D) -> 250
A118: 116 | B118: =АНГЛИЯ!B118 -> 115 | C118: =АНГЛИЯ!C118 -> savundi | D118: =VALUE(АНГЛИЯ!D118) -> 250 | E118: =VALUE(АНГЛИЯ!E118) -> 213 | F118: =VALUE(АНГЛИЯ!F118) -> 37 | G118: =VALUE(АНГЛИЯ!G118) -> 611 | H118: =АНГЛИЯ!H118 -> 28 / 380 | I118: =IFERROR(VALUE(SUBSTITUTE(АНГЛИЯ!L118,".",",")),"") -> 1 | J118: =VALUE(АНГЛИЯ!J118) -> 15 | K118: =VALUE(АНГЛИЯ!K118) -> 3 | L118: =VALUE(АНГЛИЯ!L118) -> 1 | M118: =VALUE(АНГЛИЯ!M118) -> 11 | N118: =IFERROR(VALUE(SUBSTITUTE(АНГЛИЯ!N118,".",",")),"") -> 53.57 | O118: =VALUE(АНГЛИЯ!O118) -> 13 | P118: =IFERROR(VALUE(SUBSTITUTE(АНГЛИЯ!P118,".",",")),"") -> 27.07 | Q118: значения из листа АНГЛИЯ | R118: =SUMIF(C:C,C118,D:D) -> 250
A119: 117 | B119: =АНГЛИЯ!B119 -> 116 | C119: =АНГЛИЯ!C119 -> Tarik2210 | D119: =VALUE(АНГЛИЯ!D119) -> 198 | E119: =VALUE(АНГЛИЯ!E119) -> 163 | F119: =VALUE(АНГЛИЯ!F119) -> 35 | G119: =VALUE(АНГЛИЯ!G119) -> 663 | H119: =АНГЛИЯ!H119 -> 20 / 380 | I119: =IFERROR(VALUE(SUBSTITUTE(АНГЛИЯ!L119,".",",")),"") -> 0 | J119: =VALUE(АНГЛИЯ!J119) -> 11 | K119: =VALUE(АНГЛИЯ!K119) -> 5 | L119: =VALUE(АНГЛИЯ!L119) -> 0 | M119: =VALUE(АНГЛИЯ!M119) -> 6 | N119: =IFERROR(VALUE(SUBSTITUTE(АНГЛИЯ!N119,".",",")),"") -> 55 | O119: =VALUE(АНГЛИЯ!O119) -> 9 | P119: =IFERROR(VALUE(SUBSTITUTE(АНГЛИЯ!P119,".",",")),"") -> 21.22 | Q119: значения из листа АНГЛИЯ | R119: =SUMIF(C:C,C119,D:D) -> 346
A120: 118 | B120: =АНГЛИЯ!B120 -> 117 | C120: =АНГЛИЯ!C120 -> romankramarenko457 | D120: =VALUE(АНГЛИЯ!D120) -> 184 | E120: =VALUE(АНГЛИЯ!E120) -> 174 | F120: =VALUE(АНГЛИЯ!F120) -> 10 | G120: =VALUE(АНГЛИЯ!G120) -> 677 | H120: =АНГЛИЯ!H120 -> 20 / 380 | I120: =IFERROR(VALUE(SUBSTITUTE(АНГЛИЯ!L120,".",",")),"") -> 0 | J120: =VALUE(АНГЛИЯ!J120) -> 13 | K120: =VALUE(АНГЛИЯ!K120) -> 2 | L120: =VALUE(АНГЛИЯ!L120) -> 0 | M120: =VALUE(АНГЛИЯ!M120) -> 11 | N120: =IFERROR(VALUE(SUBSTITUTE(АНГЛИЯ!N120,".",",")),"") -> 65 | O120: =VALUE(АНГЛИЯ!O120) -> 7 | P120: =IFERROR(VALUE(SUBSTITUTE(АНГЛИЯ!P120,".",",")),"") -> 22.85 | Q120: значения из листа АНГЛИЯ | R120: =SUMIF(C:C,C120,D:D) -> 339
A121: 119 | B121: =АНГЛИЯ!B121 -> 118 | C121: =АНГЛИЯ!C121 -> CLH Hour | D121: =VALUE(АНГЛИЯ!D121) -> 183 | E121: =VALUE(АНГЛИЯ!E121) -> 183 | F121: =VALUE(АНГЛИЯ!F121) -> 0 | G121: =VALUE(АНГЛИЯ!G121) -> 678 | H121: =АНГЛИЯ!H121 -> 20 / 380 | I121: =IFERROR(VALUE(SUBSTITUTE(АНГЛИЯ!L121,".",",")),"") -> 4 | J121: =VALUE(АНГЛИЯ!J121) -> 14 | K121: =VALUE(АНГЛИЯ!K121) -> 1 | L121: =VALUE(АНГЛИЯ!L121) -> 4 | M121: =VALUE(АНГЛИЯ!M121) -> 9 | N121: =IFERROR(VALUE(SUBSTITUTE(АНГЛИЯ!N121,".",",")),"") -> 70 | O121: =VALUE(АНГЛИЯ!O121) -> 6 | P121: =IFERROR(VALUE(SUBSTITUTE(АНГЛИЯ!P121,".",",")),"") -> 26.92 | Q121: значения из листа АНГЛИЯ | R121: =SUMIF(C:C,C121,D:D) -> 183
A122: 120 | B122: =АНГЛИЯ!B122 -> 119 | C122: =АНГЛИЯ!C122 -> Petro Andrushchak | D122: =VALUE(АНГЛИЯ!D122) -> 182 | E122: =VALUE(АНГЛИЯ!E122) -> 173 | F122: =VALUE(АНГЛИЯ!F122) -> 9 | G122: =VALUE(АНГЛИЯ!G122) -> 679 | H122: =АНГЛИЯ!H122 -> 20 / 380 | I122: =IFERROR(VALUE(SUBSTITUTE(АНГЛИЯ!L122,".",",")),"") -> 2 | J122: =VALUE(АНГЛИЯ!J122) -> 14 | K122: =VALUE(АНГЛИЯ!K122) -> 3 | L122: =VALUE(АНГЛИЯ!L122) -> 2 | M122: =VALUE(АНГЛИЯ!M122) -> 9 | N122: =IFERROR(VALUE(SUBSTITUTE(АНГЛИЯ!N122,".",",")),"") -> 70 | O122: =VALUE(АНГЛИЯ!O122) -> 6 | P122: =IFERROR(VALUE(SUBSTITUTE(АНГЛИЯ!P122,".",",")),"") -> 26.47 | Q122: значения из листа АНГЛИЯ | R122: =SUMIF(C:C,C122,D:D) -> 182
A123: 121 | B123: =АНГЛИЯ!B123 -> 120 | C123: =АНГЛИЯ!C123 -> Aleksey Taran | D123: =VALUE(АНГЛИЯ!D123) -> 182 | E123: =VALUE(АНГЛИЯ!E123) -> 157 | F123: =VALUE(АНГЛИЯ!F123) -> 25 | G123: =VALUE(АНГЛИЯ!G123) -> 679 | H123: =АНГЛИЯ!H123 -> 20 / 380 | I123: =IFERROR(VALUE(SUBSTITUTE(АНГЛИЯ!L123,".",",")),"") -> 0 | J123: =VALUE(АНГЛИЯ!J123) -> 12 | K123: =VALUE(АНГЛИЯ!K123) -> 2 | L123: =VALUE(АНГЛИЯ!L123) -> 0 | M123: =VALUE(АНГЛИЯ!M123) -> 10 | N123: =IFERROR(VALUE(SUBSTITUTE(АНГЛИЯ!N123,".",",")),"") -> 60 | O123: =VALUE(АНГЛИЯ!O123) -> 8 | P123: =IFERROR(VALUE(SUBSTITUTE(АНГЛИЯ!P123,".",",")),"") -> 20.12 | Q123: значения из листа АНГЛИЯ | R123: =SUMIF(C:C,C123,D:D) -> 270
A124: 122 | B124: =АНГЛИЯ!B124 -> 121 | C124: =АНГЛИЯ!C124 -> Rtrain Raxt | D124: =VALUE(АНГЛИЯ!D124) -> 171 | E124: =VALUE(АНГЛИЯ!E124) -> 171 | F124: =VALUE(АНГЛИЯ!F124) -> 0 | G124: =VALUE(АНГЛИЯ!G124) -> 690 | H124: =АНГЛИЯ!H124 -> 19 / 380 | I124: =IFERROR(VALUE(SUBSTITUTE(АНГЛИЯ!L124,".",",")),"") -> 2 | J124: =VALUE(АНГЛИЯ!J124) -> 14 | K124: =VALUE(АНГЛИЯ!K124) -> 3 | L124: =VALUE(АНГЛИЯ!L124) -> 2 | M124: =VALUE(АНГЛИЯ!M124) -> 9 | N124: =IFERROR(VALUE(SUBSTITUTE(АНГЛИЯ!N124,".",",")),"") -> 73.68 | O124: =VALUE(АНГЛИЯ!O124) -> 5 | P124: =IFERROR(VALUE(SUBSTITUTE(АНГЛИЯ!P124,".",",")),"") -> 26.47 | Q124: значения из листа АНГЛИЯ | R124: =SUMIF(C:C,C124,D:D) -> 171
A125: 123 | B125: =АНГЛИЯ!B125 -> 122 | C125: =АНГЛИЯ!C125 -> Виталий | D125: =VALUE(АНГЛИЯ!D125) -> 161 | E125: =VALUE(АНГЛИЯ!E125) -> 161 | F125: =VALUE(АНГЛИЯ!F125) -> 0 | G125: =VALUE(АНГЛИЯ!G125) -> 700 | H125: =АНГЛИЯ!H125 -> 20 / 380 | I125: =IFERROR(VALUE(SUBSTITUTE(АНГЛИЯ!L125,".",",")),"") -> 3 | J125: =VALUE(АНГЛИЯ!J125) -> 13 | K125: =VALUE(АНГЛИЯ!K125) -> 2 | L125: =VALUE(АНГЛИЯ!L125) -> 3 | M125: =VALUE(АНГЛИЯ!M125) -> 8 | N125: =IFERROR(VALUE(SUBSTITUTE(АНГЛИЯ!N125,".",",")),"") -> 65 | O125: =VALUE(АНГЛИЯ!O125) -> 7 | P125: =IFERROR(VALUE(SUBSTITUTE(АНГЛИЯ!P125,".",",")),"") -> 25.49 | Q125: значения из листа АНГЛИЯ | R125: =SUMIF(C:C,C125,D:D) -> 227
A126: 124 | B126: =АНГЛИЯ!B126 -> 123 | C126: =АНГЛИЯ!C126 -> Сергей Гаврилюк | D126: =VALUE(АНГЛИЯ!D126) -> 151 | E126: =VALUE(АНГЛИЯ!E126) -> 146 | F126: =VALUE(АНГЛИЯ!F126) -> 5 | G126: =VALUE(АНГЛИЯ!G126) -> 710 | H126: =АНГЛИЯ!H126 -> 19 / 380 | I126: =IFERROR(VALUE(SUBSTITUTE(АНГЛИЯ!L126,".",",")),"") -> 3 | J126: =VALUE(АНГЛИЯ!J126) -> 10 | K126: =VALUE(АНГЛИЯ!K126) -> 2 | L126: =VALUE(АНГЛИЯ!L126) -> 3 | M126: =VALUE(АНГЛИЯ!M126) -> 5 | N126: =IFERROR(VALUE(SUBSTITUTE(АНГЛИЯ!N126,".",",")),"") -> 52.63 | O126: =VALUE(АНГЛИЯ!O126) -> 9 | P126: =IFERROR(VALUE(SUBSTITUTE(АНГЛИЯ!P126,".",",")),"") -> 20.58 | Q126: значения из листа АНГЛИЯ | R126: =SUMIF(C:C,C126,D:D) -> 225
A127: 125 | B127: =АНГЛИЯ!B127 -> 124 | C127: =АНГЛИЯ!C127 -> PremierLeague | D127: =VALUE(АНГЛИЯ!D127) -> 137 | E127: =VALUE(АНГЛИЯ!E127) -> 137 | F127: =VALUE(АНГЛИЯ!F127) -> 0 | G127: =VALUE(АНГЛИЯ!G127) -> 724 | H127: =АНГЛИЯ!H127 -> 20 / 380 | I127: =IFERROR(VALUE(SUBSTITUTE(АНГЛИЯ!L127,".",",")),"") -> 1 | J127: =VALUE(АНГЛИЯ!J127) -> 10 | K127: =VALUE(АНГЛИЯ!K127) -> 0 | L127: =VALUE(АНГЛИЯ!L127) -> 1 | M127: =VALUE(АНГЛИЯ!M127) -> 9 | N127: =IFERROR(VALUE(SUBSTITUTE(АНГЛИЯ!N127,".",",")),"") -> 50 | O127: =VALUE(АНГЛИЯ!O127) -> 10 | P127: =IFERROR(VALUE(SUBSTITUTE(АНГЛИЯ!P127,".",",")),"") -> 16.2 | Q127: значения из листа АНГЛИЯ | R127: =SUMIF(C:C,C127,D:D) -> 137
A128: 126 | B128: =АНГЛИЯ!B128 -> 125 | C128: =АНГЛИЯ!C128 -> ilsur-fresh | D128: =VALUE(АНГЛИЯ!D128) -> 115 | E128: =VALUE(АНГЛИЯ!E128) -> 115 | F128: =VALUE(АНГЛИЯ!F128) -> 0 | G128: =VALUE(АНГЛИЯ!G128) -> 746 | H128: =АНГЛИЯ!H128 -> 10 / 380 | I128: =IFERROR(VALUE(SUBSTITUTE(АНГЛИЯ!L128,".",",")),"") -> 3 | J128: =VALUE(АНГЛИЯ!J128) -> 9 | K128: =VALUE(АНГЛИЯ!K128) -> 3 | L128: =VALUE(АНГЛИЯ!L128) -> 3 | M128: =VALUE(АНГЛИЯ!M128) -> 3 | N128: =IFERROR(VALUE(SUBSTITUTE(АНГЛИЯ!N128,".",",")),"") -> 90 | O128: =VALUE(АНГЛИЯ!O128) -> 1 | P128: =IFERROR(VALUE(SUBSTITUTE(АНГЛИЯ!P128,".",",")),"") -> 21.25 | Q128: значения из листа АНГЛИЯ | R128: =SUMIF(C:C,C128,D:D) -> 115
A129: 127 | B129: =АНГЛИЯ!B129 -> 126 | C129: =АНГЛИЯ!C129 -> vitoscalette21 | D129: =VALUE(АНГЛИЯ!D129) -> 102 | E129: =VALUE(АНГЛИЯ!E129) -> 102 | F129: =VALUE(АНГЛИЯ!F129) -> 0 | G129: =VALUE(АНГЛИЯ!G129) -> 759 | H129: =АНГЛИЯ!H129 -> 10 / 380 | I129: =IFERROR(VALUE(SUBSTITUTE(АНГЛИЯ!L129,".",",")),"") -> 3 | J129: =VALUE(АНГЛИЯ!J129) -> 7 | K129: =VALUE(АНГЛИЯ!K129) -> 1 | L129: =VALUE(АНГЛИЯ!L129) -> 3 | M129: =VALUE(АНГЛИЯ!M129) -> 3 | N129: =IFERROR(VALUE(SUBSTITUTE(АНГЛИЯ!N129,".",",")),"") -> 70 | O129: =VALUE(АНГЛИЯ!O129) -> 3 | P129: =IFERROR(VALUE(SUBSTITUTE(АНГЛИЯ!P129,".",",")),"") -> 15.8 | Q129: значения из листа АНГЛИЯ | R129: =SUMIF(C:C,C129,D:D) -> 102
A130: 128 | B130: =АНГЛИЯ!B130 -> 127 | C130: =АНГЛИЯ!C130 -> Maxidollar | D130: =VALUE(АНГЛИЯ!D130) -> 102 | E130: =VALUE(АНГЛИЯ!E130) -> 102 | F130: =VALUE(АНГЛИЯ!F130) -> 0 | G130: =VALUE(АНГЛИЯ!G130) -> 759 | H130: =АНГЛИЯ!H130 -> 11 / 380 | I130: =IFERROR(VALUE(SUBSTITUTE(АНГЛИЯ!L130,".",",")),"") -> 2 | J130: =VALUE(АНГЛИЯ!J130) -> 7 | K130: =VALUE(АНГЛИЯ!K130) -> 1 | L130: =VALUE(АНГЛИЯ!L130) -> 2 | M130: =VALUE(АНГЛИЯ!M130) -> 4 | N130: =IFERROR(VALUE(SUBSTITUTE(АНГЛИЯ!N130,".",",")),"") -> 63.64 | O130: =VALUE(АНГЛИЯ!O130) -> 4 | P130: =IFERROR(VALUE(SUBSTITUTE(АНГЛИЯ!P130,".",",")),"") -> 13.42 | Q130: значения из листа АНГЛИЯ | R130: =SUMIF(C:C,C130,D:D) -> 186
A131: 129 | B131: =АНГЛИЯ!B131 -> 128 | C131: =АНГЛИЯ!C131 -> Trent Alexander-Arnold | D131: =VALUE(АНГЛИЯ!D131) -> 100 | E131: =VALUE(АНГЛИЯ!E131) -> 85 | F131: =VALUE(АНГЛИЯ!F131) -> 15 | G131: =VALUE(АНГЛИЯ!G131) -> 761 | H131: =АНГЛИЯ!H131 -> 10 / 380 | I131: =IFERROR(VALUE(SUBSTITUTE(АНГЛИЯ!L131,".",",")),"") -> 0 | J131: =VALUE(АНГЛИЯ!J131) -> 5 | K131: =VALUE(АНГЛИЯ!K131) -> 1 | L131: =VALUE(АНГЛИЯ!L131) -> 0 | M131: =VALUE(АНГЛИЯ!M131) -> 4 | N131: =IFERROR(VALUE(SUBSTITUTE(АНГЛИЯ!N131,".",",")),"") -> 50 | O131: =VALUE(АНГЛИЯ!O131) -> 5 | P131: =IFERROR(VALUE(SUBSTITUTE(АНГЛИЯ!P131,".",",")),"") -> 6.75 | Q131: значения из листа АНГЛИЯ | R131: =SUMIF(C:C,C131,D:D) -> 100
A132: 130 | B132: =АНГЛИЯ!B132 -> 129 | C132: =АНГЛИЯ!C132 -> Rajabali | D132: =VALUE(АНГЛИЯ!D132) -> 97 | E132: =VALUE(АНГЛИЯ!E132) -> 97 | F132: =VALUE(АНГЛИЯ!F132) -> 0 | G132: =VALUE(АНГЛИЯ!G132) -> 764 | H132: =АНГЛИЯ!H132 -> 9 / 380 | I132: =IFERROR(VALUE(SUBSTITUTE(АНГЛИЯ!L132,".",",")),"") -> 1 | J132: =VALUE(АНГЛИЯ!J132) -> 8 | K132: =VALUE(АНГЛИЯ!K132) -> 3 | L132: =VALUE(АНГЛИЯ!L132) -> 1 | M132: =VALUE(АНГЛИЯ!M132) -> 4 | N132: =IFERROR(VALUE(SUBSTITUTE(АНГЛИЯ!N132,".",",")),"") -> 88.89 | O132: =VALUE(АНГЛИЯ!O132) -> 1 | P132: =IFERROR(VALUE(SUBSTITUTE(АНГЛИЯ!P132,".",",")),"") -> 17.97 | Q132: значения из листа АНГЛИЯ | R132: =SUMIF(C:C,C132,D:D) -> 177
A133: 131 | B133: =АНГЛИЯ!B133 -> 130 | C133: =АНГЛИЯ!C133 -> SE29 | D133: =VALUE(АНГЛИЯ!D133) -> 97 | E133: =VALUE(АНГЛИЯ!E133) -> 97 | F133: =VALUE(АНГЛИЯ!F133) -> 0 | G133: =VALUE(АНГЛИЯ!G133) -> 764 | H133: =АНГЛИЯ!H133 -> 9 / 380 | I133: =IFERROR(VALUE(SUBSTITUTE(АНГЛИЯ!L133,".",",")),"") -> 3 | J133: =VALUE(АНГЛИЯ!J133) -> 7 | K133: =VALUE(АНГЛИЯ!K133) -> 1 | L133: =VALUE(АНГЛИЯ!L133) -> 3 | M133: =VALUE(АНГЛИЯ!M133) -> 3 | N133: =IFERROR(VALUE(SUBSTITUTE(АНГЛИЯ!N133,".",",")),"") -> 77.78 | O133: =VALUE(АНГЛИЯ!O133) -> 2 | P133: =IFERROR(VALUE(SUBSTITUTE(АНГЛИЯ!P133,".",",")),"") -> 14.37 | Q133: значения из листа АНГЛИЯ | R133: =SUMIF(C:C,C133,D:D) -> 97
A134: 132 | B134: =АНГЛИЯ!B134 -> 131 | C134: =АНГЛИЯ!C134 -> Stanislav Semenov | D134: =VALUE(АНГЛИЯ!D134) -> 91 | E134: =VALUE(АНГЛИЯ!E134) -> 82 | F134: =VALUE(АНГЛИЯ!F134) -> 9 | G134: =VALUE(АНГЛИЯ!G134) -> 770 | H134: =АНГЛИЯ!H134 -> 9 / 380 | I134: =IFERROR(VALUE(SUBSTITUTE(АНГЛИЯ!L134,".",",")),"") -> 3 | J134: =VALUE(АНГЛИЯ!J134) -> 5 | K134: =VALUE(АНГЛИЯ!K134) -> 0 | L134: =VALUE(АНГЛИЯ!L134) -> 3 | M134: =VALUE(АНГЛИЯ!M134) -> 2 | N134: =IFERROR(VALUE(SUBSTITUTE(АНГЛИЯ!N134,".",",")),"") -> 55.56 | O134: =VALUE(АНГЛИЯ!O134) -> 4 | P134: =IFERROR(VALUE(SUBSTITUTE(АНГЛИЯ!P134,".",",")),"") -> 9.86 | Q134: значения из листа АНГЛИЯ | R134: =SUMIF(C:C,C134,D:D) -> 165
A135: 133 | B135: =АНГЛИЯ!B135 -> 132 | C135: =АНГЛИЯ!C135 -> Віталій Назаревич | D135: =VALUE(АНГЛИЯ!D135) -> 90 | E135: =VALUE(АНГЛИЯ!E135) -> 90 | F135: =VALUE(АНГЛИЯ!F135) -> 0 | G135: =VALUE(АНГЛИЯ!G135) -> 771 | H135: =АНГЛИЯ!H135 -> 10 / 380 | I135: =IFERROR(VALUE(SUBSTITUTE(АНГЛИЯ!L135,".",",")),"") -> 2 | J135: =VALUE(АНГЛИЯ!J135) -> 6 | K135: =VALUE(АНГЛИЯ!K135) -> 1 | L135: =VALUE(АНГЛИЯ!L135) -> 2 | M135: =VALUE(АНГЛИЯ!M135) -> 3 | N135: =IFERROR(VALUE(SUBSTITUTE(АНГЛИЯ!N135,".",",")),"") -> 60 | O135: =VALUE(АНГЛИЯ!O135) -> 4 | P135: =IFERROR(VALUE(SUBSTITUTE(АНГЛИЯ!P135,".",",")),"") -> 10.25 | Q135: значения из листа АНГЛИЯ | R135: =SUMIF(C:C,C135,D:D) -> 189
A136: 134 | B136: =АНГЛИЯ!B136 -> 133 | C136: =АНГЛИЯ!C136 -> Olayinka90 | D136: =VALUE(АНГЛИЯ!D136) -> 89 | E136: =VALUE(АНГЛИЯ!E136) -> 79 | F136: =VALUE(АНГЛИЯ!F136) -> 10 | G136: =VALUE(АНГЛИЯ!G136) -> 772 | H136: =АНГЛИЯ!H136 -> 9 / 380 | I136: =IFERROR(VALUE(SUBSTITUTE(АНГЛИЯ!L136,".",",")),"") -> 1 | J136: =VALUE(АНГЛИЯ!J136) -> 6 | K136: =VALUE(АНГЛИЯ!K136) -> 1 | L136: =VALUE(АНГЛИЯ!L136) -> 1 | M136: =VALUE(АНГЛИЯ!M136) -> 4 | N136: =IFERROR(VALUE(SUBSTITUTE(АНГЛИЯ!N136,".",",")),"") -> 66.67 | O136: =VALUE(АНГЛИЯ!O136) -> 3 | P136: =IFERROR(VALUE(SUBSTITUTE(АНГЛИЯ!P136,".",",")),"") -> 12.22 | Q136: значения из листа АНГЛИЯ | R136: =SUMIF(C:C,C136,D:D) -> 89
A137: 135 | B137: =АНГЛИЯ!B137 -> 134 | C137: =АНГЛИЯ!C137 -> Dilmurod Askarov | D137: =VALUE(АНГЛИЯ!D137) -> 87 | E137: =VALUE(АНГЛИЯ!E137) -> 87 | F137: =VALUE(АНГЛИЯ!F137) -> 0 | G137: =VALUE(АНГЛИЯ!G137) -> 774 | H137: =АНГЛИЯ!H137 -> 10 / 380 | I137: =IFERROR(VALUE(SUBSTITUTE(АНГЛИЯ!L137,".",",")),"") -> 0 | J137: =VALUE(АНГЛИЯ!J137) -> 6 | K137: =VALUE(АНГЛИЯ!K137) -> 1 | L137: =VALUE(АНГЛИЯ!L137) -> 0 | M137: =VALUE(АНГЛИЯ!M137) -> 5 | N137: =IFERROR(VALUE(SUBSTITUTE(АНГЛИЯ!N137,".",",")),"") -> 60 | O137: =VALUE(АНГЛИЯ!O137) -> 4 | P137: =IFERROR(VALUE(SUBSTITUTE(АНГЛИЯ!P137,".",",")),"") -> 11.11 | Q137: значения из листа АНГЛИЯ | R137: =SUMIF(C:C,C137,D:D) -> 164
A138: 136 | B138: =АНГЛИЯ!B138 -> 135 | C138: =АНГЛИЯ!C138 -> nikita_fufachev | D138: =VALUE(АНГЛИЯ!D138) -> 87 | E138: =VALUE(АНГЛИЯ!E138) -> 70 | F138: =VALUE(АНГЛИЯ!F138) -> 17 | G138: =VALUE(АНГЛИЯ!G138) -> 774 | H138: =АНГЛИЯ!H138 -> 9 / 380 | I138: =IFERROR(VALUE(SUBSTITUTE(АНГЛИЯ!L138,".",",")),"") -> 0 | J138: =VALUE(АНГЛИЯ!J138) -> 4 | K138: =VALUE(АНГЛИЯ!K138) -> 0 | L138: =VALUE(АНГЛИЯ!L138) -> 0 | M138: =VALUE(АНГЛИЯ!M138) -> 4 | N138: =IFERROR(VALUE(SUBSTITUTE(АНГЛИЯ!N138,".",",")),"") -> 44.44 | O138: =VALUE(АНГЛИЯ!O138) -> 5 | P138: =IFERROR(VALUE(SUBSTITUTE(АНГЛИЯ!P138,".",",")),"") -> 5.42 | Q138: значения из листа АНГЛИЯ | R138: =SUMIF(C:C,C138,D:D) -> 87
A139: 137 | B139: =АНГЛИЯ!B139 -> 136 | C139: =АНГЛИЯ!C139 -> Karim Mairakzz | D139: =VALUE(АНГЛИЯ!D139) -> 86 | E139: =VALUE(АНГЛИЯ!E139) -> 81 | F139: =VALUE(АНГЛИЯ!F139) -> 5 | G139: =VALUE(АНГЛИЯ!G139) -> 775 | H139: =АНГЛИЯ!H139 -> 10 / 380 | I139: =IFERROR(VALUE(SUBSTITUTE(АНГЛИЯ!L139,".",",")),"") -> 0 | J139: =VALUE(АНГЛИЯ!J139) -> 5 | K139: =VALUE(АНГЛИЯ!K139) -> 1 | L139: =VALUE(АНГЛИЯ!L139) -> 0 | M139: =VALUE(АНГЛИЯ!M139) -> 4 | N139: =IFERROR(VALUE(SUBSTITUTE(АНГЛИЯ!N139,".",",")),"") -> 50 | O139: =VALUE(АНГЛИЯ!O139) -> 5 | P139: =IFERROR(VALUE(SUBSTITUTE(АНГЛИЯ!P139,".",",")),"") -> 7.25 | Q139: значения из листа АНГЛИЯ | R139: =SUMIF(C:C,C139,D:D) -> 86
A140: 138 | B140: =АНГЛИЯ!B140 -> 137 | C140: =АНГЛИЯ!C140 -> atay.liverpool | D140: =VALUE(АНГЛИЯ!D140) -> 85 | E140: =VALUE(АНГЛИЯ!E140) -> 85 | F140: =VALUE(АНГЛИЯ!F140) -> 0 | G140: =VALUE(АНГЛИЯ!G140) -> 776 | H140: =АНГЛИЯ!H140 -> 9 / 380 | I140: =IFERROR(VALUE(SUBSTITUTE(АНГЛИЯ!L140,".",",")),"") -> 1 | J140: =VALUE(АНГЛИЯ!J140) -> 6 | K140: =VALUE(АНГЛИЯ!K140) -> 0 | L140: =VALUE(АНГЛИЯ!L140) -> 1 | M140: =VALUE(АНГЛИЯ!M140) -> 5 | N140: =IFERROR(VALUE(SUBSTITUTE(АНГЛИЯ!N140,".",",")),"") -> 66.67 | O140: =VALUE(АНГЛИЯ!O140) -> 3 | P140: =IFERROR(VALUE(SUBSTITUTE(АНГЛИЯ!P140,".",",")),"") -> 10.25 | Q140: значения из листа АНГЛИЯ | R140: =SUMIF(C:C,C140,D:D) -> 85
A141: 139 | B141: =АНГЛИЯ!B141 -> 138 | C141: =АНГЛИЯ!C141 -> GR7 | D141: =VALUE(АНГЛИЯ!D141) -> 85 | E141: =VALUE(АНГЛИЯ!E141) -> 85 | F141: =VALUE(АНГЛИЯ!F141) -> 0 | G141: =VALUE(АНГЛИЯ!G141) -> 776 | H141: =АНГЛИЯ!H141 -> 10 / 380 | I141: =IFERROR(VALUE(SUBSTITUTE(АНГЛИЯ!L141,".",",")),"") -> 1 | J141: =VALUE(АНГЛИЯ!J141) -> 6 | K141: =VALUE(АНГЛИЯ!K141) -> 0 | L141: =VALUE(АНГЛИЯ!L141) -> 1 | M141: =VALUE(АНГЛИЯ!M141) -> 5 | N141: =IFERROR(VALUE(SUBSTITUTE(АНГЛИЯ!N141,".",",")),"") -> 60 | O141: =VALUE(АНГЛИЯ!O141) -> 4 | P141: =IFERROR(VALUE(SUBSTITUTE(АНГЛИЯ!P141,".",",")),"") -> 10.85 | Q141: значения из листа АНГЛИЯ | R141: =SUMIF(C:C,C141,D:D) -> 167
A142: 140 | B142: =АНГЛИЯ!B142 -> 139 | C142: =АНГЛИЯ!C142 -> Unreal 17 | D142: =VALUE(АНГЛИЯ!D142) -> 79 | E142: =VALUE(АНГЛИЯ!E142) -> 79 | F142: =VALUE(АНГЛИЯ!F142) -> 0 | G142: =VALUE(АНГЛИЯ!G142) -> 782 | H142: =АНГЛИЯ!H142 -> 10 / 380 | I142: =IFERROR(VALUE(SUBSTITUTE(АНГЛИЯ!L142,".",",")),"") -> 0 | J142: =VALUE(АНГЛИЯ!J142) -> 5 | K142: =VALUE(АНГЛИЯ!K142) -> 0 | L142: =VALUE(АНГЛИЯ!L142) -> 0 | M142: =VALUE(АНГЛИЯ!M142) -> 5 | N142: =IFERROR(VALUE(SUBSTITUTE(АНГЛИЯ!N142,".",",")),"") -> 50 | O142: =VALUE(АНГЛИЯ!O142) -> 5 | P142: =IFERROR(VALUE(SUBSTITUTE(АНГЛИЯ!P142,".",",")),"") -> 7.25 | Q142: значения из листа АНГЛИЯ | R142: =SUMIF(C:C,C142,D:D) -> 79
A143: 141 | B143: =АНГЛИЯ!B143 -> 140 | C143: =АНГЛИЯ!C143 -> Alegik_27 | D143: =VALUE(АНГЛИЯ!D143) -> 70 | E143: =VALUE(АНГЛИЯ!E143) -> 70 | F143: =VALUE(АНГЛИЯ!F143) -> 0 | G143: =VALUE(АНГЛИЯ!G143) -> 791 | H143: =АНГЛИЯ!H143 -> 9 / 380 | I143: =IFERROR(VALUE(SUBSTITUTE(АНГЛИЯ!L143,".",",")),"") -> 0 | J143: =VALUE(АНГЛИЯ!J143) -> 4 | K143: =VALUE(АНГЛИЯ!K143) -> 1 | L143: =VALUE(АНГЛИЯ!L143) -> 0 | M143: =VALUE(АНГЛИЯ!M143) -> 3 | N143: =IFERROR(VALUE(SUBSTITUTE(АНГЛИЯ!N143,".",",")),"") -> 44.44 | O143: =VALUE(АНГЛИЯ!O143) -> 5 | P143: =IFERROR(VALUE(SUBSTITUTE(АНГЛИЯ!P143,".",",")),"") -> 7.37 | Q143: значения из листа АНГЛИЯ | R143: =SUMIF(C:C,C143,D:D) -> 70
A144: 142 | B144: =АНГЛИЯ!B144 -> 141 | C144: =АНГЛИЯ!C144 -> Huxley | D144: =VALUE(АНГЛИЯ!D144) -> 69 | E144: =VALUE(АНГЛИЯ!E144) -> 58 | F144: =VALUE(АНГЛИЯ!F144) -> 11 | G144: =VALUE(АНГЛИЯ!G144) -> 792 | H144: =АНГЛИЯ!H144 -> 9 / 380 | I144: =IFERROR(VALUE(SUBSTITUTE(АНГЛИЯ!L144,".",",")),"") -> 1 | J144: =VALUE(АНГЛИЯ!J144) -> 3 | K144: =VALUE(АНГЛИЯ!K144) -> 1 | L144: =VALUE(АНГЛИЯ!L144) -> 1 | M144: =VALUE(АНГЛИЯ!M144) -> 1 | N144: =IFERROR(VALUE(SUBSTITUTE(АНГЛИЯ!N144,".",",")),"") -> 33.33 | O144: =VALUE(АНГЛИЯ!O144) -> 6 | P144: =IFERROR(VALUE(SUBSTITUTE(АНГЛИЯ!P144,".",",")),"") -> 4.86 | Q144: значения из листа АНГЛИЯ | R144: =SUMIF(C:C,C144,D:D) -> 186
A145: 143 | B145: =АНГЛИЯ!B145 -> 142 | C145: =АНГЛИЯ!C145 -> Андрей Большаков | D145: =VALUE(АНГЛИЯ!D145) -> 66 | E145: =VALUE(АНГЛИЯ!E145) -> 66 | F145: =VALUE(АНГЛИЯ!F145) -> 0 | G145: =VALUE(АНГЛИЯ!G145) -> 795 | H145: =АНГЛИЯ!H145 -> 9 / 380 | I145: =IFERROR(VALUE(SUBSTITUTE(АНГЛИЯ!L145,".",",")),"") -> 0 | J145: =VALUE(АНГЛИЯ!J145) -> 4 | K145: =VALUE(АНГЛИЯ!K145) -> 0 | L145: =VALUE(АНГЛИЯ!L145) -> 0 | M145: =VALUE(АНГЛИЯ!M145) -> 4 | N145: =IFERROR(VALUE(SUBSTITUTE(АНГЛИЯ!N145,".",",")),"") -> 44.44 | O145: =VALUE(АНГЛИЯ!O145) -> 5 | P145: =IFERROR(VALUE(SUBSTITUTE(АНГЛИЯ!P145,".",",")),"") -> 5.42 | Q145: значения из листа АНГЛИЯ | R145: =SUMIF(C:C,C145,D:D) -> 134
A146: 144 | B146: =АНГЛИЯ!B146 -> 143 | C146: =АНГЛИЯ!C146 -> deepraj07 | D146: =VALUE(АНГЛИЯ!D146) -> 65 | E146: =VALUE(АНГЛИЯ!E146) -> 65 | F146: =VALUE(АНГЛИЯ!F146) -> 0 | G146: =VALUE(АНГЛИЯ!G146) -> 796 | H146: =АНГЛИЯ!H146 -> 8 / 380 | I146: =IFERROR(VALUE(SUBSTITUTE(АНГЛИЯ!L146,".",",")),"") -> 0 | J146: =VALUE(АНГЛИЯ!J146) -> 5 | K146: =VALUE(АНГЛИЯ!K146) -> 1 | L146: =VALUE(АНГЛИЯ!L146) -> 0 | M146: =VALUE(АНГЛИЯ!M146) -> 4 | N146: =IFERROR(VALUE(SUBSTITUTE(АНГЛИЯ!N146,".",",")),"") -> 62.5 | O146: =VALUE(АНГЛИЯ!O146) -> 3 | P146: =IFERROR(VALUE(SUBSTITUTE(АНГЛИЯ!P146,".",",")),"") -> 8.72 | Q146: значения из листа АНГЛИЯ | R146: =SUMIF(C:C,C146,D:D) -> 65
A147: 145 | B147: =АНГЛИЯ!B147 -> 144 | C147: =АНГЛИЯ!C147 -> Star | D147: =VALUE(АНГЛИЯ!D147) -> 58 | E147: =VALUE(АНГЛИЯ!E147) -> 48 | F147: =VALUE(АНГЛИЯ!F147) -> 10 | G147: =VALUE(АНГЛИЯ!G147) -> 803 | H147: =АНГЛИЯ!H147 -> 8 / 380 | I147: =IFERROR(VALUE(SUBSTITUTE(АНГЛИЯ!L147,".",",")),"") -> 1 | J147: =VALUE(АНГЛИЯ!J147) -> 3 | K147: =VALUE(АНГЛИЯ!K147) -> 0 | L147: =VALUE(АНГЛИЯ!L147) -> 1 | M147: =VALUE(АНГЛИЯ!M147) -> 2 | N147: =IFERROR(VALUE(SUBSTITUTE(АНГЛИЯ!N147,".",",")),"") -> 37.5 | O147: =VALUE(АНГЛИЯ!O147) -> 5 | P147: =IFERROR(VALUE(SUBSTITUTE(АНГЛИЯ!P147,".",",")),"") -> 4.86 | Q147: значения из листа АНГЛИЯ | R147: =SUMIF(C:C,C147,D:D) -> 132
A148: 146 | B148: =АНГЛИЯ!B148 -> 145 | C148: =АНГЛИЯ!C148 -> savic | D148: =VALUE(АНГЛИЯ!D148) -> 57 | E148: =VALUE(АНГЛИЯ!E148) -> 56 | F148: =VALUE(АНГЛИЯ!F148) -> 1 | G148: =VALUE(АНГЛИЯ!G148) -> 804 | H148: =АНГЛИЯ!H148 -> 10 / 380 | I148: =IFERROR(VALUE(SUBSTITUTE(АНГЛИЯ!L148,".",",")),"") -> 0 | J148: =VALUE(АНГЛИЯ!J148) -> 4 | K148: =VALUE(АНГЛИЯ!K148) -> 0 | L148: =VALUE(АНГЛИЯ!L148) -> 0 | M148: =VALUE(АНГЛИЯ!M148) -> 4 | N148: =IFERROR(VALUE(SUBSTITUTE(АНГЛИЯ!N148,".",",")),"") -> 40 | O148: =VALUE(АНГЛИЯ!O148) -> 6 | P148: =IFERROR(VALUE(SUBSTITUTE(АНГЛИЯ!P148,".",",")),"") -> 6.82 | Q148: значения из листа АНГЛИЯ | R148: =SUMIF(C:C,C148,D:D) -> 115
A149: 147 | B149: =АНГЛИЯ!B149 -> 146 | C149: =АНГЛИЯ!C149 -> Egor Zanchurin | D149: =VALUE(АНГЛИЯ!D149) -> 44 | E149: =VALUE(АНГЛИЯ!E149) -> 44 | F149: =VALUE(АНГЛИЯ!F149) -> 0 | G149: =VALUE(АНГЛИЯ!G149) -> 817 | H149: =АНГЛИЯ!H149 -> 5 / 380 | I149: =IFERROR(VALUE(SUBSTITUTE(АНГЛИЯ!L149,".",",")),"") -> 0 | J149: =VALUE(АНГЛИЯ!J149) -> 4 | K149: =VALUE(АНГЛИЯ!K149) -> 0 | L149: =VALUE(АНГЛИЯ!L149) -> 0 | M149: =VALUE(АНГЛИЯ!M149) -> 4 | N149: =IFERROR(VALUE(SUBSTITUTE(АНГЛИЯ!N149,".",",")),"") -> 80 | O149: =VALUE(АНГЛИЯ!O149) -> 1 | P149: =IFERROR(VALUE(SUBSTITUTE(АНГЛИЯ!P149,".",",")),"") -> 8.56 | Q149: значения из листа АНГЛИЯ | R149: =SUMIF(C:C,C149,D:D) -> 73
A150: 148 | B150: =АНГЛИЯ!B150 -> 147 | C150: =АНГЛИЯ!C150 -> Юрій Романюк | D150: =VALUE(АНГЛИЯ!D150) -> 40 | E150: =VALUE(АНГЛИЯ!E150) -> 40 | F150: =VALUE(АНГЛИЯ!F150) -> 0 | G150: =VALUE(АНГЛИЯ!G150) -> 821 | H150: =АНГЛИЯ!H150 -> 5 / 380 | I150: =IFERROR(VALUE(SUBSTITUTE(АНГЛИЯ!L150,".",",")),"") -> 0 | J150: =VALUE(АНГЛИЯ!J150) -> 3 | K150: =VALUE(АНГЛИЯ!K150) -> 1 | L150: =VALUE(АНГЛИЯ!L150) -> 0 | M150: =VALUE(АНГЛИЯ!M150) -> 2 | N150: =IFERROR(VALUE(SUBSTITUTE(АНГЛИЯ!N150,".",",")),"") -> 60 | O150: =VALUE(АНГЛИЯ!O150) -> 2 | P150: =IFERROR(VALUE(SUBSTITUTE(АНГЛИЯ!P150,".",",")),"") -> 4.36 | Q150: значения из листа АНГЛИЯ | R150: =SUMIF(C:C,C150,D:D) -> 63
A151: 149 | B151: =АНГЛИЯ!B151 -> 148 | C151: =АНГЛИЯ!C151 -> Шахриер Негматов | D151: =VALUE(АНГЛИЯ!D151) -> 39 | E151: =VALUE(АНГЛИЯ!E151) -> 39 | F151: =VALUE(АНГЛИЯ!F151) -> 0 | G151: =VALUE(АНГЛИЯ!G151) -> 822 | H151: =АНГЛИЯ!H151 -> 5 / 380 | I151: =IFERROR(VALUE(SUBSTITUTE(АНГЛИЯ!L151,".",",")),"") -> 1 | J151: =VALUE(АНГЛИЯ!J151) -> 3 | K151: =VALUE(АНГЛИЯ!K151) -> 0 | L151: =VALUE(АНГЛИЯ!L151) -> 1 | M151: =VALUE(АНГЛИЯ!M151) -> 2 | N151: =IFERROR(VALUE(SUBSTITUTE(АНГЛИЯ!N151,".",",")),"") -> 60 | O151: =VALUE(АНГЛИЯ!O151) -> 2 | P151: =IFERROR(VALUE(SUBSTITUTE(АНГЛИЯ!P151,".",",")),"") -> 5.56 | Q151: значения из листа АНГЛИЯ | R151: =SUMIF(C:C,C151,D:D) -> 39
A152: 150 | B152: =АНГЛИЯ!B152 -> 149 | C152: =АНГЛИЯ!C152 -> павел фил | D152: =VALUE(АНГЛИЯ!D152) -> 24 | E152: =VALUE(АНГЛИЯ!E152) -> 18 | F152: =VALUE(АНГЛИЯ!F152) -> 6 | G152: =VALUE(АНГЛИЯ!G152) -> 837 | H152: =АНГЛИЯ!H152 -> 3 / 380 | I152: =IFERROR(VALUE(SUBSTITUTE(АНГЛИЯ!L152,".",",")),"") -> 1 | J152: =VALUE(АНГЛИЯ!J152) -> 2 | K152: =VALUE(АНГЛИЯ!K152) -> 0 | L152: =VALUE(АНГЛИЯ!L152) -> 1 | M152: =VALUE(АНГЛИЯ!M152) -> 1 | N152: =IFERROR(VALUE(SUBSTITUTE(АНГЛИЯ!N152,".",",")),"") -> 66.67 | O152: =VALUE(АНГЛИЯ!O152) -> 1 | P152: =IFERROR(VALUE(SUBSTITUTE(АНГЛИЯ!P152,".",",")),"") -> 3.71 | Q152: значения из листа АНГЛИЯ | R152: =SUMIF(C:C,C152,D:D) -> 24
A153: 151 | B153: =АНГЛИЯ!B153 -> 150 | C153: =АНГЛИЯ!C153 -> maradona86 | D153: =VALUE(АНГЛИЯ!D153) -> 17 | E153: =VALUE(АНГЛИЯ!E153) -> 12 | F153: =VALUE(АНГЛИЯ!F153) -> 5 | G153: =VALUE(АНГЛИЯ!G153) -> 844 | H153: =АНГЛИЯ!H153 -> 1 / 380 | I153: =IFERROR(VALUE(SUBSTITUTE(АНГЛИЯ!L153,".",",")),"") -> 0 | J153: =VALUE(АНГЛИЯ!J153) -> 1 | K153: =VALUE(АНГЛИЯ!K153) -> 0 | L153: =VALUE(АНГЛИЯ!L153) -> 0 | M153: =VALUE(АНГЛИЯ!M153) -> 1 | N153: =IFERROR(VALUE(SUBSTITUTE(АНГЛИЯ!N153,".",",")),"") -> 100 | O153: =VALUE(АНГЛИЯ!O153) -> 0 | P153: =IFERROR(VALUE(SUBSTITUTE(АНГЛИЯ!P153,".",",")),"") -> 1.91 | Q153: значения из листа АНГЛИЯ | R153: =SUMIF(C:C,C153,D:D) -> 17
A154: 152 | B154: =АНГЛИЯ!B154 -> 151 | C154: =АНГЛИЯ!C154 -> aleksandrtkacenko1312 | D154: =VALUE(АНГЛИЯ!D154) -> 17 | E154: =VALUE(АНГЛИЯ!E154) -> 12 | F154: =VALUE(АНГЛИЯ!F154) -> 5 | G154: =VALUE(АНГЛИЯ!G154) -> 844 | H154: =АНГЛИЯ!H154 -> 1 / 380 | I154: =IFERROR(VALUE(SUBSTITUTE(АНГЛИЯ!L154,".",",")),"") -> 0 | J154: =VALUE(АНГЛИЯ!J154) -> 1 | K154: =VALUE(АНГЛИЯ!K154) -> 0 | L154: =VALUE(АНГЛИЯ!L154) -> 0 | M154: =VALUE(АНГЛИЯ!M154) -> 1 | N154: =IFERROR(VALUE(SUBSTITUTE(АНГЛИЯ!N154,".",",")),"") -> 100 | O154: =VALUE(АНГЛИЯ!O154) -> 0 | P154: =IFERROR(VALUE(SUBSTITUTE(АНГЛИЯ!P154,".",",")),"") -> 1.33 | Q154: значения из листа АНГЛИЯ | R154: =SUMIF(C:C,C154,D:D) -> 17
A155: 153 | B155: =АНГЛИЯ!B155 -> 152 | C155: =АНГЛИЯ!C155 -> Burtaze | D155: =VALUE(АНГЛИЯ!D155) -> 17 | E155: =VALUE(АНГЛИЯ!E155) -> 12 | F155: =VALUE(АНГЛИЯ!F155) -> 5 | G155: =VALUE(АНГЛИЯ!G155) -> 844 | H155: =АНГЛИЯ!H155 -> 1 / 380 | I155: =IFERROR(VALUE(SUBSTITUTE(АНГЛИЯ!L155,".",",")),"") -> 0 | J155: =VALUE(АНГЛИЯ!J155) -> 1 | K155: =VALUE(АНГЛИЯ!K155) -> 0 | L155: =VALUE(АНГЛИЯ!L155) -> 0 | M155: =VALUE(АНГЛИЯ!M155) -> 1 | N155: =IFERROR(VALUE(SUBSTITUTE(АНГЛИЯ!N155,".",",")),"") -> 100 | O155: =VALUE(АНГЛИЯ!O155) -> 0 | P155: =IFERROR(VALUE(SUBSTITUTE(АНГЛИЯ!P155,".",",")),"") -> 1.33 | Q155: значения из листа АНГЛИЯ | R155: =SUMIF(C:C,C155,D:D) -> 17
A156: 154 | B156: =АНГЛИЯ!B156 -> 153 | C156: =АНГЛИЯ!C156 -> Elbek Yuldashev | D156: =VALUE(АНГЛИЯ!D156) -> 13 | E156: =VALUE(АНГЛИЯ!E156) -> 13 | F156: =VALUE(АНГЛИЯ!F156) -> 0 | G156: =VALUE(АНГЛИЯ!G156) -> 848 | H156: =АНГЛИЯ!H156 -> 1 / 380 | I156: =IFERROR(VALUE(SUBSTITUTE(АНГЛИЯ!L156,".",",")),"") -> 1 | J156: =VALUE(АНГЛИЯ!J156) -> 1 | K156: =VALUE(АНГЛИЯ!K156) -> 0 | L156: =VALUE(АНГЛИЯ!L156) -> 1 | M156: =VALUE(АНГЛИЯ!M156) -> 0 | N156: =IFERROR(VALUE(SUBSTITUTE(АНГЛИЯ!N156,".",",")),"") -> 100 | O156: =VALUE(АНГЛИЯ!O156) -> 0 | P156: =IFERROR(VALUE(SUBSTITUTE(АНГЛИЯ!P156,".",",")),"") -> 1.91 | Q156: значения из листа АНГЛИЯ | R156: =SUMIF(C:C,C156,D:D) -> 13
A157: 155 | B157: =АНГЛИЯ!B157 -> 154 | C157: =АНГЛИЯ!C157 -> AdLaBat | D157: =VALUE(АНГЛИЯ!D157) -> 12 | E157: =VALUE(АНГЛИЯ!E157) -> 12 | F157: =VALUE(АНГЛИЯ!F157) -> 0 | G157: =VALUE(АНГЛИЯ!G157) -> 849 | H157: =АНГЛИЯ!H157 -> 1 / 380 | I157: =IFERROR(VALUE(SUBSTITUTE(АНГЛИЯ!L157,".",",")),"") -> 0 | J157: =VALUE(АНГЛИЯ!J157) -> 1 | K157: =VALUE(АНГЛИЯ!K157) -> 0 | L157: =VALUE(АНГЛИЯ!L157) -> 0 | M157: =VALUE(АНГЛИЯ!M157) -> 1 | N157: =IFERROR(VALUE(SUBSTITUTE(АНГЛИЯ!N157,".",",")),"") -> 100 | O157: =VALUE(АНГЛИЯ!O157) -> 0 | P157: =IFERROR(VALUE(SUBSTITUTE(АНГЛИЯ!P157,".",",")),"") -> 1.91 | Q157: значения из листа АНГЛИЯ | R157: =SUMIF(C:C,C157,D:D) -> 12
A158: 156 | B158: =АНГЛИЯ!B158 -> 155 | C158: =АНГЛИЯ!C158 -> Евгений Пономарев | D158: =VALUE(АНГЛИЯ!D158) -> 12 | E158: =VALUE(АНГЛИЯ!E158) -> 12 | F158: =VALUE(АНГЛИЯ!F158) -> 0 | G158: =VALUE(АНГЛИЯ!G158) -> 849 | H158: =АНГЛИЯ!H158 -> 1 / 380 | I158: =IFERROR(VALUE(SUBSTITUTE(АНГЛИЯ!L158,".",",")),"") -> 0 | J158: =VALUE(АНГЛИЯ!J158) -> 1 | K158: =VALUE(АНГЛИЯ!K158) -> 0 | L158: =VALUE(АНГЛИЯ!L158) -> 0 | M158: =VALUE(АНГЛИЯ!M158) -> 1 | N158: =IFERROR(VALUE(SUBSTITUTE(АНГЛИЯ!N158,".",",")),"") -> 100 | O158: =VALUE(АНГЛИЯ!O158) -> 0 | P158: =IFERROR(VALUE(SUBSTITUTE(АНГЛИЯ!P158,".",",")),"") -> 1.33 | Q158: значения из листа АНГЛИЯ | R158: =SUMIF(C:C,C158,D:D) -> 12
A159: 157 | B159: =АНГЛИЯ!B159 -> 156 | C159: =АНГЛИЯ!C159 -> Дмитрий Дзюба | D159: =VALUE(АНГЛИЯ!D159) -> 12 | E159: =VALUE(АНГЛИЯ!E159) -> 12 | F159: =VALUE(АНГЛИЯ!F159) -> 0 | G159: =VALUE(АНГЛИЯ!G159) -> 849 | H159: =АНГЛИЯ!H159 -> 1 / 380 | I159: =IFERROR(VALUE(SUBSTITUTE(АНГЛИЯ!L159,".",",")),"") -> 0 | J159: =VALUE(АНГЛИЯ!J159) -> 1 | K159: =VALUE(АНГЛИЯ!K159) -> 0 | L159: =VALUE(АНГЛИЯ!L159) -> 0 | M159: =VALUE(АНГЛИЯ!M159) -> 1 | N159: =IFERROR(VALUE(SUBSTITUTE(АНГЛИЯ!N159,".",",")),"") -> 100 | O159: =VALUE(АНГЛИЯ!O159) -> 0 | P159: =IFERROR(VALUE(SUBSTITUTE(АНГЛИЯ!P159,".",",")),"") -> 1.33 | Q159: значения из листа АНГЛИЯ | R159: =SUMIF(C:C,C159,D:D) -> 12
A160: 158 | B160: =АНГЛИЯ!B160 -> 157 | C160: =АНГЛИЯ!C160 -> MemphiS | D160: =VALUE(АНГЛИЯ!D160) -> 12 | E160: =VALUE(АНГЛИЯ!E160) -> 12 | F160: =VALUE(АНГЛИЯ!F160) -> 0 | G160: =VALUE(АНГЛИЯ!G160) -> 849 | H160: =АНГЛИЯ!H160 -> 1 / 380 | I160: =IFERROR(VALUE(SUBSTITUTE(АНГЛИЯ!L160,".",",")),"") -> 0 | J160: =VALUE(АНГЛИЯ!J160) -> 1 | K160: =VALUE(АНГЛИЯ!K160) -> 0 | L160: =VALUE(АНГЛИЯ!L160) -> 0 | M160: =VALUE(АНГЛИЯ!M160) -> 1 | N160: =IFERROR(VALUE(SUBSTITUTE(АНГЛИЯ!N160,".",",")),"") -> 100 | O160: =VALUE(АНГЛИЯ!O160) -> 0 | P160: =IFERROR(VALUE(SUBSTITUTE(АНГЛИЯ!P160,".",",")),"") -> 1.33 | Q160: значения из листа АНГЛИЯ | R160: =SUMIF(C:C,C160,D:D) -> 12
A161: 159 | B161: =АНГЛИЯ!B161 -> 158 | C161: =АНГЛИЯ!C161 -> Сергій Шевченко | D161: =VALUE(АНГЛИЯ!D161) -> 12 | E161: =VALUE(АНГЛИЯ!E161) -> 12 | F161: =VALUE(АНГЛИЯ!F161) -> 0 | G161: =VALUE(АНГЛИЯ!G161) -> 849 | H161: =АНГЛИЯ!H161 -> 1 / 380 | I161: =IFERROR(VALUE(SUBSTITUTE(АНГЛИЯ!L161,".",",")),"") -> 0 | J161: =VALUE(АНГЛИЯ!J161) -> 1 | K161: =VALUE(АНГЛИЯ!K161) -> 0 | L161: =VALUE(АНГЛИЯ!L161) -> 0 | M161: =VALUE(АНГЛИЯ!M161) -> 1 | N161: =IFERROR(VALUE(SUBSTITUTE(АНГЛИЯ!N161,".",",")),"") -> 100 | O161: =VALUE(АНГЛИЯ!O161) -> 0 | P161: =IFERROR(VALUE(SUBSTITUTE(АНГЛИЯ!P161,".",",")),"") -> 1.29 | Q161: значения из листа АНГЛИЯ | R161: =SUMIF(C:C,C161,D:D) -> 12
A162: 160 | B162: =АНГЛИЯ!B162 -> 159 | C162: =АНГЛИЯ!C162 -> Миша Карпман | D162: =VALUE(АНГЛИЯ!D162) -> 12 | E162: =VALUE(АНГЛИЯ!E162) -> 12 | F162: =VALUE(АНГЛИЯ!F162) -> 0 | G162: =VALUE(АНГЛИЯ!G162) -> 849 | H162: =АНГЛИЯ!H162 -> 1 / 380 | I162: =IFERROR(VALUE(SUBSTITUTE(АНГЛИЯ!L162,".",",")),"") -> 0 | J162: =VALUE(АНГЛИЯ!J162) -> 1 | K162: =VALUE(АНГЛИЯ!K162) -> 0 | L162: =VALUE(АНГЛИЯ!L162) -> 0 | M162: =VALUE(АНГЛИЯ!M162) -> 1 | N162: =IFERROR(VALUE(SUBSTITUTE(АНГЛИЯ!N162,".",",")),"") -> 100 | O162: =VALUE(АНГЛИЯ!O162) -> 0 | P162: =IFERROR(VALUE(SUBSTITUTE(АНГЛИЯ!P162,".",",")),"") -> 1.25 | Q162: значения из листа АНГЛИЯ | R162: =SUMIF(C:C,C162,D:D) -> 12
A163: 161 | B163: =АНГЛИЯ!B163 -> 160 | C163: =АНГЛИЯ!C163 -> Vaqif Rashidov | D163: =VALUE(АНГЛИЯ!D163) -> 12 | E163: =VALUE(АНГЛИЯ!E163) -> 12 | F163: =VALUE(АНГЛИЯ!F163) -> 0 | G163: =VALUE(АНГЛИЯ!G163) -> 849 | H163: =АНГЛИЯ!H163 -> 1 / 380 | I163: =IFERROR(VALUE(SUBSTITUTE(АНГЛИЯ!L163,".",",")),"") -> 0 | J163: =VALUE(АНГЛИЯ!J163) -> 1 | K163: =VALUE(АНГЛИЯ!K163) -> 0 | L163: =VALUE(АНГЛИЯ!L163) -> 0 | M163: =VALUE(АНГЛИЯ!M163) -> 1 | N163: =IFERROR(VALUE(SUBSTITUTE(АНГЛИЯ!N163,".",",")),"") -> 100 | O163: =VALUE(АНГЛИЯ!O163) -> 0 | P163: =IFERROR(VALUE(SUBSTITUTE(АНГЛИЯ!P163,".",",")),"") -> 1.25 | Q163: значения из листа АНГЛИЯ | R163: =SUMIF(C:C,C163,D:D) -> 19
A164: 162 | B164: =АНГЛИЯ!B164 -> 161 | C164: =АНГЛИЯ!C164 -> kurah1022 | D164: =VALUE(АНГЛИЯ!D164) -> 12 | E164: =VALUE(АНГЛИЯ!E164) -> 12 | F164: =VALUE(АНГЛИЯ!F164) -> 0 | G164: =VALUE(АНГЛИЯ!G164) -> 849 | H164: =АНГЛИЯ!H164 -> 1 / 380 | I164: =IFERROR(VALUE(SUBSTITUTE(АНГЛИЯ!L164,".",",")),"") -> 0 | J164: =VALUE(АНГЛИЯ!J164) -> 1 | K164: =VALUE(АНГЛИЯ!K164) -> 0 | L164: =VALUE(АНГЛИЯ!L164) -> 0 | M164: =VALUE(АНГЛИЯ!M164) -> 1 | N164: =IFERROR(VALUE(SUBSTITUTE(АНГЛИЯ!N164,".",",")),"") -> 100 | O164: =VALUE(АНГЛИЯ!O164) -> 0 | P164: =IFERROR(VALUE(SUBSTITUTE(АНГЛИЯ!P164,".",",")),"") -> 1.25 | Q164: значения из листа АНГЛИЯ | R164: =SUMIF(C:C,C164,D:D) -> 24
A165: 163 | B165: =АНГЛИЯ!B165 -> 162 | C165: =АНГЛИЯ!C165 -> Ridik058 | D165: =VALUE(АНГЛИЯ!D165) -> 9 | E165: =VALUE(АНГЛИЯ!E165) -> 9 | F165: =VALUE(АНГЛИЯ!F165) -> 0 | G165: =VALUE(АНГЛИЯ!G165) -> 852 | H165: =АНГЛИЯ!H165 -> 1 / 380 | I165: =IFERROR(VALUE(SUBSTITUTE(АНГЛИЯ!L165,".",",")),"") -> 0 | J165: =VALUE(АНГЛИЯ!J165) -> 1 | K165: =VALUE(АНГЛИЯ!K165) -> 0 | L165: =VALUE(АНГЛИЯ!L165) -> 0 | M165: =VALUE(АНГЛИЯ!M165) -> 1 | N165: =IFERROR(VALUE(SUBSTITUTE(АНГЛИЯ!N165,".",",")),"") -> 100 | O165: =VALUE(АНГЛИЯ!O165) -> 0 | P165: =IFERROR(VALUE(SUBSTITUTE(АНГЛИЯ!P165,".",",")),"") -> 1.18 | Q165: значения из листа АНГЛИЯ | R165: =SUMIF(C:C,C165,D:D) -> 9
A166: 164 | B166: =АНГЛИЯ!B166 -> 163 | C166: =АНГЛИЯ!C166 -> naio5165 | D166: =VALUE(АНГЛИЯ!D166) -> 1 | E166: =VALUE(АНГЛИЯ!E166) -> 1 | F166: =VALUE(АНГЛИЯ!F166) -> 0 | G166: =VALUE(АНГЛИЯ!G166) -> 860 | H166: =АНГЛИЯ!H166 -> 2 / 380 | I166: =IFERROR(VALUE(SUBSTITUTE(АНГЛИЯ!L166,".",",")),"") -> 0 | J166: =VALUE(АНГЛИЯ!J166) -> 0 | K166: =VALUE(АНГЛИЯ!K166) -> 0 | L166: =VALUE(АНГЛИЯ!L166) -> 0 | M166: =VALUE(АНГЛИЯ!M166) -> 0 | N166: =IFERROR(VALUE(SUBSTITUTE(АНГЛИЯ!N166,".",",")),"") -> 0 | O166: =VALUE(АНГЛИЯ!O166) -> 2 | P166: =IFERROR(VALUE(SUBSTITUTE(АНГЛИЯ!P166,".",",")),"") -> 0 | Q166: значения из листа АНГЛИЯ | R166: =SUMIF(C:C,C166,D:D) -> 1
A167: 165 | B167: =АНГЛИЯ!B167 -> 164 | C167: =АНГЛИЯ!C167 -> TES22 | D167: =VALUE(АНГЛИЯ!D167) -> 0 | E167: =VALUE(АНГЛИЯ!E167) -> 0 | F167: =VALUE(АНГЛИЯ!F167) -> 0 | G167: =VALUE(АНГЛИЯ!G167) -> 861 | H167: =АНГЛИЯ!H167 -> 0 / 380 | I167: =IFERROR(VALUE(SUBSTITUTE(АНГЛИЯ!L167,".",",")),"") -> 0 | J167: =VALUE(АНГЛИЯ!J167) -> 0 | K167: =VALUE(АНГЛИЯ!K167) -> 0 | L167: =VALUE(АНГЛИЯ!L167) -> 0 | M167: =VALUE(АНГЛИЯ!M167) -> 0 | N167: =IFERROR(VALUE(SUBSTITUTE(АНГЛИЯ!N167,".",",")),"") -> 0 | O167: =VALUE(АНГЛИЯ!O167) -> 0 | P167: =IFERROR(VALUE(SUBSTITUTE(АНГЛИЯ!P167,".",",")),"") -> 0 | Q167: значения из листа АНГЛИЯ | R167: =SUMIF(C:C,C167,D:D) -> 36
A168: 166 | B168: =АНГЛИЯ!B168 -> 165 | C168: =АНГЛИЯ!C168 -> 100000 | D168: =VALUE(АНГЛИЯ!D168) -> 0 | E168: =VALUE(АНГЛИЯ!E168) -> 0 | F168: =VALUE(АНГЛИЯ!F168) -> 0 | G168: =VALUE(АНГЛИЯ!G168) -> 861 | H168: =АНГЛИЯ!H168 -> 0 / 380 | I168: =IFERROR(VALUE(SUBSTITUTE(АНГЛИЯ!L168,".",",")),"") -> 0 | J168: =VALUE(АНГЛИЯ!J168) -> 0 | K168: =VALUE(АНГЛИЯ!K168) -> 0 | L168: =VALUE(АНГЛИЯ!L168) -> 0 | M168: =VALUE(АНГЛИЯ!M168) -> 0 | N168: =IFERROR(VALUE(SUBSTITUTE(АНГЛИЯ!N168,".",",")),"") -> 0 | O168: =VALUE(АНГЛИЯ!O168) -> 0 | P168: =IFERROR(VALUE(SUBSTITUTE(АНГЛИЯ!P168,".",",")),"") -> 0 | Q168: значения из листа АНГЛИЯ | R168: =SUMIF(C:C,C168,D:D) -> 95
A169: 167 | B169: =АНГЛИЯ!B169 -> 166 | C169: =АНГЛИЯ!C169 -> Arafangel | D169: =VALUE(АНГЛИЯ!D169) -> 0 | E169: =VALUE(АНГЛИЯ!E169) -> 0 | F169: =VALUE(АНГЛИЯ!F169) -> 0 | G169: =VALUE(АНГЛИЯ!G169) -> 861 | H169: =АНГЛИЯ!H169 -> 0 / 380 | I169: =IFERROR(VALUE(SUBSTITUTE(АНГЛИЯ!L169,".",",")),"") -> 0 | J169: =VALUE(АНГЛИЯ!J169) -> 0 | K169: =VALUE(АНГЛИЯ!K169) -> 0 | L169: =VALUE(АНГЛИЯ!L169) -> 0 | M169: =VALUE(АНГЛИЯ!M169) -> 0 | N169: =IFERROR(VALUE(SUBSTITUTE(АНГЛИЯ!N169,".",",")),"") -> 0 | O169: =VALUE(АНГЛИЯ!O169) -> 0 | P169: =IFERROR(VALUE(SUBSTITUTE(АНГЛИЯ!P169,".",",")),"") -> 0 | Q169: значения из листа АНГЛИЯ | R169: =SUMIF(C:C,C169,D:D) -> 0
A170: 168 | B170: =АНГЛИЯ!B170 -> 167 | C170: =АНГЛИЯ!C170 -> id49239928 | D170: =VALUE(АНГЛИЯ!D170) -> 0 | E170: =VALUE(АНГЛИЯ!E170) -> 0 | F170: =VALUE(АНГЛИЯ!F170) -> 0 | G170: =VALUE(АНГЛИЯ!G170) -> 861 | H170: =АНГЛИЯ!H170 -> 0 / 380 | I170: =IFERROR(VALUE(SUBSTITUTE(АНГЛИЯ!L170,".",",")),"") -> 0 | J170: =VALUE(АНГЛИЯ!J170) -> 0 | K170: =VALUE(АНГЛИЯ!K170) -> 0 | L170: =VALUE(АНГЛИЯ!L170) -> 0 | M170: =VALUE(АНГЛИЯ!M170) -> 0 | N170: =IFERROR(VALUE(SUBSTITUTE(АНГЛИЯ!N170,".",",")),"") -> 0 | O170: =VALUE(АНГЛИЯ!O170) -> 0 | P170: =IFERROR(VALUE(SUBSTITUTE(АНГЛИЯ!P170,".",",")),"") -> 0 | Q170: значения из листа АНГЛИЯ | R170: =SUMIF(C:C,C170,D:D) -> 0
A171: 169 | B171: =АНГЛИЯ!B171 -> 168 | C171: =АНГЛИЯ!C171 -> TES-1 | D171: =VALUE(АНГЛИЯ!D171) -> 0 | E171: =VALUE(АНГЛИЯ!E171) -> 0 | F171: =VALUE(АНГЛИЯ!F171) -> 0 | G171: =VALUE(АНГЛИЯ!G171) -> 861 | H171: =АНГЛИЯ!H171 -> 0 / 380 | I171: =IFERROR(VALUE(SUBSTITUTE(АНГЛИЯ!L171,".",",")),"") -> 0 | J171: =VALUE(АНГЛИЯ!J171) -> 0 | K171: =VALUE(АНГЛИЯ!K171) -> 0 | L171: =VALUE(АНГЛИЯ!L171) -> 0 | M171: =VALUE(АНГЛИЯ!M171) -> 0 | N171: =IFERROR(VALUE(SUBSTITUTE(АНГЛИЯ!N171,".",",")),"") -> 0 | O171: =VALUE(АНГЛИЯ!O171) -> 0 | P171: =IFERROR(VALUE(SUBSTITUTE(АНГЛИЯ!P171,".",",")),"") -> 0 | Q171: значения из листа АНГЛИЯ | R171: =SUMIF(C:C,C171,D:D) -> 0
A172: 170 | B172: =АНГЛИЯ!B172 -> 169 | C172: =АНГЛИЯ!C172 -> pavel 1k | D172: =VALUE(АНГЛИЯ!D172) -> 0 | E172: =VALUE(АНГЛИЯ!E172) -> 0 | F172: =VALUE(АНГЛИЯ!F172) -> 0 | G172: =VALUE(АНГЛИЯ!G172) -> 861 | H172: =АНГЛИЯ!H172 -> 0 / 380 | I172: =IFERROR(VALUE(SUBSTITUTE(АНГЛИЯ!L172,".",",")),"") -> 0 | J172: =VALUE(АНГЛИЯ!J172) -> 0 | K172: =VALUE(АНГЛИЯ!K172) -> 0 | L172: =VALUE(АНГЛИЯ!L172) -> 0 | M172: =VALUE(АНГЛИЯ!M172) -> 0 | N172: =IFERROR(VALUE(SUBSTITUTE(АНГЛИЯ!N172,".",",")),"") -> 0 | O172: =VALUE(АНГЛИЯ!O172) -> 0 | P172: =IFERROR(VALUE(SUBSTITUTE(АНГЛИЯ!P172,".",",")),"") -> 0 | Q172: значения из листа АНГЛИЯ | R172: =SUMIF(C:C,C172,D:D) -> 0
A173: 171 | B173: =АНГЛИЯ!B173 -> 170 | C173: =АНГЛИЯ!C173 -> Динамо | D173: =VALUE(АНГЛИЯ!D173) -> 0 | E173: =VALUE(АНГЛИЯ!E173) -> 0 | F173: =VALUE(АНГЛИЯ!F173) -> 0 | G173: =VALUE(АНГЛИЯ!G173) -> 861 | H173: =АНГЛИЯ!H173 -> 0 / 380 | I173: =IFERROR(VALUE(SUBSTITUTE(АНГЛИЯ!L173,".",",")),"") -> 0 | J173: =VALUE(АНГЛИЯ!J173) -> 0 | K173: =VALUE(АНГЛИЯ!K173) -> 0 | L173: =VALUE(АНГЛИЯ!L173) -> 0 | M173: =VALUE(АНГЛИЯ!M173) -> 0 | N173: =IFERROR(VALUE(SUBSTITUTE(АНГЛИЯ!N173,".",",")),"") -> 0 | O173: =VALUE(АНГЛИЯ!O173) -> 0 | P173: =IFERROR(VALUE(SUBSTITUTE(АНГЛИЯ!P173,".",",")),"") -> 0 | Q173: значения из листа АНГЛИЯ | R173: =SUMIF(C:C,C173,D:D) -> 958
A174: 172 | B174: =АНГЛИЯ!B174 -> 171 | C174: =АНГЛИЯ!C174 -> Andriy14 | D174: =VALUE(АНГЛИЯ!D174) -> 0 | E174: =VALUE(АНГЛИЯ!E174) -> 0 | F174: =VALUE(АНГЛИЯ!F174) -> 0 | G174: =VALUE(АНГЛИЯ!G174) -> 861 | H174: =АНГЛИЯ!H174 -> 0 / 380 | I174: =IFERROR(VALUE(SUBSTITUTE(АНГЛИЯ!L174,".",",")),"") -> 0 | J174: =VALUE(АНГЛИЯ!J174) -> 0 | K174: =VALUE(АНГЛИЯ!K174) -> 0 | L174: =VALUE(АНГЛИЯ!L174) -> 0 | M174: =VALUE(АНГЛИЯ!M174) -> 0 | N174: =IFERROR(VALUE(SUBSTITUTE(АНГЛИЯ!N174,".",",")),"") -> 0 | O174: =VALUE(АНГЛИЯ!O174) -> 0 | P174: =IFERROR(VALUE(SUBSTITUTE(АНГЛИЯ!P174,".",",")),"") -> 0 | Q174: значения из листа АНГЛИЯ | R174: =SUMIF(C:C,C174,D:D) -> 0
A175: 173 | B175: =АНГЛИЯ!B175 -> 172 | C175: =АНГЛИЯ!C175 -> Yarmolenko | D175: =VALUE(АНГЛИЯ!D175) -> 0 | E175: =VALUE(АНГЛИЯ!E175) -> 0 | F175: =VALUE(АНГЛИЯ!F175) -> 0 | G175: =VALUE(АНГЛИЯ!G175) -> 861 | H175: =АНГЛИЯ!H175 -> 0 / 380 | I175: =IFERROR(VALUE(SUBSTITUTE(АНГЛИЯ!L175,".",",")),"") -> 0 | J175: =VALUE(АНГЛИЯ!J175) -> 0 | K175: =VALUE(АНГЛИЯ!K175) -> 0 | L175: =VALUE(АНГЛИЯ!L175) -> 0 | M175: =VALUE(АНГЛИЯ!M175) -> 0 | N175: =IFERROR(VALUE(SUBSTITUTE(АНГЛИЯ!N175,".",",")),"") -> 0 | O175: =VALUE(АНГЛИЯ!O175) -> 0 | P175: =IFERROR(VALUE(SUBSTITUTE(АНГЛИЯ!P175,".",",")),"") -> 0 | Q175: значения из листа АНГЛИЯ | R175: =SUMIF(C:C,C175,D:D) -> 0
A176: 174 | B176: =АНГЛИЯ!B176 -> 173 | C176: =АНГЛИЯ!C176 -> Богдан | D176: =VALUE(АНГЛИЯ!D176) -> 0 | E176: =VALUE(АНГЛИЯ!E176) -> 0 | F176: =VALUE(АНГЛИЯ!F176) -> 0 | G176: =VALUE(АНГЛИЯ!G176) -> 861 | H176: =АНГЛИЯ!H176 -> 0 / 380 | I176: =IFERROR(VALUE(SUBSTITUTE(АНГЛИЯ!L176,".",",")),"") -> 0 | J176: =VALUE(АНГЛИЯ!J176) -> 0 | K176: =VALUE(АНГЛИЯ!K176) -> 0 | L176: =VALUE(АНГЛИЯ!L176) -> 0 | M176: =VALUE(АНГЛИЯ!M176) -> 0 | N176: =IFERROR(VALUE(SUBSTITUTE(АНГЛИЯ!N176,".",",")),"") -> 0 | O176: =VALUE(АНГЛИЯ!O176) -> 0 | P176: =IFERROR(VALUE(SUBSTITUTE(АНГЛИЯ!P176,".",",")),"") -> 0 | Q176: значения из листа АНГЛИЯ | R176: =SUMIF(C:C,C176,D:D) -> 0
A177: 175 | B177: =АНГЛИЯ!B177 -> 174 | C177: =АНГЛИЯ!C177 -> Outdated Joke | D177: =VALUE(АНГЛИЯ!D177) -> 0 | E177: =VALUE(АНГЛИЯ!E177) -> 0 | F177: =VALUE(АНГЛИЯ!F177) -> 0 | G177: =VALUE(АНГЛИЯ!G177) -> 861 | H177: =АНГЛИЯ!H177 -> 0 / 380 | I177: =IFERROR(VALUE(SUBSTITUTE(АНГЛИЯ!L177,".",",")),"") -> 0 | J177: =VALUE(АНГЛИЯ!J177) -> 0 | K177: =VALUE(АНГЛИЯ!K177) -> 0 | L177: =VALUE(АНГЛИЯ!L177) -> 0 | M177: =VALUE(АНГЛИЯ!M177) -> 0 | N177: =IFERROR(VALUE(SUBSTITUTE(АНГЛИЯ!N177,".",",")),"") -> 0 | O177: =VALUE(АНГЛИЯ!O177) -> 0 | P177: =IFERROR(VALUE(SUBSTITUTE(АНГЛИЯ!P177,".",",")),"") -> 0 | Q177: значения из листа АНГЛИЯ | R177: =SUMIF(C:C,C177,D:D) -> 0
A178: 176 | B178: =АНГЛИЯ!B178 -> 175 | C178: =АНГЛИЯ!C178 -> Тарас Романюк | D178: =VALUE(АНГЛИЯ!D178) -> 0 | E178: =VALUE(АНГЛИЯ!E178) -> 0 | F178: =VALUE(АНГЛИЯ!F178) -> 0 | G178: =VALUE(АНГЛИЯ!G178) -> 861 | H178: =АНГЛИЯ!H178 -> 0 / 380 | I178: =IFERROR(VALUE(SUBSTITUTE(АНГЛИЯ!L178,".",",")),"") -> 0 | J178: =VALUE(АНГЛИЯ!J178) -> 0 | K178: =VALUE(АНГЛИЯ!K178) -> 0 | L178: =VALUE(АНГЛИЯ!L178) -> 0 | M178: =VALUE(АНГЛИЯ!M178) -> 0 | N178: =IFERROR(VALUE(SUBSTITUTE(АНГЛИЯ!N178,".",",")),"") -> 0 | O178: =VALUE(АНГЛИЯ!O178) -> 0 | P178: =IFERROR(VALUE(SUBSTITUTE(АНГЛИЯ!P178,".",",")),"") -> 0 | Q178: значения из листа АНГЛИЯ | R178: =SUMIF(C:C,C178,D:D) -> 0
A179: 177 | B179: =АНГЛИЯ!B179 -> 176 | C179: =АНГЛИЯ!C179 -> Sasha Handerson | D179: =VALUE(АНГЛИЯ!D179) -> 0 | E179: =VALUE(АНГЛИЯ!E179) -> 0 | F179: =VALUE(АНГЛИЯ!F179) -> 0 | G179: =VALUE(АНГЛИЯ!G179) -> 861 | H179: =АНГЛИЯ!H179 -> 0 / 380 | I179: =IFERROR(VALUE(SUBSTITUTE(АНГЛИЯ!L179,".",",")),"") -> 0 | J179: =VALUE(АНГЛИЯ!J179) -> 0 | K179: =VALUE(АНГЛИЯ!K179) -> 0 | L179: =VALUE(АНГЛИЯ!L179) -> 0 | M179: =VALUE(АНГЛИЯ!M179) -> 0 | N179: =IFERROR(VALUE(SUBSTITUTE(АНГЛИЯ!N179,".",",")),"") -> 0 | O179: =VALUE(АНГЛИЯ!O179) -> 0 | P179: =IFERROR(VALUE(SUBSTITUTE(АНГЛИЯ!P179,".",",")),"") -> 0 | Q179: значения из листа АНГЛИЯ | R179: =SUMIF(C:C,C179,D:D) -> 0
A180: 178 | B180: =АНГЛИЯ!B180 -> 177 | C180: =АНГЛИЯ!C180 -> Oleksii Bandurko | D180: =VALUE(АНГЛИЯ!D180) -> 0 | E180: =VALUE(АНГЛИЯ!E180) -> 0 | F180: =VALUE(АНГЛИЯ!F180) -> 0 | G180: =VALUE(АНГЛИЯ!G180) -> 861 | H180: =АНГЛИЯ!H180 -> 0 / 380 | I180: =IFERROR(VALUE(SUBSTITUTE(АНГЛИЯ!L180,".",",")),"") -> 0 | J180: =VALUE(АНГЛИЯ!J180) -> 0 | K180: =VALUE(АНГЛИЯ!K180) -> 0 | L180: =VALUE(АНГЛИЯ!L180) -> 0 | M180: =VALUE(АНГЛИЯ!M180) -> 0 | N180: =IFERROR(VALUE(SUBSTITUTE(АНГЛИЯ!N180,".",",")),"") -> 0 | O180: =VALUE(АНГЛИЯ!O180) -> 0 | P180: =IFERROR(VALUE(SUBSTITUTE(АНГЛИЯ!P180,".",",")),"") -> 0 | Q180: значения из листа АНГЛИЯ | R180: =SUMIF(C:C,C180,D:D) -> 0
A181: 179 | B181: =АНГЛИЯ!B181 -> 178 | C181: =АНГЛИЯ!C181 -> Matahary | D181: =VALUE(АНГЛИЯ!D181) -> 0 | E181: =VALUE(АНГЛИЯ!E181) -> 0 | F181: =VALUE(АНГЛИЯ!F181) -> 0 | G181: =VALUE(АНГЛИЯ!G181) -> 861 | H181: =АНГЛИЯ!H181 -> 0 / 380 | I181: =IFERROR(VALUE(SUBSTITUTE(АНГЛИЯ!L181,".",",")),"") -> 0 | J181: =VALUE(АНГЛИЯ!J181) -> 0 | K181: =VALUE(АНГЛИЯ!K181) -> 0 | L181: =VALUE(АНГЛИЯ!L181) -> 0 | M181: =VALUE(АНГЛИЯ!M181) -> 0 | N181: =IFERROR(VALUE(SUBSTITUTE(АНГЛИЯ!N181,".",",")),"") -> 0 | O181: =VALUE(АНГЛИЯ!O181) -> 0 | P181: =IFERROR(VALUE(SUBSTITUTE(АНГЛИЯ!P181,".",",")),"") -> 0 | Q181: значения из листа АНГЛИЯ | R181: =SUMIF(C:C,C181,D:D) -> 0
A182: 180 | B182: =АНГЛИЯ!B182 -> 179 | C182: =АНГЛИЯ!C182 -> jedon23 | D182: =VALUE(АНГЛИЯ!D182) -> 0 | E182: =VALUE(АНГЛИЯ!E182) -> 0 | F182: =VALUE(АНГЛИЯ!F182) -> 0 | G182: =VALUE(АНГЛИЯ!G182) -> 861 | H182: =АНГЛИЯ!H182 -> 0 / 380 | I182: =IFERROR(VALUE(SUBSTITUTE(АНГЛИЯ!L182,".",",")),"") -> 0 | J182: =VALUE(АНГЛИЯ!J182) -> 0 | K182: =VALUE(АНГЛИЯ!K182) -> 0 | L182: =VALUE(АНГЛИЯ!L182) -> 0 | M182: =VALUE(АНГЛИЯ!M182) -> 0 | N182: =IFERROR(VALUE(SUBSTITUTE(АНГЛИЯ!N182,".",",")),"") -> 0 | O182: =VALUE(АНГЛИЯ!O182) -> 0 | P182: =IFERROR(VALUE(SUBSTITUTE(АНГЛИЯ!P182,".",",")),"") -> 0 | Q182: значения из листа АНГЛИЯ | R182: =SUMIF(C:C,C182,D:D) -> 0
A183: 181 | B183: =АНГЛИЯ!B183 -> 180 | C183: =АНГЛИЯ!C183 -> ARIZONA30 | D183: =VALUE(АНГЛИЯ!D183) -> 0 | E183: =VALUE(АНГЛИЯ!E183) -> 0 | F183: =VALUE(АНГЛИЯ!F183) -> 0 | G183: =VALUE(АНГЛИЯ!G183) -> 861 | H183: =АНГЛИЯ!H183 -> 0 / 380 | I183: =IFERROR(VALUE(SUBSTITUTE(АНГЛИЯ!L183,".",",")),"") -> 0 | J183: =VALUE(АНГЛИЯ!J183) -> 0 | K183: =VALUE(АНГЛИЯ!K183) -> 0 | L183: =VALUE(АНГЛИЯ!L183) -> 0 | M183: =VALUE(АНГЛИЯ!M183) -> 0 | N183: =IFERROR(VALUE(SUBSTITUTE(АНГЛИЯ!N183,".",",")),"") -> 0 | O183: =VALUE(АНГЛИЯ!O183) -> 0 | P183: =IFERROR(VALUE(SUBSTITUTE(АНГЛИЯ!P183,".",",")),"") -> 0 | Q183: значения из листа АНГЛИЯ | R183: =SUMIF(C:C,C183,D:D) -> 0
A184: 182 | B184: =АНГЛИЯ!B184 -> 181 | C184: =АНГЛИЯ!C184 -> Arthur Godfred | D184: =VALUE(АНГЛИЯ!D184) -> 0 | E184: =VALUE(АНГЛИЯ!E184) -> 0 | F184: =VALUE(АНГЛИЯ!F184) -> 0 | G184: =VALUE(АНГЛИЯ!G184) -> 861 | H184: =АНГЛИЯ!H184 -> 0 / 380 | I184: =IFERROR(VALUE(SUBSTITUTE(АНГЛИЯ!L184,".",",")),"") -> 0 | J184: =VALUE(АНГЛИЯ!J184) -> 0 | K184: =VALUE(АНГЛИЯ!K184) -> 0 | L184: =VALUE(АНГЛИЯ!L184) -> 0 | M184: =VALUE(АНГЛИЯ!M184) -> 0 | N184: =IFERROR(VALUE(SUBSTITUTE(АНГЛИЯ!N184,".",",")),"") -> 0 | O184: =VALUE(АНГЛИЯ!O184) -> 0 | P184: =IFERROR(VALUE(SUBSTITUTE(АНГЛИЯ!P184,".",",")),"") -> 0 | Q184: значения из листа АНГЛИЯ | R184: =SUMIF(C:C,C184,D:D) -> 0
A185: 183 | B185: =АНГЛИЯ!B185 -> 182 | C185: =АНГЛИЯ!C185 -> Damilola Opeyemi | D185: =VALUE(АНГЛИЯ!D185) -> 0 | E185: =VALUE(АНГЛИЯ!E185) -> 0 | F185: =VALUE(АНГЛИЯ!F185) -> 0 | G185: =VALUE(АНГЛИЯ!G185) -> 861 | H185: =АНГЛИЯ!H185 -> 0 / 380 | I185: =IFERROR(VALUE(SUBSTITUTE(АНГЛИЯ!L185,".",",")),"") -> 0 | J185: =VALUE(АНГЛИЯ!J185) -> 0 | K185: =VALUE(АНГЛИЯ!K185) -> 0 | L185: =VALUE(АНГЛИЯ!L185) -> 0 | M185: =VALUE(АНГЛИЯ!M185) -> 0 | N185: =IFERROR(VALUE(SUBSTITUTE(АНГЛИЯ!N185,".",",")),"") -> 0 | O185: =VALUE(АНГЛИЯ!O185) -> 0 | P185: =IFERROR(VALUE(SUBSTITUTE(АНГЛИЯ!P185,".",",")),"") -> 0 | Q185: значения из листа АНГЛИЯ | R185: =SUMIF(C:C,C185,D:D) -> 0
A186: 184 | B186: =АНГЛИЯ!B186 -> 183 | C186: =АНГЛИЯ!C186 -> Кирилл Оралбеков | D186: =VALUE(АНГЛИЯ!D186) -> 0 | E186: =VALUE(АНГЛИЯ!E186) -> 0 | F186: =VALUE(АНГЛИЯ!F186) -> 0 | G186: =VALUE(АНГЛИЯ!G186) -> 861 | H186: =АНГЛИЯ!H186 -> 0 / 380 | I186: =IFERROR(VALUE(SUBSTITUTE(АНГЛИЯ!L186,".",",")),"") -> 0 | J186: =VALUE(АНГЛИЯ!J186) -> 0 | K186: =VALUE(АНГЛИЯ!K186) -> 0 | L186: =VALUE(АНГЛИЯ!L186) -> 0 | M186: =VALUE(АНГЛИЯ!M186) -> 0 | N186: =IFERROR(VALUE(SUBSTITUTE(АНГЛИЯ!N186,".",",")),"") -> 0 | O186: =VALUE(АНГЛИЯ!O186) -> 0 | P186: =IFERROR(VALUE(SUBSTITUTE(АНГЛИЯ!P186,".",",")),"") -> 0 | Q186: значения из листа АНГЛИЯ | R186: =SUMIF(C:C,C186,D:D) -> 0
A187: 185 | B187: =АНГЛИЯ!B187 -> 184 | C187: =АНГЛИЯ!C187 -> ChR Zoom | D187: =VALUE(АНГЛИЯ!D187) -> 0 | E187: =VALUE(АНГЛИЯ!E187) -> 0 | F187: =VALUE(АНГЛИЯ!F187) -> 0 | G187: =VALUE(АНГЛИЯ!G187) -> 861 | H187: =АНГЛИЯ!H187 -> 0 / 380 | I187: =IFERROR(VALUE(SUBSTITUTE(АНГЛИЯ!L187,".",",")),"") -> 0 | J187: =VALUE(АНГЛИЯ!J187) -> 0 | K187: =VALUE(АНГЛИЯ!K187) -> 0 | L187: =VALUE(АНГЛИЯ!L187) -> 0 | M187: =VALUE(АНГЛИЯ!M187) -> 0 | N187: =IFERROR(VALUE(SUBSTITUTE(АНГЛИЯ!N187,".",",")),"") -> 0 | O187: =VALUE(АНГЛИЯ!O187) -> 0 | P187: =IFERROR(VALUE(SUBSTITUTE(АНГЛИЯ!P187,".",",")),"") -> 0 | Q187: значения из листа АНГЛИЯ | R187: =SUMIF(C:C,C187,D:D) -> 0
A188: 186 | B188: =АНГЛИЯ!B188 -> 185 | C188: =АНГЛИЯ!C188 -> Imel69 | D188: =VALUE(АНГЛИЯ!D188) -> 0 | E188: =VALUE(АНГЛИЯ!E188) -> 0 | F188: =VALUE(АНГЛИЯ!F188) -> 0 | G188: =VALUE(АНГЛИЯ!G188) -> 861 | H188: =АНГЛИЯ!H188 -> 0 / 380 | I188: =IFERROR(VALUE(SUBSTITUTE(АНГЛИЯ!L188,".",",")),"") -> 0 | J188: =VALUE(АНГЛИЯ!J188) -> 0 | K188: =VALUE(АНГЛИЯ!K188) -> 0 | L188: =VALUE(АНГЛИЯ!L188) -> 0 | M188: =VALUE(АНГЛИЯ!M188) -> 0 | N188: =IFERROR(VALUE(SUBSTITUTE(АНГЛИЯ!N188,".",",")),"") -> 0 | O188: =VALUE(АНГЛИЯ!O188) -> 0 | P188: =IFERROR(VALUE(SUBSTITUTE(АНГЛИЯ!P188,".",",")),"") -> 0 | Q188: значения из листа АНГЛИЯ | R188: =SUMIF(C:C,C188,D:D) -> 0
A189: 187 | B189: =АНГЛИЯ!B189 -> 186 | C189: =АНГЛИЯ!C189 -> kolay965 | D189: =VALUE(АНГЛИЯ!D189) -> 0 | E189: =VALUE(АНГЛИЯ!E189) -> 0 | F189: =VALUE(АНГЛИЯ!F189) -> 0 | G189: =VALUE(АНГЛИЯ!G189) -> 861 | H189: =АНГЛИЯ!H189 -> 0 / 380 | I189: =IFERROR(VALUE(SUBSTITUTE(АНГЛИЯ!L189,".",",")),"") -> 0 | J189: =VALUE(АНГЛИЯ!J189) -> 0 | K189: =VALUE(АНГЛИЯ!K189) -> 0 | L189: =VALUE(АНГЛИЯ!L189) -> 0 | M189: =VALUE(АНГЛИЯ!M189) -> 0 | N189: =IFERROR(VALUE(SUBSTITUTE(АНГЛИЯ!N189,".",",")),"") -> 0 | O189: =VALUE(АНГЛИЯ!O189) -> 0 | P189: =IFERROR(VALUE(SUBSTITUTE(АНГЛИЯ!P189,".",",")),"") -> 0 | Q189: значения из листа АНГЛИЯ | R189: =SUMIF(C:C,C189,D:D) -> 0
A190: 188 | B190: =АНГЛИЯ!B190 -> 187 | C190: =АНГЛИЯ!C190 -> Daniyalov | D190: =VALUE(АНГЛИЯ!D190) -> 0 | E190: =VALUE(АНГЛИЯ!E190) -> 0 | F190: =VALUE(АНГЛИЯ!F190) -> 0 | G190: =VALUE(АНГЛИЯ!G190) -> 861 | H190: =АНГЛИЯ!H190 -> 0 / 380 | I190: =IFERROR(VALUE(SUBSTITUTE(АНГЛИЯ!L190,".",",")),"") -> 0 | J190: =VALUE(АНГЛИЯ!J190) -> 0 | K190: =VALUE(АНГЛИЯ!K190) -> 0 | L190: =VALUE(АНГЛИЯ!L190) -> 0 | M190: =VALUE(АНГЛИЯ!M190) -> 0 | N190: =IFERROR(VALUE(SUBSTITUTE(АНГЛИЯ!N190,".",",")),"") -> 0 | O190: =VALUE(АНГЛИЯ!O190) -> 0 | P190: =IFERROR(VALUE(SUBSTITUTE(АНГЛИЯ!P190,".",",")),"") -> 0 | Q190: значения из листа АНГЛИЯ | R190: =SUMIF(C:C,C190,D:D) -> 0
A191: 189 | B191: =АНГЛИЯ!B191 -> 188 | C191: =АНГЛИЯ!C191 -> Albert Asante | D191: =VALUE(АНГЛИЯ!D191) -> 0 | E191: =VALUE(АНГЛИЯ!E191) -> 0 | F191: =VALUE(АНГЛИЯ!F191) -> 0 | G191: =VALUE(АНГЛИЯ!G191) -> 861 | H191: =АНГЛИЯ!H191 -> 0 / 380 | I191: =IFERROR(VALUE(SUBSTITUTE(АНГЛИЯ!L191,".",",")),"") -> 0 | J191: =VALUE(АНГЛИЯ!J191) -> 0 | K191: =VALUE(АНГЛИЯ!K191) -> 0 | L191: =VALUE(АНГЛИЯ!L191) -> 0 | M191: =VALUE(АНГЛИЯ!M191) -> 0 | N191: =IFERROR(VALUE(SUBSTITUTE(АНГЛИЯ!N191,".",",")),"") -> 0 | O191: =VALUE(АНГЛИЯ!O191) -> 0 | P191: =IFERROR(VALUE(SUBSTITUTE(АНГЛИЯ!P191,".",",")),"") -> 0 | Q191: значения из листа АНГЛИЯ | R191: =SUMIF(C:C,C191,D:D) -> 0
A192: 190 | B192: =АНГЛИЯ!B192 -> 189 | C192: =АНГЛИЯ!C192 -> Мурат Балтаев | D192: =VALUE(АНГЛИЯ!D192) -> 0 | E192: =VALUE(АНГЛИЯ!E192) -> 0 | F192: =VALUE(АНГЛИЯ!F192) -> 0 | G192: =VALUE(АНГЛИЯ!G192) -> 861 | H192: =АНГЛИЯ!H192 -> 0 / 380 | I192: =IFERROR(VALUE(SUBSTITUTE(АНГЛИЯ!L192,".",",")),"") -> 0 | J192: =VALUE(АНГЛИЯ!J192) -> 0 | K192: =VALUE(АНГЛИЯ!K192) -> 0 | L192: =VALUE(АНГЛИЯ!L192) -> 0 | M192: =VALUE(АНГЛИЯ!M192) -> 0 | N192: =IFERROR(VALUE(SUBSTITUTE(АНГЛИЯ!N192,".",",")),"") -> 0 | O192: =VALUE(АНГЛИЯ!O192) -> 0 | P192: =IFERROR(VALUE(SUBSTITUTE(АНГЛИЯ!P192,".",",")),"") -> 0 | Q192: значения из листа АНГЛИЯ | R192: =SUMIF(C:C,C192,D:D) -> 0
A193: 191 | B193: =АНГЛИЯ!B193 -> 190 | C193: =АНГЛИЯ!C193 -> юра сафонов | D193: =VALUE(АНГЛИЯ!D193) -> 0 | E193: =VALUE(АНГЛИЯ!E193) -> 0 | F193: =VALUE(АНГЛИЯ!F193) -> 0 | G193: =VALUE(АНГЛИЯ!G193) -> 861 | H193: =АНГЛИЯ!H193 -> 0 / 380 | I193: =IFERROR(VALUE(SUBSTITUTE(АНГЛИЯ!L193,".",",")),"") -> 0 | J193: =VALUE(АНГЛИЯ!J193) -> 0 | K193: =VALUE(АНГЛИЯ!K193) -> 0 | L193: =VALUE(АНГЛИЯ!L193) -> 0 | M193: =VALUE(АНГЛИЯ!M193) -> 0 | N193: =IFERROR(VALUE(SUBSTITUTE(АНГЛИЯ!N193,".",",")),"") -> 0 | O193: =VALUE(АНГЛИЯ!O193) -> 0 | P193: =IFERROR(VALUE(SUBSTITUTE(АНГЛИЯ!P193,".",",")),"") -> 0 | Q193: значения из листа АНГЛИЯ | R193: =SUMIF(C:C,C193,D:D) -> 0
A194: 192 | B194: =АНГЛИЯ!B194 -> 191 | C194: =АНГЛИЯ!C194 -> Augastine Sikhulu | D194: =VALUE(АНГЛИЯ!D194) -> 0 | E194: =VALUE(АНГЛИЯ!E194) -> 0 | F194: =VALUE(АНГЛИЯ!F194) -> 0 | G194: =VALUE(АНГЛИЯ!G194) -> 861 | H194: =АНГЛИЯ!H194 -> 0 / 380 | I194: =IFERROR(VALUE(SUBSTITUTE(АНГЛИЯ!L194,".",",")),"") -> 0 | J194: =VALUE(АНГЛИЯ!J194) -> 0 | K194: =VALUE(АНГЛИЯ!K194) -> 0 | L194: =VALUE(АНГЛИЯ!L194) -> 0 | M194: =VALUE(АНГЛИЯ!M194) -> 0 | N194: =IFERROR(VALUE(SUBSTITUTE(АНГЛИЯ!N194,".",",")),"") -> 0 | O194: =VALUE(АНГЛИЯ!O194) -> 0 | P194: =IFERROR(VALUE(SUBSTITUTE(АНГЛИЯ!P194,".",",")),"") -> 0 | Q194: значения из листа АНГЛИЯ | R194: =SUMIF(C:C,C194,D:D) -> 0
A195: 193 | B195: =АНГЛИЯ!B195 -> 192 | C195: =АНГЛИЯ!C195 -> LovroLulic | D195: =VALUE(АНГЛИЯ!D195) -> 0 | E195: =VALUE(АНГЛИЯ!E195) -> 0 | F195: =VALUE(АНГЛИЯ!F195) -> 0 | G195: =VALUE(АНГЛИЯ!G195) -> 861 | H195: =АНГЛИЯ!H195 -> 0 / 380 | I195: =IFERROR(VALUE(SUBSTITUTE(АНГЛИЯ!L195,".",",")),"") -> 0 | J195: =VALUE(АНГЛИЯ!J195) -> 0 | K195: =VALUE(АНГЛИЯ!K195) -> 0 | L195: =VALUE(АНГЛИЯ!L195) -> 0 | M195: =VALUE(АНГЛИЯ!M195) -> 0 | N195: =IFERROR(VALUE(SUBSTITUTE(АНГЛИЯ!N195,".",",")),"") -> 0 | O195: =VALUE(АНГЛИЯ!O195) -> 0 | P195: =IFERROR(VALUE(SUBSTITUTE(АНГЛИЯ!P195,".",",")),"") -> 0 | Q195: значения из листа АНГЛИЯ | R195: =SUMIF(C:C,C195,D:D) -> 0
A196: 194 | B196: =АНГЛИЯ!B196 -> 193 | C196: =АНГЛИЯ!C196 -> Lekaazotu | D196: =VALUE(АНГЛИЯ!D196) -> 0 | E196: =VALUE(АНГЛИЯ!E196) -> 0 | F196: =VALUE(АНГЛИЯ!F196) -> 0 | G196: =VALUE(АНГЛИЯ!G196) -> 861 | H196: =АНГЛИЯ!H196 -> 0 / 380 | I196: =IFERROR(VALUE(SUBSTITUTE(АНГЛИЯ!L196,".",",")),"") -> 0 | J196: =VALUE(АНГЛИЯ!J196) -> 0 | K196: =VALUE(АНГЛИЯ!K196) -> 0 | L196: =VALUE(АНГЛИЯ!L196) -> 0 | M196: =VALUE(АНГЛИЯ!M196) -> 0 | N196: =IFERROR(VALUE(SUBSTITUTE(АНГЛИЯ!N196,".",",")),"") -> 0 | O196: =VALUE(АНГЛИЯ!O196) -> 0 | P196: =IFERROR(VALUE(SUBSTITUTE(АНГЛИЯ!P196,".",",")),"") -> 0 | Q196: значения из листа АНГЛИЯ | R196: =SUMIF(C:C,C196,D:D) -> 0
A197: 195 | B197: =АНГЛИЯ!B197 -> 194 | C197: =АНГЛИЯ!C197 -> Александр | D197: =VALUE(АНГЛИЯ!D197) -> 0 | E197: =VALUE(АНГЛИЯ!E197) -> 0 | F197: =VALUE(АНГЛИЯ!F197) -> 0 | G197: =VALUE(АНГЛИЯ!G197) -> 861 | H197: =АНГЛИЯ!H197 -> 0 / 380 | I197: =IFERROR(VALUE(SUBSTITUTE(АНГЛИЯ!L197,".",",")),"") -> 0 | J197: =VALUE(АНГЛИЯ!J197) -> 0 | K197: =VALUE(АНГЛИЯ!K197) -> 0 | L197: =VALUE(АНГЛИЯ!L197) -> 0 | M197: =VALUE(АНГЛИЯ!M197) -> 0 | N197: =IFERROR(VALUE(SUBSTITUTE(АНГЛИЯ!N197,".",",")),"") -> 0 | O197: =VALUE(АНГЛИЯ!O197) -> 0 | P197: =IFERROR(VALUE(SUBSTITUTE(АНГЛИЯ!P197,".",",")),"") -> 0 | Q197: значения из листа АНГЛИЯ | R197: =SUMIF(C:C,C197,D:D) -> 0
A198: 196 | B198: =АНГЛИЯ!B198 -> 195 | C198: =АНГЛИЯ!C198 -> Zhenis | D198: =VALUE(АНГЛИЯ!D198) -> 0 | E198: =VALUE(АНГЛИЯ!E198) -> 0 | F198: =VALUE(АНГЛИЯ!F198) -> 0 | G198: =VALUE(АНГЛИЯ!G198) -> 861 | H198: =АНГЛИЯ!H198 -> 0 / 380 | I198: =IFERROR(VALUE(SUBSTITUTE(АНГЛИЯ!L198,".",",")),"") -> 0 | J198: =VALUE(АНГЛИЯ!J198) -> 0 | K198: =VALUE(АНГЛИЯ!K198) -> 0 | L198: =VALUE(АНГЛИЯ!L198) -> 0 | M198: =VALUE(АНГЛИЯ!M198) -> 0 | N198: =IFERROR(VALUE(SUBSTITUTE(АНГЛИЯ!N198,".",",")),"") -> 0 | O198: =VALUE(АНГЛИЯ!O198) -> 0 | P198: =IFERROR(VALUE(SUBSTITUTE(АНГЛИЯ!P198,".",",")),"") -> 0 | Q198: значения из листа АНГЛИЯ | R198: =SUMIF(C:C,C198,D:D) -> 0
A199: 197 | B199: =АНГЛИЯ!B199 -> 196 | C199: =АНГЛИЯ!C199 -> Татьяна Афанасьева | D199: =VALUE(АНГЛИЯ!D199) -> 0 | E199: =VALUE(АНГЛИЯ!E199) -> 0 | F199: =VALUE(АНГЛИЯ!F199) -> 0 | G199: =VALUE(АНГЛИЯ!G199) -> 861 | H199: =АНГЛИЯ!H199 -> 0 / 380 | I199: =IFERROR(VALUE(SUBSTITUTE(АНГЛИЯ!L199,".",",")),"") -> 0 | J199: =VALUE(АНГЛИЯ!J199) -> 0 | K199: =VALUE(АНГЛИЯ!K199) -> 0 | L199: =VALUE(АНГЛИЯ!L199) -> 0 | M199: =VALUE(АНГЛИЯ!M199) -> 0 | N199: =IFERROR(VALUE(SUBSTITUTE(АНГЛИЯ!N199,".",",")),"") -> 0 | O199: =VALUE(АНГЛИЯ!O199) -> 0 | P199: =IFERROR(VALUE(SUBSTITUTE(АНГЛИЯ!P199,".",",")),"") -> 0 | Q199: значения из листа АНГЛИЯ | R199: =SUMIF(C:C,C199,D:D) -> 0
A200: 198 | B200: =АНГЛИЯ!B200 -> 197 | C200: =АНГЛИЯ!C200 -> Soccer Goool | D200: =VALUE(АНГЛИЯ!D200) -> 0 | E200: =VALUE(АНГЛИЯ!E200) -> 0 | F200: =VALUE(АНГЛИЯ!F200) -> 0 | G200: =VALUE(АНГЛИЯ!G200) -> 861 | H200: =АНГЛИЯ!H200 -> 0 / 380 | I200: =IFERROR(VALUE(SUBSTITUTE(АНГЛИЯ!L200,".",",")),"") -> 0 | J200: =VALUE(АНГЛИЯ!J200) -> 0 | K200: =VALUE(АНГЛИЯ!K200) -> 0 | L200: =VALUE(АНГЛИЯ!L200) -> 0 | M200: =VALUE(АНГЛИЯ!M200) -> 0 | N200: =IFERROR(VALUE(SUBSTITUTE(АНГЛИЯ!N200,".",",")),"") -> 0 | O200: =VALUE(АНГЛИЯ!O200) -> 0 | P200: =IFERROR(VALUE(SUBSTITUTE(АНГЛИЯ!P200,".",",")),"") -> 0 | Q200: значения из листа АНГЛИЯ | R200: =SUMIF(C:C,C200,D:D) -> 0
... 2801 more rows

Sheet АНГЛИЯ
A1: для упорядычивания перед вводом данных... если сортировать по столбцу "ВСЕ ОЧКИ сумма", чтоб вернуть в исходное состояние | D1: преобразован формат ячеек в числовой
A2: номер по порядку | B2: # | C2: Пользователь | D2: Очки | E2: Прог. | F2: Буст. | G2: До лидера | H2: Прогнозы / Матчи | I2: О / П | J2: Успешные прогнозы | K2: Счет | L2: Разн. | M2: Исход | N2: % усп | O2: Ошибки | P2: Сумма коэфов | Q2: Чемпионат | R2: ВСЕ ОЧКИ сумма
A3: 1 | C3: АНГЛИЯ | R3: =SUMIF(C:C,C3,D:D) -> 0
A4: 2 | B4: 1 | C4: Рощенюк Юрій | D4: 861 | E4: 696 | F4: 165 | H4: 80 / 380 | I4: 10.76 | J4: 48 | K4: 5 | L4: 11 | M4: 32 | N4: 60 | O4: 32 | P4: 81.05 | Q4: Англия | R4: 861
A5: 3 | B5: 2 | C5: Rodrimes | D5: 851 | E5: 704 | F5: 147 | G5: 10 | H5: 80 / 380 | I5: 10.64 | J5: 50 | K5: 8 | L5: 12 | M5: 30 | N5: 62.5 | O5: 30 | P5: 92.55 | Q5: Англия | R5: 851
A6: 4 | B6: 3 | C6: pjohov | D6: 844 | E6: 727 | F6: 117 | G6: 17 | H6: 80 / 380 | I6: 10.55 | J6: 53 | K6: 7 | L6: 17 | M6: 29 | N6: 66.25 | O6: 27 | P6: 101.87 | Q6: Англия | R6: 844
A7: 5 | B7: 4 | C7: Ihor Vinnichuk | D7: 842 | E7: 717 | F7: 125 | G7: 19 | H7: 80 / 380 | I7: 10.52 | J7: 48 | K7: 12 | L7: 10 | M7: 26 | N7: 60 | O7: 32 | P7: 87.12 | Q7: Англия | R7: 842
A8: 6 | B8: 5 | C8: Squidward Patrikovich | D8: 842 | E8: 679 | F8: 163 | G8: 19 | H8: 80 / 380 | I8: 10.52 | J8: 47 | K8: 8 | L8: 9 | M8: 30 | N8: 58.75 | O8: 33 | P8: 93.01 | Q8: Англия | R8: 842
A9: 7 | B9: 6 | C9: victor.bogatov | D9: 839 | E9: 684 | F9: 155 | G9: 22 | H9: 80 / 380 | I9: 10.49 | J9: 48 | K9: 7 | L9: 14 | M9: 27 | N9: 60 | O9: 32 | P9: 83.72 | Q9: Англия | R9: 839
A10: 8 | B10: 7 | C10: dyadya | D10: 835 | E10: 682 | F10: 153 | G10: 26 | H10: 80 / 380 | I10: 10.44 | J10: 51 | K10: 6 | L10: 11 | M10: 34 | N10: 63.75 | O10: 29 | P10: 96.97 | Q10: Англия | R10: 835
A11: 9 | B11: 8 | C11: Føliant | D11: 834 | E11: 711 | F11: 123 | G11: 27 | H11: 80 / 380 | I11: 10.42 | J11: 47 | K11: 7 | L11: 12 | M11: 28 | N11: 58.75 | O11: 33 | P11: 81.85 | Q11: Англия | R11: 834
A12: 10 | B12: 9 | C12: ПЧАНИ | D12: 829 | E12: 687 | F12: 142 | G12: 32 | H12: 80 / 380 | I12: 10.36 | J12: 47 | K12: 9 | L12: 7 | M12: 31 | N12: 58.75 | O12: 33 | P12: 84.57 | Q12: Англия | R12: 829
A13: 11 | B13: 10 | C13: Prosto_Serega | D13: 828 | E13: 684 | F13: 144 | G13: 33 | H13: 80 / 380 | I13: 10.35 | J13: 48 | K13: 7 | L13: 11 | M13: 30 | N13: 60 | O13: 32 | P13: 84.22 | Q13: Англия | R13: 828
A14: 12 | B14: 11 | C14: SERG | D14: 825 | E14: 716 | F14: 109 | G14: 36 | H14: 80 / 380 | I14: 10.31 | J14: 50 | K14: 13 | L14: 8 | M14: 29 | N14: 62.5 | O14: 30 | P14: 94.12 | Q14: Англия | R14: 825
A15: 13 | B15: 12 | C15: come back | D15: 823 | E15: 690 | F15: 133 | G15: 38 | H15: 80 / 380 | I15: 10.29 | J15: 48 | K15: 6 | L15: 10 | M15: 32 | N15: 60 | O15: 32 | P15: 84.95 | Q15: Англия | R15: 823
A16: 14 | B16: 13 | C16: Sashilo | D16: 815 | E16: 714 | F16: 101 | G16: 46 | H16: 80 / 380 | I16: 10.19 | J16: 50 | K16: 10 | L16: 15 | M16: 25 | N16: 62.5 | O16: 30 | P16: 91.72 | Q16: Англия | R16: 815
A17: 15 | B17: 14 | C17: Doom Breaker | D17: 814 | E17: 685 | F17: 129 | G17: 47 | H17: 75 / 380 | I17: 10.85 | J17: 48 | K17: 8 | L17: 12 | M17: 28 | N17: 64 | O17: 27 | P17: 85.45 | Q17: Англия | R17: 814
A18: 16 | B18: 15 | C18: bafan | D18: 805 | E18: 683 | F18: 122 | G18: 56 | H18: 80 / 380 | I18: 10.06 | J18: 46 | K18: 9 | L18: 7 | M18: 30 | N18: 57.5 | O18: 34 | P18: 81.45 | Q18: Англия | R18: 805
A19: 17 | B19: 16 | C19: Anisi | D19: 804 | E19: 710 | F19: 94 | G19: 57 | H19: 80 / 380 | I19: 10.05 | J19: 48 | K19: 12 | L19: 9 | M19: 27 | N19: 60 | O19: 32 | P19: 96.89 | Q19: Англия | R19: 804
A20: 18 | B20: 17 | C20: зенитфан | D20: 804 | E20: 682 | F20: 122 | G20: 57 | H20: 80 / 380 | I20: 10.05 | J20: 47 | K20: 9 | L20: 9 | M20: 29 | N20: 58.75 | O20: 33 | P20: 82.22 | Q20: Англия | R20: 804
A21: 19 | B21: 18 | C21: Кот-63 | D21: 801 | E21: 694 | F21: 107 | G21: 60 | H21: 80 / 380 | I21: 10.01 | J21: 48 | K21: 7 | L21: 11 | M21: 30 | N21: 60 | O21: 32 | P21: 82.55 | Q21: Англия | R21: 801
A22: 20 | B22: 19 | C22: gekson36 | D22: 801 | E22: 684 | F22: 117 | G22: 60 | H22: 80 / 380 | I22: 10.01 | J22: 48 | K22: 8 | L22: 9 | M22: 31 | N22: 60 | O22: 32 | P22: 88.97 | Q22: Англия | R22: 801
A23: 21 | B23: 20 | C23: anogr | D23: 800 | E23: 697 | F23: 103 | G23: 61 | H23: 80 / 380 | I23: 10 | J23: 48 | K23: 8 | L23: 9 | M23: 31 | N23: 60 | O23: 32 | P23: 85.82 | Q23: Англия | R23: 800
A24: 22 | B24: 21 | C24: ГОЛ | D24: 798 | E24: 689 | F24: 109 | G24: 63 | H24: 80 / 380 | I24: 9.97 | J24: 47 | K24: 8 | L24: 9 | M24: 30 | N24: 58.75 | O24: 33 | P24: 82.97 | Q24: Англия | R24: 798
A25: 23 | B25: 22 | C25: YumGSt | D25: 798 | E25: 661 | F25: 137 | G25: 63 | H25: 80 / 380 | I25: 9.97 | J25: 46 | K25: 7 | L25: 10 | M25: 29 | N25: 57.5 | O25: 34 | P25: 76.42 | Q25: Англия | R25: 798
A26: 24 | B26: 23 | C26: JUT | D26: 797 | E26: 685 | F26: 112 | G26: 64 | H26: 80 / 380 | I26: 9.96 | J26: 47 | K26: 10 | L26: 7 | M26: 30 | N26: 58.75 | O26: 33 | P26: 81.07 | Q26: Англия | R26: 797
A27: 25 | B27: 24 | C27: gesha0024 | D27: 796 | E27: 658 | F27: 138 | G27: 65 | H27: 80 / 380 | I27: 9.95 | J27: 44 | K27: 7 | L27: 12 | M27: 25 | N27: 55 | O27: 36 | P27: 82.03 | Q27: Англия | R27: 796
A28: 26 | B28: 25 | C28: vasilijponkin712 | D28: 791 | E28: 685 | F28: 106 | G28: 70 | H28: 80 / 380 | I28: 9.89 | J28: 46 | K28: 4 | L28: 13 | M28: 29 | N28: 57.5 | O28: 34 | P28: 84.66 | Q28: Англия | R28: 791
A29: 27 | B29: 26 | C29: Сокол | D29: 790 | E29: 669 | F29: 121 | G29: 71 | H29: 79 / 380 | I29: 10 | J29: 44 | K29: 10 | L29: 9 | M29: 25 | N29: 55.7 | O29: 35 | P29: 77.37 | Q29: Англия | R29: 790
A30: 28 | B30: 27 | C30: egk | D30: 789 | E30: 682 | F30: 107 | G30: 72 | H30: 80 / 380 | I30: 9.86 | J30: 48 | K30: 10 | L30: 10 | M30: 28 | N30: 60 | O30: 32 | P30: 84.52 | Q30: Англия | R30: 789
A31: 29 | B31: 28 | C31: Romchyk | D31: 782 | E31: 629 | F31: 153 | G31: 79 | H31: 80 / 380 | I31: 9.77 | J31: 42 | K31: 3 | L31: 7 | M31: 32 | N31: 52.5 | O31: 38 | P31: 78.67 | Q31: Англия | R31: 782
A32: 30 | B32: 29 | C32: Uriy1234 | D32: 780 | E32: 647 | F32: 133 | G32: 81 | H32: 80 / 380 | I32: 9.75 | J32: 43 | K32: 7 | L32: 11 | M32: 25 | N32: 53.75 | O32: 37 | P32: 81.00 | Q32: Англия | R32: 780
A33: 31 | B33: 30 | C33: Gust | D33: 775 | E33: 644 | F33: 131 | G33: 86 | H33: 72 / 380 | I33: 10.76 | J33: 45 | K33: 8 | L33: 10 | M33: 27 | N33: 62.5 | O33: 27 | P33: 83.80 | Q33: Англия | R33: 775
A34: 32 | B34: 31 | C34: Dmitry Tsarytsyn | D34: 774 | E34: 652 | F34: 122 | G34: 87 | H34: 80 / 380 | I34: 9.67 | J34: 44 | K34: 9 | L34: 9 | M34: 26 | N34: 55 | O34: 36 | P34: 79.85 | Q34: Англия | R34: 774
A35: 33 | B35: 32 | C35: khmel95 | D35: 773 | E35: 660 | F35: 113 | G35: 88 | H35: 80 / 380 | I35: 9.66 | J35: 46 | K35: 7 | L35: 12 | M35: 27 | N35: 57.5 | O35: 34 | P35: 83.49 | Q35: Англия | R35: 773
A36: 34 | B36: 33 | C36: Serzhik | D36: 771 | E36: 679 | F36: 92 | G36: 90 | H36: 80 / 380 | I36: 9.64 | J36: 46 | K36: 9 | L36: 12 | M36: 25 | N36: 57.5 | O36: 34 | P36: 82.22 | Q36: Англия | R36: 771
A37: 35 | B37: 34 | C37: Lazy Flash | D37: 766 | E37: 652 | F37: 114 | G37: 95 | H37: 80 / 380 | I37: 9.57 | J37: 47 | K37: 6 | L37: 9 | M37: 32 | N37: 58.75 | O37: 33 | P37: 83.67 | Q37: Англия | R37: 766
A38: 36 | B38: 35 | C38: Яг Морт | D38: 759 | E38: 685 | F38: 74 | G38: 102 | H38: 80 / 380 | I38: 9.49 | J38: 47 | K38: 8 | L38: 11 | M38: 28 | N38: 58.75 | O38: 33 | P38: 87.34 | Q38: Англия | R38: 759
A39: 37 | B39: 36 | C39: Вовчикас | D39: 759 | E39: 636 | F39: 123 | G39: 102 | H39: 80 / 380 | I39: 9.49 | J39: 46 | K39: 6 | L39: 9 | M39: 31 | N39: 57.5 | O39: 34 | P39: 85.11 | Q39: Англия | R39: 759
A40: 38 | B40: 37 | C40: murzikov | D40: 757 | E40: 682 | F40: 75 | G40: 104 | H40: 80 / 380 | I40: 9.46 | J40: 46 | K40: 8 | L40: 11 | M40: 27 | N40: 57.5 | O40: 34 | P40: 81.22 | Q40: Англия | R40: 757
A41: 39 | B41: 38 | C41: baron | D41: 757 | E41: 659 | F41: 98 | G41: 104 | H41: 79 / 380 | I41: 9.58 | J41: 44 | K41: 12 | L41: 7 | M41: 25 | N41: 55.7 | O41: 35 | P41: 83.54 | Q41: Англия | R41: 757
A42: 40 | B42: 39 | C42: SSAKALAS | D42: 756 | E42: 660 | F42: 96 | G42: 105 | H42: 80 / 380 | I42: 9.45 | J42: 44 | K42: 4 | L42: 14 | M42: 26 | N42: 55 | O42: 36 | P42: 73.61 | Q42: Англия | R42: 756
A43: 41 | B43: 40 | C43: 22rus | D43: 756 | E43: 635 | F43: 121 | G43: 105 | H43: 80 / 380 | I43: 9.45 | J43: 44 | K43: 6 | L43: 7 | M43: 31 | N43: 55 | O43: 36 | P43: 70.87 | Q43: Англия | R43: 756
A44: 42 | B44: 41 | C44: Сергей Бернадский | D44: 754 | E44: 670 | F44: 84 | G44: 107 | H44: 80 / 380 | I44: 9.42 | J44: 47 | K44: 7 | L44: 11 | M44: 29 | N44: 58.75 | O44: 33 | P44: 80.35 | Q44: Англия | R44: 754
A45: 43 | B45: 42 | C45: Angelneit-73 | D45: 754 | E45: 665 | F45: 89 | G45: 107 | H45: 79 / 380 | I45: 9.54 | J45: 45 | K45: 7 | L45: 13 | M45: 25 | N45: 56.96 | O45: 34 | P45: 78.96 | Q45: Англия | R45: 754
A46: 44 | B46: 43 | C46: Микола Білак | D46: 752 | E46: 661 | F46: 91 | G46: 109 | H46: 80 / 380 | I46: 9.4 | J46: 42 | K46: 3 | L46: 12 | M46: 27 | N46: 52.5 | O46: 38 | P46: 76.24 | Q46: Англия | R46: 752
A47: 45 | B47: 44 | C47: roman.valman | D47: 750 | E47: 643 | F47: 107 | G47: 111 | H47: 73 / 380 | I47: 10.27 | J47: 43 | K47: 12 | L47: 7 | M47: 24 | N47: 58.9 | O47: 30 | P47: 78.11 | Q47: Англия | R47: 750
A48: 46 | B48: 45 | C48: SuperVlad | D48: 749 | E48: 624 | F48: 125 | G48: 112 | H48: 73 / 380 | I48: 10.26 | J48: 47 | K48: 6 | L48: 8 | M48: 33 | N48: 64.38 | O48: 26 | P48: 83.06 | Q48: Англия | R48: 749
A49: 47 | B49: 46 | C49: Las Kij | D49: 748 | E49: 636 | F49: 112 | G49: 113 | H49: 80 / 380 | I49: 9.35 | J49: 44 | K49: 12 | L49: 12 | M49: 20 | N49: 55 | O49: 36 | P49: 81.96 | Q49: Англия | R49: 748
A50: 48 | B50: 47 | C50: anton | D50: 743 | E50: 675 | F50: 68 | G50: 118 | H50: 79 / 380 | I50: 9.41 | J50: 46 | K50: 8 | L50: 7 | M50: 31 | N50: 58.23 | O50: 33 | P50: 79.17 | Q50: Англия | R50: 743
A51: 49 | B51: 48 | C51: Куров Олег | D51: 743 | E51: 663 | F51: 80 | G51: 118 | H51: 80 / 380 | I51: 9.29 | J51: 45 | K51: 4 | L51: 13 | M51: 28 | N51: 56.25 | O51: 35 | P51: 78.81 | Q51: Англия | R51: 743
A52: 50 | B52: 49 | C52: Андрій Кожумяка | D52: 740 | E52: 646 | F52: 94 | G52: 121 | H52: 80 / 380 | I52: 9.25 | J52: 46 | K52: 8 | L52: 8 | M52: 30 | N52: 57.5 | O52: 34 | P52: 82.31 | Q52: Англия | R52: 740
A53: 51 | B53: 50 | C53: Андрей | D53: 737 | E53: 658 | F53: 79 | G53: 124 | H53: 80 / 380 | I53: 9.21 | J53: 47 | K53: 5 | L53: 17 | M53: 25 | N53: 58.75 | O53: 33 | P53: 102.71 | Q53: Англия | R53: 737
A54: 52 | B54: 51 | C54: aleks050874 | D54: 730 | E54: 671 | F54: 59 | G54: 131 | H54: 75 / 380 | I54: 9.73 | J54: 46 | K54: 8 | L54: 14 | M54: 24 | N54: 61.33 | O54: 29 | P54: 89.88 | Q54: Англия | R54: 730
A55: 53 | B55: 52 | C55: Роман Кибкало | D55: 727 | E55: 657 | F55: 70 | G55: 134 | H55: 80 / 380 | I55: 9.09 | J55: 46 | K55: 10 | L55: 11 | M55: 25 | N55: 57.5 | O55: 34 | P55: 92.65 | Q55: Англия | R55: 727
A56: 54 | B56: 53 | C56: SkVaL | D56: 726 | E56: 661 | F56: 65 | G56: 135 | H56: 80 / 380 | I56: 9.07 | J56: 47 | K56: 4 | L56: 9 | M56: 34 | N56: 58.75 | O56: 33 | P56: 78.87 | Q56: Англия | R56: 726
A57: 55 | B57: 54 | C57: Aneta81 | D57: 717 | E57: 668 | F57: 49 | G57: 144 | H57: 75 / 380 | I57: 9.56 | J57: 47 | K57: 11 | L57: 9 | M57: 27 | N57: 62.67 | O57: 28 | P57: 86.61 | Q57: Англия | R57: 717
A58: 56 | B58: 55 | C58: LioMart | D58: 716 | E58: 628 | F58: 88 | G58: 145 | H58: 80 / 380 | I58: 8.95 | J58: 47 | K58: 5 | L58: 7 | M58: 35 | N58: 58.75 | O58: 33 | P58: 79.92 | Q58: Англия | R58: 716
A59: 57 | B59: 56 | C59: azarte | D59: 713 | E59: 597 | F59: 116 | G59: 148 | H59: 73 / 380 | I59: 9.77 | J59: 41 | K59: 9 | L59: 12 | M59: 20 | N59: 56.16 | O59: 32 | P59: 67.57 | Q59: Англия | R59: 713
A60: 58 | B60: 57 | C60: Zirka | D60: 694 | E60: 605 | F60: 89 | G60: 167 | H60: 80 / 380 | I60: 8.67 | J60: 41 | K60: 6 | L60: 11 | M60: 24 | N60: 51.25 | O60: 39 | P60: 72.19 | Q60: Англия | R60: 694
A61: 59 | B61: 58 | C61: Doktoroff | D61: 680 | E61: 680 | F61: 0 | G61: 181 | H61: 80 / 380 | I61: 8.5 | J61: 47 | K61: 8 | L61: 8 | M61: 31 | N61: 58.75 | O61: 33 | P61: 79.82 | Q61: Англия | R61: 680
A62: 60 | B62: 59 | C62: Андрій Огороднік | D62: 674 | E62: 600 | F62: 74 | G62: 187 | H62: 70 / 380 | I62: 9.63 | J62: 44 | K62: 10 | L62: 10 | M62: 24 | N62: 62.86 | O62: 26 | P62: 90.13 | Q62: Англия | R62: 674
A63: 61 | B63: 60 | C63: rumkot | D63: 672 | E63: 672 | F63: 0 | G63: 189 | H63: 80 / 380 | I63: 8.4 | J63: 47 | K63: 6 | L63: 13 | M63: 28 | N63: 58.75 | O63: 33 | P63: 82.77 | Q63: Англия | R63: 672
A64: 62 | B64: 61 | C64: BIHHI87 | D64: 665 | E64: 598 | F64: 67 | G64: 196 | H64: 70 / 380 | I64: 9.5 | J64: 44 | K64: 6 | L64: 6 | M64: 32 | N64: 62.86 | O64: 26 | P64: 83.45 | Q64: Англия | R64: 665
A65: 63 | B65: 62 | C65: Pavel4613 | D65: 664 | E65: 664 | F65: 0 | G65: 197 | H65: 80 / 380 | I65: 8.3 | J65: 45 | K65: 10 | L65: 10 | M65: 25 | N65: 56.25 | O65: 35 | P65: 87.84 | Q65: Англия | R65: 664
A66: 64 | B66: 63 | C66: Petrovish-35. | D66: 657 | E66: 568 | F66: 89 | G66: 204 | H66: 70 / 380 | I66: 9.39 | J66: 39 | K66: 6 | L66: 4 | M66: 29 | N66: 55.71 | O66: 31 | P66: 66.96 | Q66: Англия | R66: 657
A67: 65 | B67: 64 | C67: cska5 | D67: 653 | E67: 653 | F67: 0 | G67: 208 | H67: 80 / 380 | I67: 8.16 | J67: 45 | K67: 7 | L67: 6 | M67: 32 | N67: 56.25 | O67: 35 | P67: 77.12 | Q67: Англия | R67: =SUMIF(C:C,C67,D:D) -> 653
A68: 66 | B68: 65 | C68: aleks22411971 | D68: 644 | E68: 644 | F68: 0 | G68: 217 | H68: 80 / 380 | I68: 8.05 | J68: 46 | K68: 7 | L68: 10 | M68: 29 | N68: 57.5 | O68: 34 | P68: 91.15 | Q68: Англия | R68: 644
A69: 67 | B69: 66 | C69: ruslan | D69: 634 | E69: 634 | F69: 0 | G69: 227 | H69: 74 / 380 | I69: 8.57 | J69: 45 | K69: 4 | L69: 11 | M69: 30 | N69: 60.81 | O69: 29 | P69: 86.78 | Q69: Англия | R69: 634
A70: 68 | B70: 67 | C70: hnatko | D70: 628 | E70: 618 | F70: 10 | G70: 233 | H70: 78 / 380 | I70: 8.05 | J70: 38 | K70: 6 | L70: 13 | M70: 19 | N70: 48.72 | O70: 40 | P70: 74.84 | Q70: Англия | R70: 628
A71: 69 | B71: 68 | C71: VladS | D71: 628 | E71: 540 | F71: 88 | G71: 233 | H71: 60 / 380 | I71: 10.47 | J71: 38 | K71: 8 | L71: 4 | M71: 26 | N71: 63.33 | O71: 22 | P71: 69.31 | Q71: Англия | R71: 628
A72: 70 | B72: 69 | C72: MasterC4 | D72: 625 | E72: 534 | F72: 91 | G72: 236 | H72: 62 / 380 | I72: 10.08 | J72: 39 | K72: 5 | L72: 10 | M72: 24 | N72: 62.9 | O72: 23 | P72: 76.65 | Q72: Англия | R72: 625
A73: 71 | B73: 70 | C73: Emmanuel Oboubi | D73: 623 | E73: 535 | F73: 88 | G73: 238 | H73: 61 / 380 | I73: 10.21 | J73: 37 | K73: 3 | L73: 10 | M73: 24 | N73: 60.66 | O73: 24 | P73: 70.76 | Q73: Англия | R73: 623
A74: 72 | B74: 71 | C74: Вова Щур | D74: 618 | E74: 618 | F74: 0 | G74: 243 | H74: 80 / 380 | I74: 7.72 | J74: 45 | K74: 10 | L74: 9 | M74: 26 | N74: 56.25 | O74: 35 | P74: 78.99 | Q74: Англия | R74: 618
A75: 73 | B75: 72 | C75: ziama | D75: 605 | E75: 509 | F75: 96 | G75: 256 | H75: 70 / 380 | I75: 8.64 | J75: 29 | K75: 8 | L75: 10 | M75: 11 | N75: 41.43 | O75: 41 | P75: 82.30 | Q75: Англия | R75: 605
A76: 74 | B76: 73 | C76: Sergyn9 | D76: 595 | E76: 503 | F76: 92 | G76: 266 | H76: 54 / 380 | I76: 11.02 | J76: 37 | K76: 8 | L76: 10 | M76: 19 | N76: 68.52 | O76: 17 | P76: 71.33 | Q76: Англия | R76: 595
A77: 75 | B77: 74 | C77: DAV1978 | D77: 586 | E77: 586 | F77: 0 | G77: 275 | H77: 80 / 380 | I77: 7.32 | J77: 34 | K77: 4 | L77: 13 | M77: 17 | N77: 42.5 | O77: 46 | P77: 67.53 | Q77: Англия | R77: 586
A78: 76 | B78: 75 | C78: динамо | D78: 571 | E78: 496 | F78: 75 | G78: 290 | H78: 60 / 380 | I78: 9.52 | J78: 33 | K78: 7 | L78: 3 | M78: 23 | N78: 55 | O78: 27 | P78: 60.22 | Q78: Англия | R78: 571
A79: 77 | B79: 76 | C79: Tosha13 | D79: 549 | E79: 468 | F79: 81 | G79: 312 | H79: 50 / 380 | I79: 10.98 | J79: 31 | K79: 8 | L79: 6 | M79: 17 | N79: 62 | O79: 19 | P79: 55.18 | Q79: Англия | R79: 549
A80: 78 | B80: 77 | C80: nickthesecond | D80: 548 | E80: 482 | F80: 66 | G80: 313 | H80: 70 / 380 | I80: 7.83 | J80: 27 | K80: 6 | L80: 8 | M80: 13 | N80: 38.57 | O80: 43 | P80: 73.94 | Q80: Англия | R80: 548
A81: 79 | B81: 78 | C81: dander | D81: 526 | E81: 474 | F81: 52 | G81: 335 | H81: 70 / 380 | I81: 7.51 | J81: 27 | K81: 9 | L81: 6 | M81: 12 | N81: 38.57 | O81: 43 | P81: 66.49 | Q81: Англия | R81: 526
A82: 80 | B82: 79 | C82: l1der | D82: 526 | E82: 461 | F82: 65 | G82: 335 | H82: 70 / 380 | I82: 7.51 | J82: 26 | K82: 8 | L82: 7 | M82: 11 | N82: 37.14 | O82: 44 | P82: 72.46 | Q82: Англия | R82: 526
A83: 81 | B83: 80 | C83: sergey.derx | D83: 507 | E83: 483 | F83: 24 | G83: 354 | H83: 70 / 380 | I83: 7.24 | J83: 29 | K83: 7 | L83: 6 | M83: 16 | N83: 41.43 | O83: 41 | P83: 80.00 | Q83: Англия | R83: 507
A84: 82 | B84: 81 | C84: andrpo1 | D84: 496 | E84: 446 | F84: 50 | G84: 365 | H84: 70 / 380 | I84: 7.09 | J84: 25 | K84: 4 | L84: 11 | M84: 10 | N84: 35.71 | O84: 45 | P84: 61.24 | Q84: Англия | R84: 496
A85: 83 | B85: 82 | C85: sergeyn | D85: 495 | E85: 417 | F85: 78 | G85: 366 | H85: 70 / 380 | I85: 7.07 | J85: 22 | K85: 3 | L85: 6 | M85: 13 | N85: 31.43 | O85: 48 | P85: 52.65 | Q85: Англия | R85: 495
A86: 84 | B86: 83 | C86: sparta1 | D86: 480 | E86: 418 | F86: 62 | G86: 381 | H86: 70 / 380 | I86: 6.86 | J86: 23 | K86: 2 | L86: 9 | M86: 12 | N86: 32.86 | O86: 47 | P86: 53.35 | Q86: Англия | R86: 480
A87: 85 | B87: 84 | C87: Drezden1 | D87: 477 | E87: 406 | F87: 71 | G87: 384 | H87: 70 / 380 | I87: 6.81 | J87: 20 | K87: 4 | L87: 6 | M87: 10 | N87: 28.57 | O87: 50 | P87: 53.12 | Q87: Англия | R87: 477
A88: 86 | B88: 85 | C88: RMadrid | D88: 476 | E88: 425 | F88: 51 | G88: 385 | H88: 70 / 380 | I88: 6.8 | J88: 23 | K88: 2 | L88: 9 | M88: 12 | N88: 32.86 | O88: 47 | P88: 56.78 | Q88: Англия | R88: 476
A89: 87 | B89: 86 | C89: Garry | D89: 468 | E89: 432 | F89: 36 | G89: 393 | H89: 70 / 380 | I89: 6.69 | J89: 23 | K89: 4 | L89: 6 | M89: 13 | N89: 32.86 | O89: 47 | P89: 61.45 | Q89: Англия | R89: 468
A90: 88 | B90: 87 | C90: Динар | D90: 468 | E90: 429 | F90: 39 | G90: 393 | H90: 70 / 380 | I90: 6.69 | J90: 21 | K90: 7 | L90: 5 | M90: 9 | N90: 30 | O90: 49 | P90: 66.64 | Q90: Англия | R90: 468
A91: 89 | B91: 88 | C91: dmol13 | D91: 465 | E91: 405 | F91: 60 | G91: 396 | H91: 70 / 380 | I91: 6.64 | J91: 21 | K91: 6 | L91: 5 | M91: 10 | N91: 30 | O91: 49 | P91: 64.41 | Q91: Англия | R91: 465
A92: 90 | B92: 89 | C92: white force | D92: 458 | E92: 404 | F92: 54 | G92: 403 | H92: 70 / 380 | I92: 6.54 | J92: 18 | K92: 1 | L92: 6 | M92: 11 | N92: 25.71 | O92: 52 | P92: 40.75 | Q92: Англия | R92: 458
A93: 91 | B93: 90 | C93: sS1mple | D93: 452 | E93: 422 | F93: 30 | G93: 409 | H93: 70 / 380 | I93: 6.46 | J93: 23 | K93: 2 | L93: 9 | M93: 12 | N93: 32.86 | O93: 47 | P93: 55.43 | Q93: Англия | R93: 452
A94: 92 | B94: 91 | C94: danaygol | D94: 451 | E94: 426 | F94: 25 | G94: 410 | H94: 55 / 380 | I94: 8.2 | J94: 27 | K94: 6 | L94: 6 | M94: 15 | N94: 49.09 | O94: 28 | P94: 52.55 | Q94: Англия | R94: 451
A95: 93 | B95: 92 | C95: Laster | D95: 445 | E95: 399 | F95: 46 | G95: 416 | H95: 70 / 380 | I95: 6.36 | J95: 19 | K95: 4 | L95: 3 | M95: 12 | N95: 27.14 | O95: 51 | P95: 46.89 | Q95: Англия | R95: 445
A96: 94 | B96: 93 | C96: FEt1s | D96: 441 | E96: 403 | F96: 38 | G96: 420 | H96: 70 / 380 | I96: 6.3 | J96: 18 | K96: 5 | L96: 8 | M96: 5 | N96: 25.71 | O96: 52 | P96: 49.00 | Q96: Англия | R96: 441
A97: 95 | B97: 94 | C97: Andrii Bilenkyi | D97: 433 | E97: 433 | F97: 0 | G97: 428 | H97: 54 / 380 | I97: 8.02 | J97: 29 | K97: 6 | L97: 7 | M97: 16 | N97: 53.7 | O97: 25 | P97: 51.86 | Q97: Англия | R97: 433
A98: 96 | B98: 95 | C98: ivan | D98: 432 | E98: 388 | F98: 44 | G98: 429 | H98: 70 / 380 | I98: 6.17 | J98: 20 | K98: 2 | L98: 8 | M98: 10 | N98: 28.57 | O98: 50 | P98: 53.28 | Q98: Англия | R98: 432
A99: 97 | B99: 96 | C99: thpred | D99: 431 | E99: 403 | F99: 28 | G99: 430 | H99: 70 / 380 | I99: 6.16 | J99: 21 | K99: 5 | L99: 4 | M99: 12 | N99: 30 | O99: 49 | P99: 47.62 | Q99: Англия | R99: 431
A100: 98 | B100: 97 | C100: forman-gert | D100: 424 | E100: 385 | F100: 39 | G100: 437 | H100: 70 / 380 | I100: 6.06 | J100: 18 | K100: 3 | L100: 7 | M100: 8 | N100: 25.71 | O100: 52 | P100: 46.73 | Q100: Англия | R100: 424
A101: 99 | B101: 98 | C101: G3rman | D101: 423 | E101: 381 | F101: 42 | G101: 438 | H101: 70 / 380 | I101: 6.04 | J101: 18 | K101: 4 | L101: 7 | M101: 7 | N101: 25.71 | O101: 52 | P101: 52.28 | Q101: Англия | R101: 423
A102: 100 | B102: 99 | C102: serg.ter | D102: 417 | E102: 398 | F102: 19 | G102: 444 | H102: 70 / 380 | I102: 5.96 | J102: 20 | K102: 2 | L102: 9 | M102: 9 | N102: 28.57 | O102: 50 | P102: 45.56 | Q102: Англия | R102: 417
A103: 101 | B103: 100 | C103: predictor | D103: 413 | E103: 383 | F103: 30 | G103: 448 | H103: 70 / 380 | I103: 5.9 | J103: 17 | K103: 2 | L103: 5 | M103: 10 | N103: 24.29 | O103: 53 | P103: 42.66 | Q103: Англия | R103: 413
A104: 102 | B104: 101 | C104: altaran | D104: 410 | E104: 382 | F104: 28 | G104: 451 | H104: 70 / 380 | I104: 5.86 | J104: 17 | K104: 3 | L104: 4 | M104: 10 | N104: 24.29 | O104: 53 | P104: 38.18 | Q104: Англия | R104: 410
A105: 103 | B105: 102 | C105: Sun | D105: 391 | E105: 326 | F105: 65 | G105: 470 | H105: 40 / 380 | I105: 9.77 | J105: 23 | K105: 4 | L105: 5 | M105: 14 | N105: 57.5 | O105: 17 | P105: 40.36 | Q105: Англия | R105: 391
A106: 104 | B106: 103 | C106: sergejserikov2017 | D106: 370 | E106: 313 | F106: 57 | G106: 491 | H106: 39 / 380 | I106: 9.49 | J106: 22 | K106: 2 | L106: 5 | M106: 15 | N106: 56.41 | O106: 17 | P106: 40.49 | Q106: Англия | R106: 370
A107: 105 | B107: 104 | C107: zTeref | D107: 368 | E107: 333 | F107: 35 | G107: 493 | H107: 70 / 380 | I107: 5.26 | J107: 14 | K107: 1 | L107: 8 | M107: 5 | N107: 20 | O107: 56 | P107: 37.41 | Q107: Англия | R107: 368
A108: 106 | B108: 105 | C108: TMfC1924 | D108: 367 | E108: 367 | F108: 0 | G108: 494 | H108: 41 / 380 | I108: 8.95 | J108: 26 | K108: 5 | L108: 4 | M108: 17 | N108: 63.41 | O108: 15 | P108: 44.86 | Q108: Англия | R108: 367
A109: 107 | B109: 106 | C109: lond0nka | D109: 347 | E109: 299 | F109: 48 | G109: 514 | H109: 30 / 380 | I109: 11.57 | J109: 22 | K109: 4 | L109: 5 | M109: 13 | N109: 73.33 | O109: 8 | P109: 40.30 | Q109: Англия | R109: 347
A110: 108 | B110: 107 | C110: mcichnik | D110: 329 | E110: 282 | F110: 47 | G110: 532 | H110: 39 / 380 | I110: 8.44 | J110: 18 | K110: 0 | L110: 5 | M110: 13 | N110: 46.15 | O110: 21 | P110: 31.72 | Q110: Англия | R110: 329
A111: 109 | B111: 108 | C111: rfnhfgc | D111: 322 | E111: 295 | F111: 27 | G111: 539 | H111: 37 / 380 | I111: 8.7 | J111: 19 | K111: 2 | L111: 4 | M111: 13 | N111: 51.35 | O111: 18 | P111: 33.95 | Q111: Англия | R111: 322
A112: 110 | B112: 109 | C112: Тагир Мурсалов | D112: 309 | E112: 281 | F112: 28 | G112: 552 | H112: 40 / 380 | I112: 7.72 | J112: 17 | K112: 4 | L112: 1 | M112: 12 | N112: 42.5 | O112: 23 | P112: 28.30 | Q112: Англия | R112: 309
A113: 111 | B113: 110 | C113: alex | D113: 299 | E113: 287 | F113: 12 | G113: 562 | H113: 43 / 380 | I113: 6.95 | J113: 19 | K113: 1 | L113: 6 | M113: 12 | N113: 44.19 | O113: 24 | P113: 32.55 | Q113: Англия | R113: 299
A114: 112 | B114: 111 | C114: Роман Ороман | D114: 291 | E114: 255 | F114: 36 | G114: 570 | H114: 30 / 380 | I114: 9.7 | J114: 18 | K114: 3 | L114: 7 | M114: 8 | N114: 60 | O114: 12 | P114: 32.78 | Q114: Англия | R114: 291
A115: 113 | B115: 112 | C115: Сергій Денькович | D115: 291 | E115: 242 | F115: 49 | G115: 570 | H115: 30 / 380 | I115: 9.7 | J115: 16 | K115: 4 | L115: 3 | M115: 9 | N115: 53.33 | O115: 14 | P115: 29.27 | Q115: Англия | R115: 291
A116: 114 | B116: 113 | C116: сафон | D116: 281 | E116: 240 | F116: 41 | G116: 580 | H116: 31 / 380 | I116: 9.06 | J116: 17 | K116: 3 | L116: 2 | M116: 12 | N116: 54.84 | O116: 14 | P116: 33.39 | Q116: Англия | R116: 281
A117: 115 | B117: 114 | C117: Osvita Cloud | D117: 250 | E117: 238 | F117: 12 | G117: 611 | H117: 29 / 380 | I117: 8.62 | J117: 17 | K117: 5 | L117: 2 | M117: 10 | N117: 58.62 | O117: 12 | P117: 36.06 | Q117: Англия | R117: 250
A118: 116 | B118: 115 | C118: savundi | D118: 250 | E118: 213 | F118: 37 | G118: 611 | H118: 28 / 380 | I118: 8.93 | J118: 15 | K118: 3 | L118: 1 | M118: 11 | N118: 53.57 | O118: 13 | P118: 27.07 | Q118: Англия | R118: 250
A119: 117 | B119: 116 | C119: Tarik2210 | D119: 198 | E119: 163 | F119: 35 | G119: 663 | H119: 20 / 380 | I119: 9.9 | J119: 11 | K119: 5 | L119: 0 | M119: 6 | N119: 55 | O119: 9 | P119: 21.22 | Q119: Англия | R119: 198
A120: 118 | B120: 117 | C120: romankramarenko457 | D120: 184 | E120: 174 | F120: 10 | G120: 677 | H120: 20 / 380 | I120: 9.2 | J120: 13 | K120: 2 | L120: 0 | M120: 11 | N120: 65 | O120: 7 | P120: 22.85 | Q120: Англия | R120: 184
A121: 119 | B121: 118 | C121: CLH Hour | D121: 183 | E121: 183 | F121: 0 | G121: 678 | H121: 20 / 380 | I121: 9.15 | J121: 14 | K121: 1 | L121: 4 | M121: 9 | N121: 70 | O121: 6 | P121: 26.92 | Q121: Англия | R121: 183
A122: 120 | B122: 119 | C122: Petro Andrushchak | D122: 182 | E122: 173 | F122: 9 | G122: 679 | H122: 20 / 380 | I122: 9.1 | J122: 14 | K122: 3 | L122: 2 | M122: 9 | N122: 70 | O122: 6 | P122: 26.47 | Q122: Англия | R122: 182
A123: 121 | B123: 120 | C123: Aleksey Taran | D123: 182 | E123: 157 | F123: 25 | G123: 679 | H123: 20 / 380 | I123: 9.1 | J123: 12 | K123: 2 | L123: 0 | M123: 10 | N123: 60 | O123: 8 | P123: 20.12 | Q123: Англия | R123: 182
A124: 122 | B124: 121 | C124: Rtrain Raxt | D124: 171 | E124: 171 | F124: 0 | G124: 690 | H124: 19 / 380 | I124: 9 | J124: 14 | K124: 3 | L124: 2 | M124: 9 | N124: 73.68 | O124: 5 | P124: 26.47 | Q124: Англия | R124: 171
A125: 123 | B125: 122 | C125: Виталий | D125: 161 | E125: 161 | F125: 0 | G125: 700 | H125: 20 / 380 | I125: 8.05 | J125: 13 | K125: 2 | L125: 3 | M125: 8 | N125: 65 | O125: 7 | P125: 25.49 | Q125: Англия | R125: 161
A126: 124 | B126: 123 | C126: Сергей Гаврилюк | D126: 151 | E126: 146 | F126: 5 | G126: 710 | H126: 19 / 380 | I126: 7.95 | J126: 10 | K126: 2 | L126: 3 | M126: 5 | N126: 52.63 | O126: 9 | P126: 20.58 | Q126: Англия | R126: 151
A127: 125 | B127: 124 | C127: PremierLeague | D127: 137 | E127: 137 | F127: 0 | G127: 724 | H127: 20 / 380 | I127: 6.85 | J127: 10 | K127: 0 | L127: 1 | M127: 9 | N127: 50 | O127: 10 | P127: 16.20 | Q127: Англия | R127: 137
A128: 126 | B128: 125 | C128: ilsur-fresh | D128: 115 | E128: 115 | F128: 0 | G128: 746 | H128: 10 / 380 | I128: 11.5 | J128: 9 | K128: 3 | L128: 3 | M128: 3 | N128: 90 | O128: 1 | P128: 21.25 | Q128: Англия | R128: 115
A129: 127 | B129: 126 | C129: vitoscalette21 | D129: 102 | E129: 102 | F129: 0 | G129: 759 | H129: 10 / 380 | I129: 10.2 | J129: 7 | K129: 1 | L129: 3 | M129: 3 | N129: 70 | O129: 3 | P129: 15.80 | Q129: Англия | R129: 102
A130: 128 | B130: 127 | C130: Maxidollar | D130: 102 | E130: 102 | F130: 0 | G130: 759 | H130: 11 / 380 | I130: 9.27 | J130: 7 | K130: 1 | L130: 2 | M130: 4 | N130: 63.64 | O130: 4 | P130: 13.42 | Q130: Англия | R130: 102
A131: 129 | B131: 128 | C131: Trent Alexander-Arnold | D131: 100 | E131: 85 | F131: 15 | G131: 761 | H131: 10 / 380 | I131: 10 | J131: 5 | K131: 1 | L131: 0 | M131: 4 | N131: 50 | O131: 5 | P131: 6.75 | Q131: Англия | R131: =SUMIF(C:C,C131,D:D) -> 100
A132: 130 | B132: 129 | C132: Rajabali | D132: 97 | E132: 97 | F132: 0 | G132: 764 | H132: 9 / 380 | I132: 10.78 | J132: 8 | K132: 3 | L132: 1 | M132: 4 | N132: 88.89 | O132: 1 | P132: 17.97 | Q132: Англия | R132: 97
A133: 131 | B133: 130 | C133: SE29 | D133: 97 | E133: 97 | F133: 0 | G133: 764 | H133: 9 / 380 | I133: 10.78 | J133: 7 | K133: 1 | L133: 3 | M133: 3 | N133: 77.78 | O133: 2 | P133: 14.37 | Q133: Англия | R133: 97
A134: 132 | B134: 131 | C134: Stanislav Semenov | D134: 91 | E134: 82 | F134: 9 | G134: 770 | H134: 9 / 380 | I134: 10.11 | J134: 5 | K134: 0 | L134: 3 | M134: 2 | N134: 55.56 | O134: 4 | P134: 9.86 | Q134: Англия | R134: 91
A135: 133 | B135: 132 | C135: Віталій Назаревич | D135: 90 | E135: 90 | F135: 0 | G135: 771 | H135: 10 / 380 | I135: 9 | J135: 6 | K135: 1 | L135: 2 | M135: 3 | N135: 60 | O135: 4 | P135: 10.25 | Q135: Англия | R135: 90
A136: 134 | B136: 133 | C136: Olayinka90 | D136: 89 | E136: 79 | F136: 10 | G136: 772 | H136: 9 / 380 | I136: 9.89 | J136: 6 | K136: 1 | L136: 1 | M136: 4 | N136: 66.67 | O136: 3 | P136: 12.22 | Q136: Англия | R136: 89
A137: 135 | B137: 134 | C137: Dilmurod Askarov | D137: 87 | E137: 87 | F137: 0 | G137: 774 | H137: 10 / 380 | I137: 8.7 | J137: 6 | K137: 1 | L137: 0 | M137: 5 | N137: 60 | O137: 4 | P137: 11.11 | Q137: Англия | R137: 87
A138: 136 | B138: 135 | C138: nikita_fufachev | D138: 87 | E138: 70 | F138: 17 | G138: 774 | H138: 9 / 380 | I138: 9.67 | J138: 4 | K138: 0 | L138: 0 | M138: 4 | N138: 44.44 | O138: 5 | P138: 5.42 | Q138: Англия | R138: 87
A139: 137 | B139: 136 | C139: Karim Mairakzz | D139: 86 | E139: 81 | F139: 5 | G139: 775 | H139: 10 / 380 | I139: 8.6 | J139: 5 | K139: 1 | L139: 0 | M139: 4 | N139: 50 | O139: 5 | P139: 7.25 | Q139: Англия | R139: 86
A140: 138 | B140: 137 | C140: atay.liverpool | D140: 85 | E140: 85 | F140: 0 | G140: 776 | H140: 9 / 380 | I140: 9.44 | J140: 6 | K140: 0 | L140: 1 | M140: 5 | N140: 66.67 | O140: 3 | P140: 10.25 | Q140: Англия | R140: 85
A141: 139 | B141: 138 | C141: GR7 | D141: 85 | E141: 85 | F141: 0 | G141: 776 | H141: 10 / 380 | I141: 8.5 | J141: 6 | K141: 0 | L141: 1 | M141: 5 | N141: 60 | O141: 4 | P141: 10.85 | Q141: Англия | R141: 85
A142: 140 | B142: 139 | C142: Unreal 17 | D142: 79 | E142: 79 | F142: 0 | G142: 782 | H142: 10 / 380 | I142: 7.9 | J142: 5 | K142: 0 | L142: 0 | M142: 5 | N142: 50 | O142: 5 | P142: 7.25 | Q142: Англия | R142: 79
A143: 141 | B143: 140 | C143: Alegik_27 | D143: 70 | E143: 70 | F143: 0 | G143: 791 | H143: 9 / 380 | I143: 7.78 | J143: 4 | K143: 1 | L143: 0 | M143: 3 | N143: 44.44 | O143: 5 | P143: 7.37 | Q143: Англия | R143: 70
A144: 142 | B144: 141 | C144: Huxley | D144: 69 | E144: 58 | F144: 11 | G144: 792 | H144: 9 / 380 | I144: 7.67 | J144: 3 | K144: 1 | L144: 1 | M144: 1 | N144: 33.33 | O144: 6 | P144: 4.86 | Q144: Англия | R144: 69
A145: 143 | B145: 142 | C145: Андрей Большаков | D145: 66 | E145: 66 | F145: 0 | G145: 795 | H145: 9 / 380 | I145: 7.33 | J145: 4 | K145: 0 | L145: 0 | M145: 4 | N145: 44.44 | O145: 5 | P145: 5.42 | Q145: Англия | R145: 66
A146: 144 | B146: 143 | C146: deepraj07 | D146: 65 | E146: 65 | F146: 0 | G146: 796 | H146: 8 / 380 | I146: 8.12 | J146: 5 | K146: 1 | L146: 0 | M146: 4 | N146: 62.5 | O146: 3 | P146: 8.72 | Q146: Англия | R146: 65
A147: 145 | B147: 144 | C147: Star | D147: 58 | E147: 48 | F147: 10 | G147: 803 | H147: 8 / 380 | I147: 7.25 | J147: 3 | K147: 0 | L147: 1 | M147: 2 | N147: 37.5 | O147: 5 | P147: 4.86 | Q147: Англия | R147: 58
A148: 146 | B148: 145 | C148: savic | D148: 57 | E148: 56 | F148: 1 | G148: 804 | H148: 10 / 380 | I148: 5.7 | J148: 4 | K148: 0 | L148: 0 | M148: 4 | N148: 40 | O148: 6 | P148: 6.82 | Q148: Англия | R148: 57
A149: 147 | B149: 146 | C149: Egor Zanchurin | D149: 44 | E149: 44 | F149: 0 | G149: 817 | H149: 5 / 380 | I149: 8.8 | J149: 4 | K149: 0 | L149: 0 | M149: 4 | N149: 80 | O149: 1 | P149: 8.56 | Q149: Англия | R149: 44
A150: 148 | B150: 147 | C150: Юрій Романюк | D150: 40 | E150: 40 | F150: 0 | G150: 821 | H150: 5 / 380 | I150: 8 | J150: 3 | K150: 1 | L150: 0 | M150: 2 | N150: 60 | O150: 2 | P150: 4.36 | Q150: Англия | R150: 40
A151: 149 | B151: 148 | C151: Шахриер Негматов | D151: 39 | E151: 39 | F151: 0 | G151: 822 | H151: 5 / 380 | I151: 7.8 | J151: 3 | K151: 0 | L151: 1 | M151: 2 | N151: 60 | O151: 2 | P151: 5.56 | Q151: Англия | R151: 39
A152: 150 | B152: 149 | C152: павел фил | D152: 24 | E152: 18 | F152: 6 | G152: 837 | H152: 3 / 380 | I152: 8 | J152: 2 | K152: 0 | L152: 1 | M152: 1 | N152: 66.67 | O152: 1 | P152: 3.71 | Q152: Англия | R152: 24
A153: 151 | B153: 150 | C153: maradona86 | D153: 17 | E153: 12 | F153: 5 | G153: 844 | H153: 1 / 380 | I153: 17 | J153: 1 | K153: 0 | L153: 0 | M153: 1 | N153: 100 | O153: 0 | P153: 1.91 | Q153: Англия | R153: 17
A154: 152 | B154: 151 | C154: aleksandrtkacenko1312 | D154: 17 | E154: 12 | F154: 5 | G154: 844 | H154: 1 / 380 | I154: 17 | J154: 1 | K154: 0 | L154: 0 | M154: 1 | N154: 100 | O154: 0 | P154: 1.33 | Q154: Англия | R154: 17
A155: 153 | B155: 152 | C155: Burtaze | D155: 17 | E155: 12 | F155: 5 | G155: 844 | H155: 1 / 380 | I155: 17 | J155: 1 | K155: 0 | L155: 0 | M155: 1 | N155: 100 | O155: 0 | P155: 1.33 | Q155: Англия | R155: 17
A156: 154 | B156: 153 | C156: Elbek Yuldashev | D156: 13 | E156: 13 | F156: 0 | G156: 848 | H156: 1 / 380 | I156: 13 | J156: 1 | K156: 0 | L156: 1 | M156: 0 | N156: 100 | O156: 0 | P156: 1.91 | Q156: Англия | R156: 13
A157: 155 | B157: 154 | C157: AdLaBat | D157: 12 | E157: 12 | F157: 0 | G157: 849 | H157: 1 / 380 | I157: 12 | J157: 1 | K157: 0 | L157: 0 | M157: 1 | N157: 100 | O157: 0 | P157: 1.91 | Q157: Англия | R157: 12
A158: 156 | B158: 155 | C158: Евгений Пономарев | D158: 12 | E158: 12 | F158: 0 | G158: 849 | H158: 1 / 380 | I158: 12 | J158: 1 | K158: 0 | L158: 0 | M158: 1 | N158: 100 | O158: 0 | P158: 1.33 | Q158: Англия | R158: 12
A159: 157 | B159: 156 | C159: Дмитрий Дзюба | D159: 12 | E159: 12 | F159: 0 | G159: 849 | H159: 1 / 380 | I159: 12 | J159: 1 | K159: 0 | L159: 0 | M159: 1 | N159: 100 | O159: 0 | P159: 1.33 | Q159: Англия | R159: 12
A160: 158 | B160: 157 | C160: MemphiS | D160: 12 | E160: 12 | F160: 0 | G160: 849 | H160: 1 / 380 | I160: 12 | J160: 1 | K160: 0 | L160: 0 | M160: 1 | N160: 100 | O160: 0 | P160: 1.33 | Q160: Англия | R160: 12
A161: 159 | B161: 158 | C161: Сергій Шевченко | D161: 12 | E161: 12 | F161: 0 | G161: 849 | H161: 1 / 380 | I161: 12 | J161: 1 | K161: 0 | L161: 0 | M161: 1 | N161: 100 | O161: 0 | P161: 1.29 | Q161: Англия | R161: 12
A162: 160 | B162: 159 | C162: Миша Карпман | D162: 12 | E162: 12 | F162: 0 | G162: 849 | H162: 1 / 380 | I162: 12 | J162: 1 | K162: 0 | L162: 0 | M162: 1 | N162: 100 | O162: 0 | P162: 1.25 | Q162: Англия | R162: 12
A163: 161 | B163: 160 | C163: Vaqif Rashidov | D163: 12 | E163: 12 | F163: 0 | G163: 849 | H163: 1 / 380 | I163: 12 | J163: 1 | K163: 0 | L163: 0 | M163: 1 | N163: 100 | O163: 0 | P163: 1.25 | Q163: Англия | R163: 12
A164: 162 | B164: 161 | C164: kurah1022 | D164: 12 | E164: 12 | F164: 0 | G164: 849 | H164: 1 / 380 | I164: 12 | J164: 1 | K164: 0 | L164: 0 | M164: 1 | N164: 100 | O164: 0 | P164: 1.25 | Q164: Англия | R164: 12
A165: 163 | B165: 162 | C165: Ridik058 | D165: 9 | E165: 9 | F165: 0 | G165: 852 | H165: 1 / 380 | I165: 9 | J165: 1 | K165: 0 | L165: 0 | M165: 1 | N165: 100 | O165: 0 | P165: 1.18 | Q165: Англия | R165: 9
A166: 164 | B166: 163 | C166: naio5165 | D166: 1 | E166: 1 | F166: 0 | G166: 860 | H166: 2 / 380 | I166: 0.5 | J166: 0 | K166: 0 | L166: 0 | M166: 0 | N166: 0 | O166: 2 | P166: 0.00 | Q166: Англия | R166: 1
A167: 165 | B167: 164 | C167: TES22 | D167: 0 | E167: 0 | F167: 0 | G167: 861 | H167: 0 / 380 | I167: 0 | J167: 0 | K167: 0 | L167: 0 | M167: 0 | N167: 0 | O167: 0 | P167: 0.00 | Q167: Англия | R167: 0
A168: 166 | B168: 165 | C168: 100000 | D168: 0 | E168: 0 | F168: 0 | G168: 861 | H168: 0 / 380 | I168: 0 | J168: 0 | K168: 0 | L168: 0 | M168: 0 | N168: 0 | O168: 0 | P168: 0.00 | Q168: Англия | R168: 0
A169: 167 | B169: 166 | C169: Arafangel | D169: 0 | E169: 0 | F169: 0 | G169: 861 | H169: 0 / 380 | I169: 0 | J169: 0 | K169: 0 | L169: 0 | M169: 0 | N169: 0 | O169: 0 | P169: 0.00 | Q169: Англия | R169: 0
A170: 168 | B170: 167 | C170: id49239928 | D170: 0 | E170: 0 | F170: 0 | G170: 861 | H170: 0 / 380 | I170: 0 | J170: 0 | K170: 0 | L170: 0 | M170: 0 | N170: 0 | O170: 0 | P170: 0.00 | Q170: Англия | R170: 0
A171: 169 | B171: 168 | C171: TES-1 | D171: 0 | E171: 0 | F171: 0 | G171: 861 | H171: 0 / 380 | I171: 0 | J171: 0 | K171: 0 | L171: 0 | M171: 0 | N171: 0 | O171: 0 | P171: 0.00 | Q171: Англия | R171: 0
A172: 170 | B172: 169 | C172: pavel 1k | D172: 0 | E172: 0 | F172: 0 | G172: 861 | H172: 0 / 380 | I172: 0 | J172: 0 | K172: 0 | L172: 0 | M172: 0 | N172: 0 | O172: 0 | P172: 0.00 | Q172: Англия | R172: 0
A173: 171 | B173: 170 | C173: Динамо | D173: 0 | E173: 0 | F173: 0 | G173: 861 | H173: 0 / 380 | I173: 0 | J173: 0 | K173: 0 | L173: 0 | M173: 0 | N173: 0 | O173: 0 | P173: 0.00 | Q173: Англия | R173: 571
A174: 172 | B174: 171 | C174: Andriy14 | D174: 0 | E174: 0 | F174: 0 | G174: 861 | H174: 0 / 380 | I174: 0 | J174: 0 | K174: 0 | L174: 0 | M174: 0 | N174: 0 | O174: 0 | P174: 0.00 | Q174: Англия | R174: 0
A175: 173 | B175: 172 | C175: Yarmolenko | D175: 0 | E175: 0 | F175: 0 | G175: 861 | H175: 0 / 380 | I175: 0 | J175: 0 | K175: 0 | L175: 0 | M175: 0 | N175: 0 | O175: 0 | P175: 0.00 | Q175: Англия | R175: 0
A176: 174 | B176: 173 | C176: Богдан | D176: 0 | E176: 0 | F176: 0 | G176: 861 | H176: 0 / 380 | I176: 0 | J176: 0 | K176: 0 | L176: 0 | M176: 0 | N176: 0 | O176: 0 | P176: 0.00 | Q176: Англия | R176: 0
A177: 175 | B177: 174 | C177: Outdated Joke | D177: 0 | E177: 0 | F177: 0 | G177: 861 | H177: 0 / 380 | I177: 0 | J177: 0 | K177: 0 | L177: 0 | M177: 0 | N177: 0 | O177: 0 | P177: 0.00 | Q177: Англия | R177: 0
A178: 176 | B178: 175 | C178: Тарас Романюк | D178: 0 | E178: 0 | F178: 0 | G178: 861 | H178: 0 / 380 | I178: 0 | J178: 0 | K178: 0 | L178: 0 | M178: 0 | N178: 0 | O178: 0 | P178: 0.00 | Q178: Англия | R178: 0
A179: 177 | B179: 176 | C179: Sasha Handerson | D179: 0 | E179: 0 | F179: 0 | G179: 861 | H179: 0 / 380 | I179: 0 | J179: 0 | K179: 0 | L179: 0 | M179: 0 | N179: 0 | O179: 0 | P179: 0.00 | Q179: Англия | R179: 0
A180: 178 | B180: 177 | C180: Oleksii Bandurko | D180: 0 | E180: 0 | F180: 0 | G180: 861 | H180: 0 / 380 | I180: 0 | J180: 0 | K180: 0 | L180: 0 | M180: 0 | N180: 0 | O180: 0 | P180: 0.00 | Q180: Англия | R180: 0
A181: 179 | B181: 178 | C181: Matahary | D181: 0 | E181: 0 | F181: 0 | G181: 861 | H181: 0 / 380 | I181: 0 | J181: 0 | K181: 0 | L181: 0 | M181: 0 | N181: 0 | O181: 0 | P181: 0.00 | Q181: Англия | R181: 0
A182: 180 | B182: 179 | C182: jedon23 | D182: 0 | E182: 0 | F182: 0 | G182: 861 | H182: 0 / 380 | I182: 0 | J182: 0 | K182: 0 | L182: 0 | M182: 0 | N182: 0 | O182: 0 | P182: 0.00 | Q182: Англия | R182: 0
A183: 181 | B183: 180 | C183: ARIZONA30 | D183: 0 | E183: 0 | F183: 0 | G183: 861 | H183: 0 / 380 | I183: 0 | J183: 0 | K183: 0 | L183: 0 | M183: 0 | N183: 0 | O183: 0 | P183: 0.00 | Q183: Англия | R183: 0
A184: 182 | B184: 181 | C184: Arthur Godfred | D184: 0 | E184: 0 | F184: 0 | G184: 861 | H184: 0 / 380 | I184: 0 | J184: 0 | K184: 0 | L184: 0 | M184: 0 | N184: 0 | O184: 0 | P184: 0.00 | Q184: Англия | R184: 0
A185: 183 | B185: 182 | C185: Damilola Opeyemi | D185: 0 | E185: 0 | F185: 0 | G185: 861 | H185: 0 / 380 | I185: 0 | J185: 0 | K185: 0 | L185: 0 | M185: 0 | N185: 0 | O185: 0 | P185: 0.00 | Q185: Англия | R185: 0
A186: 184 | B186: 183 | C186: Кирилл Оралбеков | D186: 0 | E186: 0 | F186: 0 | G186: 861 | H186: 0 / 380 | I186: 0 | J186: 0 | K186: 0 | L186: 0 | M186: 0 | N186: 0 | O186: 0 | P186: 0.00 | Q186: Англия | R186: 0
A187: 185 | B187: 184 | C187: ChR Zoom | D187: 0 | E187: 0 | F187: 0 | G187: 861 | H187: 0 / 380 | I187: 0 | J187: 0 | K187: 0 | L187: 0 | M187: 0 | N187: 0 | O187: 0 | P187: 0.00 | Q187: Англия | R187: 0
A188: 186 | B188: 185 | C188: Imel69 | D188: 0 | E188: 0 | F188: 0 | G188: 861 | H188: 0 / 380 | I188: 0 | J188: 0 | K188: 0 | L188: 0 | M188: 0 | N188: 0 | O188: 0 | P188: 0.00 | Q188: Англия | R188: 0
A189: 187 | B189: 186 | C189: kolay965 | D189: 0 | E189: 0 | F189: 0 | G189: 861 | H189: 0 / 380 | I189: 0 | J189: 0 | K189: 0 | L189: 0 | M189: 0 | N189: 0 | O189: 0 | P189: 0.00 | Q189: Англия | R189: 0
A190: 188 | B190: 187 | C190: Daniyalov | D190: 0 | E190: 0 | F190: 0 | G190: 861 | H190: 0 / 380 | I190: 0 | J190: 0 | K190: 0 | L190: 0 | M190: 0 | N190: 0 | O190: 0 | P190: 0.00 | Q190: Англия | R190: 0
A191: 189 | B191: 188 | C191: Albert Asante | D191: 0 | E191: 0 | F191: 0 | G191: 861 | H191: 0 / 380 | I191: 0 | J191: 0 | K191: 0 | L191: 0 | M191: 0 | N191: 0 | O191: 0 | P191: 0.00 | Q191: Англия | R191: 0
A192: 190 | B192: 189 | C192: Мурат Балтаев | D192: 0 | E192: 0 | F192: 0 | G192: 861 | H192: 0 / 380 | I192: 0 | J192: 0 | K192: 0 | L192: 0 | M192: 0 | N192: 0 | O192: 0 | P192: 0.00 | Q192: Англия | R192: 0
A193: 191 | B193: 190 | C193: юра сафонов | D193: 0 | E193: 0 | F193: 0 | G193: 861 | H193: 0 / 380 | I193: 0 | J193: 0 | K193: 0 | L193: 0 | M193: 0 | N193: 0 | O193: 0 | P193: 0.00 | Q193: Англия | R193: 0
A194: 192 | B194: 191 | C194: Augastine Sikhulu | D194: 0 | E194: 0 | F194: 0 | G194: 861 | H194: 0 / 380 | I194: 0 | J194: 0 | K194: 0 | L194: 0 | M194: 0 | N194: 0 | O194: 0 | P194: 0.00 | Q194: Англия | R194: 0
A195: 193 | B195: 192 | C195: LovroLulic | D195: 0 | E195: 0 | F195: 0 | G195: 861 | H195: 0 / 380 | I195: 0 | J195: 0 | K195: 0 | L195: 0 | M195: 0 | N195: 0 | O195: 0 | P195: 0.00 | Q195: Англия | R195: =SUMIF(C:C,C195,D:D) -> 0
A196: 194 | B196: 193 | C196: Lekaazotu | D196: 0 | E196: 0 | F196: 0 | G196: 861 | H196: 0 / 380 | I196: 0 | J196: 0 | K196: 0 | L196: 0 | M196: 0 | N196: 0 | O196: 0 | P196: 0.00 | Q196: Англия | R196: 0
A197: 195 | B197: 194 | C197: Александр | D197: 0 | E197: 0 | F197: 0 | G197: 861 | H197: 0 / 380 | I197: 0 | J197: 0 | K197: 0 | L197: 0 | M197: 0 | N197: 0 | O197: 0 | P197: 0.00 | Q197: Англия | R197: 0
A198: 196 | B198: 195 | C198: Zhenis | D198: 0 | E198: 0 | F198: 0 | G198: 861 | H198: 0 / 380 | I198: 0 | J198: 0 | K198: 0 | L198: 0 | M198: 0 | N198: 0 | O198: 0 | P198: 0.00 | Q198: Англия | R198: 0
A199: 197 | B199: 196 | C199: Татьяна Афанасьева | D199: 0 | E199: 0 | F199: 0 | G199: 861 | H199: 0 / 380 | I199: 0 | J199: 0 | K199: 0 | L199: 0 | M199: 0 | N199: 0 | O199: 0 | P199: 0.00 | Q199: Англия | R199: 0
A200: 198 | B200: 197 | C200: Soccer Goool | D200: 0 | E200: 0 | F200: 0 | G200: 861 | H200: 0 / 380 | I200: 0 | J200: 0 | K200: 0 | L200: 0 | M200: 0 | N200: 0 | O200: 0 | P200: 0.00 | Q200: Англия | R200: 0
... 2122 more rows

Sheet ГЕРМАНИЯ
A1: для упорядычивания перед вводом данных... если сортировать по столбцу "ВСЕ ОЧКИ сумма", чтоб вернуть в исходное состояние | D1: преобразован формат ячеек в числовой
A2: номер по порядку | B2: # | C2: Пользователь | D2: Очки | E2: Прог. | F2: Буст. | G2: До лидера | H2: Прогнозы / Матчи | I2: О / П | J2: Успешные прогнозы | K2: Счет | L2: Разн. | M2: Исход | N2: % усп | O2: Ошибки | P2: Сумма коэфов | Q2: Чемпионат | R2: ВСЕ ОЧКИ сумма
A3: 1 | C3: ГЕРМАНИЯ | R3: =SUMIF(C:C,#REF!,D:D) -> 0
A4: 1 | B4: 1 | C4: dyadya | D4: 656 | E4: 545 | F4: 111 | H4: 63 / 306 | I4: 10.41 | J4: 38 | K4: 9 | L4: 9 | M4: 20 | N4: 60.32 | O4: 25 | P4: 73.38 | Q4: Германия | R4: =SUMIF(C:C,C4,D:D) -> 656
A5: 2 | B5: 2 | C5: 22rus | D5: 651 | E5: 538 | F5: 113 | G5: 5 | H5: 63 / 306 | I5: 10.33 | J5: 39 | K5: 8 | L5: 8 | M5: 23 | N5: 61.9 | O5: 24 | P5: 70.93 | Q5: Германия | R5: 651
A6: 3 | B6: 3 | C6: Ihor Vinnichuk | D6: 650 | E6: 531 | F6: 119 | G6: 6 | H6: 63 / 306 | I6: 10.32 | J6: 40 | K6: 4 | L6: 5 | M6: 31 | N6: 63.49 | O6: 23 | P6: 77.15 | Q6: Германия | R6: 650
A7: 4 | B7: 4 | C7: Angelneit-73 | D7: 648 | E7: 527 | F7: 121 | G7: 8 | H7: 63 / 306 | I7: 10.29 | J7: 39 | K7: 4 | L7: 6 | M7: 29 | N7: 61.9 | O7: 24 | P7: 71.83 | Q7: Германия | R7: 648
A8: 5 | B8: 5 | C8: vasilijponkin712 | D8: 647 | E8: 541 | F8: 106 | G8: 9 | H8: 63 / 306 | I8: 10.27 | J8: 37 | K8: 7 | L8: 7 | M8: 23 | N8: 58.73 | O8: 26 | P8: 73.62 | Q8: Германия | R8: 647
A9: 6 | B9: 6 | C9: Serzhik | D9: 640 | E9: 548 | F9: 92 | G9: 16 | H9: 63 / 306 | I9: 10.16 | J9: 40 | K9: 6 | L9: 10 | M9: 24 | N9: 63.49 | O9: 23 | P9: 77.78 | Q9: Германия | R9: 640
A10: 7 | B10: 7 | C10: egk | D10: 639 | E10: 531 | F10: 108 | G10: 17 | H10: 63 / 306 | I10: 10.14 | J10: 40 | K10: 3 | L10: 10 | M10: 27 | N10: 63.49 | O10: 23 | P10: 75.93 | Q10: Германия | R10: 639
A11: 8 | B11: 8 | C11: Føliant | D11: 637 | E11: 533 | F11: 104 | G11: 19 | H11: 63 / 306 | I11: 10.11 | J11: 38 | K11: 4 | L11: 10 | M11: 24 | N11: 60.32 | O11: 25 | P11: 75.60 | Q11: Германия | R11: 637
A12: 9 | B12: 9 | C12: victor.bogatov | D12: 631 | E12: 530 | F12: 101 | G12: 25 | H12: 63 / 306 | I12: 10.02 | J12: 39 | K12: 5 | L12: 6 | M12: 28 | N12: 61.9 | O12: 24 | P12: 69.63 | Q12: Германия | R12: 631
A13: 10 | B13: 10 | C13: anogr | D13: 628 | E13: 548 | F13: 80 | G13: 28 | H13: 63 / 306 | I13: 9.97 | J13: 40 | K13: 9 | L13: 7 | M13: 24 | N13: 63.49 | O13: 23 | P13: 76.50 | Q13: Германия | R13: 628
A14: 11 | B14: 11 | C14: ПЧАНИ | D14: 628 | E14: 512 | F14: 116 | G14: 28 | H14: 63 / 306 | I14: 9.97 | J14: 35 | K14: 5 | L14: 9 | M14: 21 | N14: 55.56 | O14: 28 | P14: 67.40 | Q14: Германия | R14: 628
A15: 12 | B15: 12 | C15: Prosto_Serega | D15: 622 | E15: 540 | F15: 82 | G15: 34 | H15: 63 / 306 | I15: 9.87 | J15: 39 | K15: 9 | L15: 6 | M15: 24 | N15: 61.9 | O15: 24 | P15: 73.00 | Q15: Германия | R15: 622
A16: 13 | B16: 13 | C16: SSAKALAS | D16: 621 | E16: 520 | F16: 101 | G16: 35 | H16: 63 / 306 | I16: 9.86 | J16: 39 | K16: 4 | L16: 7 | M16: 28 | N16: 61.9 | O16: 24 | P16: 73.03 | Q16: Германия | R16: 621
A17: 14 | B17: 14 | C17: Doom Breaker | D17: 620 | E17: 498 | F17: 122 | G17: 36 | H17: 60 / 306 | I17: 10.33 | J17: 38 | K17: 4 | L17: 6 | M17: 28 | N17: 63.33 | O17: 22 | P17: 71.12 | Q17: Германия | R17: 620
A18: 15 | B18: 15 | C18: Вовчикас | D18: 618 | E18: 527 | F18: 91 | G18: 38 | H18: 63 / 306 | I18: 9.81 | J18: 38 | K18: 4 | L18: 10 | M18: 24 | N18: 60.32 | O18: 25 | P18: 71.55 | Q18: Германия | R18: 618
A19: 16 | B19: 16 | C19: Яг Морт | D19: 617 | E19: 519 | F19: 98 | G19: 39 | H19: 63 / 306 | I19: 9.79 | J19: 36 | K19: 5 | L19: 4 | M19: 27 | N19: 57.14 | O19: 27 | P19: 67.65 | Q19: Германия | R19: 617
A20: 17 | B20: 17 | C20: Кот-63 | D20: 614 | E20: 525 | F20: 89 | G20: 42 | H20: 63 / 306 | I20: 9.75 | J20: 39 | K20: 3 | L20: 9 | M20: 27 | N20: 61.9 | O20: 24 | P20: 71.30 | Q20: Германия | R20: 614
A21: 18 | B21: 18 | C21: ГОЛ | D21: 613 | E21: 513 | F21: 100 | G21: 43 | H21: 63 / 306 | I21: 9.73 | J21: 36 | K21: 8 | L21: 3 | M21: 25 | N21: 57.14 | O21: 27 | P21: 65.17 | Q21: Германия | R21: 613
A22: 19 | B22: 19 | C22: Zirka | D22: 613 | E22: 505 | F22: 108 | G22: 43 | H22: 62 / 306 | I22: 9.89 | J22: 37 | K22: 6 | L22: 10 | M22: 21 | N22: 59.68 | O22: 25 | P22: 74.37 | Q22: Германия | R22: 613
A23: 20 | B23: 20 | C23: Рощенюк Юрій | D23: 609 | E23: 528 | F23: 81 | G23: 47 | H23: 63 / 306 | I23: 9.67 | J23: 40 | K23: 5 | L23: 6 | M23: 29 | N23: 63.49 | O23: 23 | P23: 71.93 | Q23: Германия | R23: 609
A24: 21 | B24: 21 | C24: Сергей Бернадский | D24: 607 | E24: 516 | F24: 91 | G24: 49 | H24: 63 / 306 | I24: 9.63 | J24: 34 | K24: 9 | L24: 8 | M24: 17 | N24: 53.97 | O24: 29 | P24: 57.60 | Q24: Германия | R24: 607
A25: 22 | B25: 22 | C25: come back | D25: 602 | E25: 495 | F25: 107 | G25: 54 | H25: 63 / 306 | I25: 9.56 | J25: 35 | K25: 4 | L25: 8 | M25: 23 | N25: 55.56 | O25: 28 | P25: 62.05 | Q25: Германия | R25: 602
A26: 23 | B26: 23 | C26: YumGSt | D26: 594 | E26: 506 | F26: 88 | G26: 62 | H26: 63 / 306 | I26: 9.43 | J26: 36 | K26: 3 | L26: 10 | M26: 23 | N26: 57.14 | O26: 27 | P26: 64.22 | Q26: Германия | R26: 594
A27: 24 | B27: 24 | C27: Rodrimes | D27: 594 | E27: 504 | F27: 90 | G27: 62 | H27: 63 / 306 | I27: 9.43 | J27: 36 | K27: 4 | L27: 8 | M27: 24 | N27: 57.14 | O27: 27 | P27: 70.57 | Q27: Германия | R27: 594
A28: 25 | B28: 25 | C28: LioMart | D28: 594 | E28: 488 | F28: 106 | G28: 62 | H28: 63 / 306 | I28: 9.43 | J28: 36 | K28: 7 | L28: 4 | M28: 25 | N28: 57.14 | O28: 27 | P28: 64.50 | Q28: Германия | R28: 594
A29: 26 | B29: 26 | C29: murzikov | D29: 592 | E29: 524 | F29: 68 | G29: 64 | H29: 63 / 306 | I29: 9.4 | J29: 36 | K29: 8 | L29: 5 | M29: 23 | N29: 57.14 | O29: 27 | P29: 67.88 | Q29: Германия | R29: 592
A30: 27 | B30: 27 | C30: bafan | D30: 588 | E30: 501 | F30: 87 | G30: 68 | H30: 62 / 306 | I30: 9.48 | J30: 35 | K30: 4 | L30: 11 | M30: 20 | N30: 56.45 | O30: 27 | P30: 63.68 | Q30: Германия | R30: 588
A31: 28 | B31: 28 | C31: Sashilo | D31: 586 | E31: 505 | F31: 81 | G31: 70 | H31: 63 / 306 | I31: 9.3 | J31: 34 | K31: 5 | L31: 7 | M31: 22 | N31: 53.97 | O31: 29 | P31: 59.10 | Q31: Германия | R31: 586
A32: 29 | B32: 29 | C32: Lazy Flash | D32: 584 | E32: 496 | F32: 88 | G32: 72 | H32: 62 / 306 | I32: 9.42 | J32: 35 | K32: 8 | L32: 5 | M32: 22 | N32: 56.45 | O32: 27 | P32: 63.45 | Q32: Германия | R32: 584
A33: 30 | B33: 30 | C33: gesha0024 | D33: 584 | E33: 496 | F33: 88 | G33: 72 | H33: 63 / 306 | I33: 9.27 | J33: 33 | K33: 7 | L33: 7 | M33: 19 | N33: 52.38 | O33: 30 | P33: 61.27 | Q33: Германия | R33: 584
A34: 31 | B34: 31 | C34: зенитфан | D34: 582 | E34: 505 | F34: 77 | G34: 74 | H34: 63 / 306 | I34: 9.24 | J34: 35 | K34: 5 | L34: 7 | M34: 23 | N34: 55.56 | O34: 28 | P34: 63.64 | Q34: Германия | R34: 582
A35: 32 | B35: 32 | C35: JUT | D35: 579 | E35: 515 | F35: 64 | G35: 77 | H35: 63 / 306 | I35: 9.19 | J35: 37 | K35: 2 | L35: 8 | M35: 27 | N35: 58.73 | O35: 26 | P35: 64.67 | Q35: Германия | R35: 579
A36: 33 | B36: 33 | C36: SkVaL | D36: 578 | E36: 500 | F36: 78 | G36: 78 | H36: 63 / 306 | I36: 9.17 | J36: 37 | K36: 4 | L36: 6 | M36: 27 | N36: 58.73 | O36: 26 | P36: 66.65 | Q36: Германия | R36: 578
A37: 34 | B37: 34 | C37: Romchyk | D37: 578 | E37: 485 | F37: 93 | G37: 78 | H37: 60 / 306 | I37: 9.63 | J37: 39 | K37: 1 | L37: 11 | M37: 27 | N37: 65 | O37: 21 | P37: 72.85 | Q37: Германия | R37: 578
A38: 35 | B38: 35 | C38: SERG | D38: 575 | E38: 506 | F38: 69 | G38: 81 | H38: 63 / 306 | I38: 9.13 | J38: 36 | K38: 4 | L38: 8 | M38: 24 | N38: 57.14 | O38: 27 | P38: 69.00 | Q38: Германия | R38: 575
A39: 36 | B39: 36 | C39: gekson36 | D39: 575 | E39: 484 | F39: 91 | G39: 81 | H39: 63 / 306 | I39: 9.13 | J39: 34 | K39: 2 | L39: 6 | M39: 26 | N39: 53.97 | O39: 29 | P39: 60.36 | Q39: Германия | R39: 575
A40: 37 | B40: 37 | C40: Dmitry Tsarytsyn | D40: 571 | E40: 497 | F40: 74 | G40: 85 | H40: 63 / 306 | I40: 9.06 | J40: 34 | K40: 5 | L40: 8 | M40: 21 | N40: 53.97 | O40: 29 | P40: 63.36 | Q40: Германия | R40: 571
A41: 38 | B41: 38 | C41: Андрій Кожумяка | D41: 571 | E41: 480 | F41: 91 | G41: 85 | H41: 63 / 306 | I41: 9.06 | J41: 35 | K41: 1 | L41: 8 | M41: 26 | N41: 55.56 | O41: 28 | P41: 62.35 | Q41: Германия | R41: 571
A42: 39 | B42: 39 | C42: Сокол | D42: 570 | E42: 489 | F42: 81 | G42: 86 | H42: 61 / 306 | I42: 9.34 | J42: 34 | K42: 5 | L42: 6 | M42: 23 | N42: 55.74 | O42: 27 | P42: 65.20 | Q42: Германия | R42: 570
A43: 40 | B43: 40 | C43: Las Kij | D43: 569 | E43: 476 | F43: 93 | G43: 87 | H43: 63 / 306 | I43: 9.03 | J43: 34 | K43: 7 | L43: 5 | M43: 22 | N43: 53.97 | O43: 29 | P43: 64.43 | Q43: Германия | R43: 569
A44: 41 | B44: 41 | C44: Anisi | D44: 565 | E44: 497 | F44: 68 | G44: 91 | H44: 63 / 306 | I44: 8.97 | J44: 35 | K44: 3 | L44: 14 | M44: 18 | N44: 55.56 | O44: 28 | P44: 66.91 | Q44: Германия | R44: 565
A45: 42 | B45: 42 | C45: aleks050874 | D45: 564 | E45: 478 | F45: 86 | G45: 92 | H45: 63 / 306 | I45: 8.95 | J45: 32 | K45: 6 | L45: 7 | M45: 19 | N45: 50.79 | O45: 31 | P45: 58.57 | Q45: Германия | R45: 564
A46: 43 | B46: 43 | C46: Микола Білак | D46: 557 | E46: 447 | F46: 110 | G46: 99 | H46: 54 / 306 | I46: 10.31 | J46: 31 | K46: 10 | L46: 2 | M46: 19 | N46: 57.41 | O46: 23 | P46: 57.97 | Q46: Германия | R46: 557
A47: 44 | B47: 44 | C47: aleks22411971 | D47: 552 | E47: 541 | F47: 11 | G47: 104 | H47: 63 / 306 | I47: 8.76 | J47: 40 | K47: 6 | L47: 9 | M47: 25 | N47: 63.49 | O47: 23 | P47: 79.43 | Q47: Германия | R47: 552
A48: 45 | B48: 45 | C48: Андрей | D48: 549 | E48: 455 | F48: 94 | G48: 107 | H48: 63 / 306 | I48: 8.71 | J48: 33 | K48: 5 | L48: 7 | M48: 21 | N48: 52.38 | O48: 30 | P48: 67.61 | Q48: Германия | R48: 549
A49: 46 | B49: 46 | C49: azarte | D49: 543 | E49: 462 | F49: 81 | G49: 113 | H49: 55 / 306 | I49: 9.87 | J49: 36 | K49: 5 | L49: 5 | M49: 26 | N49: 65.45 | O49: 19 | P49: 65.56 | Q49: Германия | R49: 543
A50: 47 | B50: 47 | C50: khmel95 | D50: 542 | E50: 465 | F50: 77 | G50: 114 | H50: 63 / 306 | I50: 8.6 | J50: 32 | K50: 2 | L50: 6 | M50: 24 | N50: 50.79 | O50: 31 | P50: 55.39 | Q50: Германия | R50: 542
A51: 48 | B51: 48 | C51: Pavel4613 | D51: 527 | E51: 527 | F51: 0 | G51: 129 | H51: 62 / 306 | I51: 8.5 | J51: 35 | K51: 7 | L51: 12 | M51: 16 | N51: 56.45 | O51: 27 | P51: 70.00 | Q51: Германия | R51: 527
A52: 49 | B52: 49 | C52: Doktoroff | D52: 514 | E52: 514 | F52: 0 | G52: 142 | H52: 63 / 306 | I52: 8.16 | J52: 37 | K52: 4 | L52: 7 | M52: 26 | N52: 58.73 | O52: 26 | P52: 66.00 | Q52: Германия | R52: 514
A53: 50 | B53: 50 | C53: SuperVlad | D53: 514 | E53: 423 | F53: 91 | G53: 142 | H53: 52 / 306 | I53: 9.88 | J53: 31 | K53: 6 | L53: 7 | M53: 18 | N53: 59.62 | O53: 21 | P53: 58.71 | Q53: Германия | R53: 514
A54: 51 | B54: 51 | C54: cska5 | D54: 511 | E54: 511 | F54: 0 | G54: 145 | H54: 63 / 306 | I54: 8.11 | J54: 36 | K54: 5 | L54: 7 | M54: 24 | N54: 57.14 | O54: 27 | P54: 68.52 | Q54: Германия | R54: 511
A55: 52 | B55: 52 | C55: Aneta81 | D55: 505 | E55: 466 | F55: 39 | G55: 151 | H55: 63 / 306 | I55: 8.02 | J55: 29 | K55: 3 | L55: 7 | M55: 19 | N55: 46.03 | O55: 34 | P55: 49.46 | Q55: Германия | R55: 505
A56: 53 | B56: 53 | C56: Squidward Patrikovich | D56: 505 | E56: 419 | F56: 86 | G56: 151 | H56: 54 / 306 | I56: 9.35 | J56: 28 | K56: 2 | L56: 8 | M56: 18 | N56: 51.85 | O56: 26 | P56: 55.32 | Q56: Германия | R56: 505
A57: 54 | B57: 54 | C57: roman.valman | D57: 499 | E57: 428 | F57: 71 | G57: 157 | H57: 55 / 306 | I57: 9.07 | J57: 27 | K57: 4 | L57: 4 | M57: 19 | N57: 49.09 | O57: 28 | P57: 47.10 | Q57: Германия | R57: 499
A58: 55 | B58: 55 | C58: anton | D58: 497 | E58: 442 | F58: 55 | G58: 159 | H58: 55 / 306 | I58: 9.04 | J58: 33 | K58: 3 | L58: 7 | M58: 23 | N58: 60 | O58: 22 | P58: 57.63 | Q58: Германия | R58: 497
A59: 56 | B59: 56 | C59: Petrovish-35. | D59: 487 | E59: 437 | F59: 50 | G59: 169 | H59: 53 / 306 | I59: 9.19 | J59: 33 | K59: 5 | L59: 9 | M59: 19 | N59: 62.26 | O59: 20 | P59: 67.31 | Q59: Германия | R59: 487
A60: 57 | B60: 57 | C60: DAV1978 | D60: 482 | E60: 482 | F60: 0 | G60: 174 | H60: 63 / 306 | I60: 7.65 | J60: 30 | K60: 7 | L60: 6 | M60: 17 | N60: 47.62 | O60: 33 | P60: 62.56 | Q60: Германия | R60: 482
A61: 58 | B61: 58 | C61: rumkot | D61: 474 | E61: 474 | F61: 0 | G61: 182 | H61: 63 / 306 | I61: 7.52 | J61: 33 | K61: 5 | L61: 7 | M61: 21 | N61: 52.38 | O61: 30 | P61: 58.97 | Q61: Германия | R61: 474
A62: 59 | B62: 59 | C62: MasterC4 | D62: 474 | E62: 397 | F62: 77 | G62: 182 | H62: 53 / 306 | I62: 8.94 | J62: 27 | K62: 2 | L62: 6 | M62: 19 | N62: 50.94 | O62: 26 | P62: 50.71 | Q62: Германия | R62: 474
A63: 60 | B63: 60 | C63: danaygol | D63: 466 | E63: 436 | F63: 30 | G63: 190 | H63: 54 / 306 | I63: 8.63 | J63: 28 | K63: 5 | L63: 7 | M63: 16 | N63: 51.85 | O63: 26 | P63: 56.27 | Q63: Германия | R63: 466
A64: 61 | B64: 61 | C64: Uriy1234 | D64: 464 | E64: 415 | F64: 49 | G64: 192 | H64: 63 / 306 | I64: 7.37 | J64: 25 | K64: 5 | L64: 5 | M64: 15 | N64: 39.68 | O64: 38 | P64: 52.31 | Q64: Германия | R64: 464
A65: 62 | B65: 62 | C65: hnatko | D65: 458 | E65: 453 | F65: 5 | G65: 198 | H65: 61 / 306 | I65: 7.51 | J65: 28 | K65: 5 | L65: 6 | M65: 17 | N65: 45.9 | O65: 33 | P65: 55.07 | Q65: Германия | R65: 458
A66: 63 | B66: 63 | C66: ruslan | D66: 435 | E66: 429 | F66: 6 | G66: 221 | H66: 56 / 306 | I66: 7.77 | J66: 32 | K66: 3 | L66: 6 | M66: 23 | N66: 57.14 | O66: 24 | P66: 58.21 | Q66: Германия | R66: 435
A67: 64 | B67: 64 | C67: Вова Щур | D67: 420 | E67: 420 | F67: 0 | G67: 236 | H67: 63 / 306 | I67: 6.67 | J67: 30 | K67: 3 | L67: 6 | M67: 21 | N67: 47.62 | O67: 33 | P67: 52.66 | Q67: Германия | R67: 420
A68: 65 | B68: 65 | C68: dmol13 | D68: 406 | E68: 330 | F68: 76 | G68: 250 | H68: 54 / 306 | I68: 7.52 | J68: 21 | K68: 4 | L68: 4 | M68: 13 | N68: 38.89 | O68: 33 | P68: 54.61 | Q68: Германия | R68: =SUMIF(C:C,C68,D:D) -> 406
A69: 66 | B69: 66 | C69: ziama | D69: 391 | E69: 330 | F69: 61 | G69: 265 | H69: 54 / 306 | I69: 7.24 | J69: 20 | K69: 3 | L69: 7 | M69: 10 | N69: 37.04 | O69: 34 | P69: 53.23 | Q69: Германия | R69: 391
A70: 67 | B70: 67 | C70: Emmanuel Oboubi | D70: 387 | E70: 327 | F70: 60 | G70: 269 | H70: 46 / 306 | I70: 8.41 | J70: 25 | K70: 2 | L70: 3 | M70: 20 | N70: 54.35 | O70: 21 | P70: 45.39 | Q70: Германия | R70: 387
A71: 68 | B71: 68 | C71: динамо | D71: 387 | E71: 320 | F71: 67 | G71: 269 | H71: 40 / 306 | I71: 9.67 | J71: 25 | K71: 6 | L71: 2 | M71: 17 | N71: 62.5 | O71: 15 | P71: 49.69 | Q71: Германия | R71: 387
A72: 69 | B72: 69 | C72: ivan | D72: 383 | E72: 341 | F72: 42 | G72: 273 | H72: 54 / 306 | I72: 7.09 | J72: 20 | K72: 5 | L72: 7 | M72: 8 | N72: 37.04 | O72: 34 | P72: 51.77 | Q72: Германия | R72: 383
A73: 70 | B73: 70 | C73: l1der | D73: 381 | E73: 302 | F73: 79 | G73: 275 | H73: 54 / 306 | I73: 7.06 | J73: 18 | K73: 2 | L73: 7 | M73: 9 | N73: 33.33 | O73: 36 | P73: 42.59 | Q73: Германия | R73: 381
A74: 71 | B74: 71 | C74: white force | D74: 379 | E74: 320 | F74: 59 | G74: 277 | H74: 54 / 306 | I74: 7.02 | J74: 18 | K74: 6 | L74: 5 | M74: 7 | N74: 33.33 | O74: 36 | P74: 49.31 | Q74: Германия | R74: 379
A75: 72 | B75: 72 | C75: dander | D75: 365 | E75: 333 | F75: 32 | G75: 291 | H75: 54 / 306 | I75: 6.76 | J75: 22 | K75: 1 | L75: 7 | M75: 14 | N75: 40.74 | O75: 32 | P75: 49.81 | Q75: Германия | R75: 365
A76: 73 | B76: 73 | C76: FEt1s | D76: 365 | E76: 317 | F76: 48 | G76: 291 | H76: 54 / 306 | I76: 6.76 | J76: 20 | K76: 3 | L76: 4 | M76: 13 | N76: 37.04 | O76: 34 | P76: 49.10 | Q76: Германия | R76: 365
A77: 74 | B77: 74 | C77: nickthesecond | D77: 364 | E77: 333 | F77: 31 | G77: 292 | H77: 54 / 306 | I77: 6.74 | J77: 20 | K77: 4 | L77: 5 | M77: 11 | N77: 37.04 | O77: 34 | P77: 47.38 | Q77: Германия | R77: 364
A78: 75 | B78: 75 | C78: zTeref | D78: 361 | E78: 317 | F78: 44 | G78: 295 | H78: 54 / 306 | I78: 6.69 | J78: 18 | K78: 3 | L78: 4 | M78: 11 | N78: 33.33 | O78: 36 | P78: 39.80 | Q78: Германия | R78: 361
A79: 76 | B79: 76 | C79: sparta1 | D79: 355 | E79: 319 | F79: 36 | G79: 301 | H79: 54 / 306 | I79: 6.57 | J79: 21 | K79: 1 | L79: 6 | M79: 14 | N79: 38.89 | O79: 33 | P79: 43.85 | Q79: Германия | R79: 355
A80: 77 | B80: 77 | C80: Drezden1 | D80: 349 | E80: 311 | F80: 38 | G80: 307 | H80: 54 / 306 | I80: 6.46 | J80: 17 | K80: 1 | L80: 7 | M80: 9 | N80: 31.48 | O80: 37 | P80: 43.03 | Q80: Германия | R80: 349
A81: 78 | B81: 78 | C81: G3rman | D81: 349 | E81: 304 | F81: 45 | G81: 307 | H81: 54 / 306 | I81: 6.46 | J81: 16 | K81: 2 | L81: 4 | M81: 10 | N81: 29.63 | O81: 38 | P81: 30.04 | Q81: Германия | R81: 349
A82: 79 | B82: 79 | C82: serg.ter | D82: 336 | E82: 331 | F82: 5 | G82: 320 | H82: 54 / 306 | I82: 6.22 | J82: 23 | K82: 5 | L82: 4 | M82: 14 | N82: 42.59 | O82: 31 | P82: 59.14 | Q82: Германия | R82: 336
A83: 80 | B83: 80 | C83: Андрій Огороднік | D83: 336 | E83: 311 | F83: 25 | G83: 320 | H83: 36 / 306 | I83: 9.33 | J83: 22 | K83: 1 | L83: 8 | M83: 13 | N83: 61.11 | O83: 14 | P83: 46.37 | Q83: Германия | R83: 336
A84: 81 | B84: 81 | C84: thpred | D84: 334 | E84: 286 | F84: 48 | G84: 322 | H84: 53 / 306 | I84: 6.3 | J84: 17 | K84: 2 | L84: 4 | M84: 11 | N84: 32.08 | O84: 36 | P84: 42.47 | Q84: Германия | R84: 334
A85: 82 | B85: 82 | C85: andrpo1 | D85: 333 | E85: 287 | F85: 46 | G85: 323 | H85: 54 / 306 | I85: 6.17 | J85: 17 | K85: 1 | L85: 6 | M85: 10 | N85: 31.48 | O85: 37 | P85: 47.38 | Q85: Германия | R85: 333
A86: 83 | B86: 83 | C86: Garry | D86: 331 | E86: 302 | F86: 29 | G86: 325 | H86: 54 / 306 | I86: 6.13 | J86: 19 | K86: 2 | L86: 8 | M86: 9 | N86: 35.19 | O86: 35 | P86: 46.31 | Q86: Германия | R86: 331
A87: 84 | B87: 84 | C87: forman-gert | D87: 329 | E87: 291 | F87: 38 | G87: 327 | H87: 54 / 306 | I87: 6.09 | J87: 16 | K87: 5 | L87: 3 | M87: 8 | N87: 29.63 | O87: 38 | P87: 41.95 | Q87: Германия | R87: 329
A88: 85 | B88: 85 | C88: sergey.derx | D88: 328 | E88: 286 | F88: 42 | G88: 328 | H88: 54 / 306 | I88: 6.07 | J88: 16 | K88: 3 | L88: 5 | M88: 8 | N88: 29.63 | O88: 38 | P88: 32.09 | Q88: Германия | R88: 328
A89: 86 | B89: 86 | C89: VladS | D89: 328 | E89: 284 | F89: 44 | G89: 328 | H89: 36 / 306 | I89: 9.11 | J89: 18 | K89: 2 | L89: 4 | M89: 12 | N89: 50 | O89: 18 | P89: 31.96 | Q89: Германия | R89: 328
A90: 87 | B90: 87 | C90: predictor | D90: 327 | E90: 315 | F90: 12 | G90: 329 | H90: 54 / 306 | I90: 6.06 | J90: 20 | K90: 2 | L90: 5 | M90: 13 | N90: 37.04 | O90: 34 | P90: 48.90 | Q90: Германия | R90: 327
A91: 88 | B91: 88 | C91: sS1mple | D91: 327 | E91: 281 | F91: 46 | G91: 329 | H91: 54 / 306 | I91: 6.06 | J91: 18 | K91: 2 | L91: 5 | M91: 11 | N91: 33.33 | O91: 36 | P91: 47.69 | Q91: Германия | R91: 327
A92: 89 | B92: 89 | C92: Динар | D92: 318 | E92: 286 | F92: 32 | G92: 338 | H92: 53 / 306 | I92: 6 | J92: 14 | K92: 2 | L92: 2 | M92: 10 | N92: 26.42 | O92: 39 | P92: 28.87 | Q92: Германия | R92: 318
A93: 90 | B93: 90 | C93: Tosha13 | D93: 310 | E93: 259 | F93: 51 | G93: 346 | H93: 35 / 306 | I93: 8.86 | J93: 18 | K93: 2 | L93: 1 | M93: 15 | N93: 51.43 | O93: 17 | P93: 32.51 | Q93: Германия | R93: 310
A94: 91 | B94: 91 | C94: RMadrid | D94: 304 | E94: 274 | F94: 30 | G94: 352 | H94: 54 / 306 | I94: 5.63 | J94: 15 | K94: 2 | L94: 7 | M94: 6 | N94: 27.78 | O94: 39 | P94: 37.90 | Q94: Германия | R94: 304
A95: 92 | B95: 92 | C95: sergeyn | D95: 300 | E95: 266 | F95: 34 | G95: 356 | H95: 54 / 306 | I95: 5.56 | J95: 13 | K95: 2 | L95: 4 | M95: 7 | N95: 24.07 | O95: 41 | P95: 33.67 | Q95: Германия | R95: 300
A96: 93 | B96: 93 | C96: altaran | D96: 297 | E96: 247 | F96: 50 | G96: 359 | H96: 54 / 306 | I96: 5.5 | J96: 13 | K96: 3 | L96: 3 | M96: 7 | N96: 24.07 | O96: 41 | P96: 31.65 | Q96: Германия | R96: 297
A97: 94 | B97: 94 | C97: TMfC1924 | D97: 295 | E97: 295 | F97: 0 | G97: 361 | H97: 36 / 306 | I97: 8.19 | J97: 21 | K97: 4 | L97: 4 | M97: 13 | N97: 58.33 | O97: 15 | P97: 40.21 | Q97: Германия | R97: 295
A98: 95 | B98: 95 | C98: Laster | D98: 286 | E98: 269 | F98: 17 | G98: 370 | H98: 54 / 306 | I98: 5.3 | J98: 16 | K98: 2 | L98: 5 | M98: 9 | N98: 29.63 | O98: 38 | P98: 36.29 | Q98: Германия | R98: 286
A99: 96 | B99: 96 | C99: Andrii Bilenkyi | D99: 244 | E99: 244 | F99: 0 | G99: 412 | H99: 36 / 306 | I99: 6.78 | J99: 18 | K99: 1 | L99: 2 | M99: 15 | N99: 50 | O99: 18 | P99: 30.92 | Q99: Германия | R99: 244
A100: 97 | B100: 97 | C100: Sergyn9 | D100: 236 | E100: 209 | F100: 27 | G100: 420 | H100: 29 / 306 | I100: 8.14 | J100: 15 | K100: 2 | L100: 2 | M100: 11 | N100: 51.72 | O100: 14 | P100: 27.31 | Q100: Германия | R100: 236
A101: 98 | B101: 98 | C101: alex | D101: 231 | E101: 216 | F101: 15 | G101: 425 | H101: 28 / 306 | I101: 8.25 | J101: 17 | K101: 2 | L101: 4 | M101: 11 | N101: 60.71 | O101: 11 | P101: 29.31 | Q101: Германия | R101: 231
A102: 99 | B102: 99 | C102: Sun | D102: 206 | E102: 174 | F102: 32 | G102: 450 | H102: 21 / 306 | I102: 9.81 | J102: 13 | K102: 1 | L102: 2 | M102: 10 | N102: 61.9 | O102: 8 | P102: 22.97 | Q102: Германия | R102: 206
A103: 100 | B103: 100 | C103: Тагир Мурсалов | D103: 198 | E103: 176 | F103: 22 | G103: 458 | H103: 27 / 306 | I103: 7.33 | J103: 11 | K103: 2 | L103: 5 | M103: 4 | N103: 40.74 | O103: 16 | P103: 19.01 | Q103: Германия | R103: 198
A104: 101 | B104: 101 | C104: сафон | D104: 190 | E104: 159 | F104: 31 | G104: 466 | H104: 27 / 306 | I104: 7.04 | J104: 12 | K104: 1 | L104: 5 | M104: 6 | N104: 44.44 | O104: 15 | P104: 22.59 | Q104: Германия | R104: 190
A105: 102 | B105: 102 | C105: lond0nka | D105: 178 | E105: 148 | F105: 30 | G105: 478 | H105: 18 / 306 | I105: 9.89 | J105: 11 | K105: 3 | L105: 1 | M105: 7 | N105: 61.11 | O105: 7 | P105: 21.37 | Q105: Германия | R105: 178
A106: 103 | B106: 103 | C106: Роман Ороман | D106: 174 | E106: 148 | F106: 26 | G106: 482 | H106: 18 / 306 | I106: 9.67 | J106: 12 | K106: 1 | L106: 1 | M106: 10 | N106: 66.67 | O106: 6 | P106: 21.32 | Q106: Германия | R106: 174
A107: 104 | B107: 104 | C107: mcichnik | D107: 156 | E107: 140 | F107: 16 | G107: 500 | H107: 18 / 306 | I107: 8.67 | J107: 12 | K107: 0 | L107: 4 | M107: 8 | N107: 66.67 | O107: 6 | P107: 21.82 | Q107: Германия | R107: 156
A108: 105 | B108: 105 | C108: romankramarenko457 | D108: 155 | E108: 146 | F108: 9 | G108: 501 | H108: 18 / 306 | I108: 8.61 | J108: 10 | K108: 3 | L108: 1 | M108: 6 | N108: 55.56 | O108: 8 | P108: 17.62 | Q108: Германия | R108: 155
A109: 106 | B109: 106 | C109: Сергій Денькович | D109: 152 | E109: 137 | F109: 15 | G109: 504 | H109: 18 / 306 | I109: 8.44 | J109: 11 | K109: 1 | L109: 1 | M109: 9 | N109: 61.11 | O109: 7 | P109: 20.07 | Q109: Германия | R109: 152
A110: 107 | B110: 107 | C110: Tarik2210 | D110: 148 | E110: 138 | F110: 10 | G110: 508 | H110: 16 / 306 | I110: 9.25 | J110: 10 | K110: 2 | L110: 3 | M110: 5 | N110: 62.5 | O110: 6 | P110: 18.74 | Q110: Германия | R110: 148
A111: 108 | B111: 108 | C111: sergejserikov2017 | D111: 132 | E111: 121 | F111: 11 | G111: 524 | H111: 18 / 306 | I111: 7.33 | J111: 8 | K111: 1 | L111: 2 | M111: 5 | N111: 44.44 | O111: 10 | P111: 14.07 | Q111: Германия | R111: 132
A112: 109 | B112: 109 | C112: Huxley | D112: 117 | E112: 101 | F112: 16 | G112: 539 | H112: 18 / 306 | I112: 6.5 | J112: 7 | K112: 0 | L112: 2 | M112: 5 | N112: 38.89 | O112: 11 | P112: 10.32 | Q112: Германия | R112: 117
A113: 110 | B113: 110 | C113: Віталій Назаревич | D113: 99 | E113: 99 | F113: 0 | G113: 557 | H113: 9 / 306 | I113: 11 | J113: 8 | K113: 2 | L113: 2 | M113: 4 | N113: 88.89 | O113: 1 | P113: 15.67 | Q113: Германия | R113: 99
A114: 111 | B114: 111 | C114: 100000 | D114: 95 | E114: 83 | F114: 12 | G114: 561 | H114: 9 / 306 | I114: 10.56 | J114: 6 | K114: 0 | L114: 1 | M114: 5 | N114: 66.67 | O114: 3 | P114: 10.27 | Q114: Германия | R114: 95
A115: 112 | B115: 112 | C115: Aleksey Taran | D115: 88 | E115: 78 | F115: 10 | G115: 568 | H115: 9 / 306 | I115: 9.78 | J115: 6 | K115: 1 | L115: 1 | M115: 4 | N115: 66.67 | O115: 3 | P115: 9.69 | Q115: Германия | R115: 88
A116: 113 | B116: 113 | C116: Maxidollar | D116: 84 | E116: 84 | F116: 0 | G116: 572 | H116: 9 / 306 | I116: 9.33 | J116: 6 | K116: 1 | L116: 2 | M116: 3 | N116: 66.67 | O116: 3 | P116: 11.90 | Q116: Германия | R116: 84
A117: 114 | B117: 114 | C117: GR7 | D117: 82 | E117: 77 | F117: 5 | G117: 574 | H117: 9 / 306 | I117: 9.11 | J117: 6 | K117: 1 | L117: 1 | M117: 4 | N117: 66.67 | O117: 3 | P117: 9.69 | Q117: Германия | R117: 82
A118: 115 | B118: 115 | C118: Rajabali | D118: 80 | E118: 80 | F118: 0 | G118: 576 | H118: 9 / 306 | I118: 8.89 | J118: 7 | K118: 1 | L118: 2 | M118: 4 | N118: 77.78 | O118: 2 | P118: 13.29 | Q118: Германия | R118: 80
A119: 116 | B119: 116 | C119: Dilmurod Askarov | D119: 77 | E119: 77 | F119: 0 | G119: 579 | H119: 8 / 306 | I119: 9.62 | J119: 5 | K119: 1 | L119: 1 | M119: 3 | N119: 62.5 | O119: 3 | P119: 8.76 | Q119: Германия | R119: 77
A120: 117 | B120: 117 | C120: Star | D120: 74 | E120: 74 | F120: 0 | G120: 582 | H120: 8 / 306 | I120: 9.25 | J120: 5 | K120: 0 | L120: 2 | M120: 3 | N120: 62.5 | O120: 3 | P120: 8.76 | Q120: Германия | R120: 74
A121: 118 | B121: 118 | C121: Сергей Гаврилюк | D121: 74 | E121: 68 | F121: 6 | G121: 582 | H121: 9 / 306 | I121: 8.22 | J121: 6 | K121: 0 | L121: 0 | M121: 6 | N121: 66.67 | O121: 3 | P121: 9.69 | Q121: Германия | R121: 74
A122: 119 | B122: 119 | C122: Stanislav Semenov | D122: 74 | E122: 64 | F122: 10 | G122: 582 | H122: 8 / 306 | I122: 9.25 | J122: 4 | K122: 0 | L122: 2 | M122: 2 | N122: 50 | O122: 4 | P122: 6.96 | Q122: Германия | R122: 74
A123: 120 | B123: 120 | C123: Андрей Большаков | D123: 68 | E123: 68 | F123: 0 | G123: 588 | H123: 9 / 306 | I123: 7.56 | J123: 5 | K123: 0 | L123: 3 | M123: 2 | N123: 55.56 | O123: 4 | P123: 9.74 | Q123: Германия | R123: 68
A124: 121 | B124: 121 | C124: Виталий | D124: 66 | E124: 66 | F124: 0 | G124: 590 | H124: 9 / 306 | I124: 7.33 | J124: 5 | K124: 2 | L124: 0 | M124: 3 | N124: 55.56 | O124: 4 | P124: 8.94 | Q124: Германия | R124: 66
A125: 122 | B125: 122 | C125: savic | D125: 58 | E125: 53 | F125: 5 | G125: 598 | H125: 9 / 306 | I125: 6.44 | J125: 3 | K125: 0 | L125: 1 | M125: 2 | N125: 33.33 | O125: 6 | P125: 7.20 | Q125: Германия | R125: 58
A126: 123 | B126: 123 | C126: TES22 | D126: 36 | E126: 26 | F126: 10 | G126: 620 | H126: 3 / 306 | I126: 12 | J126: 2 | K126: 0 | L126: 0 | M126: 2 | N126: 66.67 | O126: 1 | P126: 2.95 | Q126: Германия | R126: 36
A127: 124 | B127: 124 | C127: Egor Zanchurin | D127: 29 | E127: 29 | F127: 0 | G127: 627 | H127: 3 / 306 | I127: 9.67 | J127: 3 | K127: 0 | L127: 0 | M127: 3 | N127: 100 | O127: 0 | P127: 4.99 | Q127: Германия | R127: 29
A128: 125 | B128: 125 | C128: Юрій Романюк | D128: 23 | E128: 23 | F128: 0 | G128: 633 | H128: 2 / 306 | I128: 11.5 | J128: 2 | K128: 0 | L128: 1 | M128: 1 | N128: 100 | O128: 0 | P128: 4.60 | Q128: Германия | R128: 23
A129: 126 | B129: 126 | C129: kurah1022 | D129: 12 | E129: 6 | F129: 6 | G129: 644 | H129: 1 / 306 | I129: 12 | J129: 1 | K129: 0 | L129: 0 | M129: 1 | N129: 100 | O129: 0 | P129: 1.57 | Q129: Германия | R129: 12
A130: 127 | B130: 127 | C130: Vaqif Rashidov | D130: 7 | E130: 7 | F130: 0 | G130: 649 | H130: 1 / 306 | I130: 7 | J130: 1 | K130: 0 | L130: 0 | M130: 1 | N130: 100 | O130: 0 | P130: 1.57 | Q130: Германия | R130: 7
A131: 128 | B131: 128 | C131: SE29 | D131: 0 | E131: 0 | F131: 0 | G131: 656 | H131: 0 / 306 | I131: 0 | J131: 0 | K131: 0 | L131: 0 | M131: 0 | N131: 0 | O131: 0 | P131: 0.00 | Q131: Германия | R131: 0
A132: 129 | B132: 129 | C132: Arafangel | D132: 0 | E132: 0 | F132: 0 | G132: 656 | H132: 0 / 306 | I132: 0 | J132: 0 | K132: 0 | L132: 0 | M132: 0 | N132: 0 | O132: 0 | P132: 0.00 | Q132: Германия | R132: =SUMIF(C:C,C132,D:D) -> 0
A133: 130 | B133: 130 | C133: nikita_fufachev | D133: 0 | E133: 0 | F133: 0 | G133: 656 | H133: 0 / 306 | I133: 0 | J133: 0 | K133: 0 | L133: 0 | M133: 0 | N133: 0 | O133: 0 | P133: 0.00 | Q133: Германия | R133: 0
A134: 131 | B134: 131 | C134: aleksandrtkacenko1312 | D134: 0 | E134: 0 | F134: 0 | G134: 656 | H134: 0 / 306 | I134: 0 | J134: 0 | K134: 0 | L134: 0 | M134: 0 | N134: 0 | O134: 0 | P134: 0.00 | Q134: Германия | R134: 0
A135: 132 | B135: 132 | C135: id49239928 | D135: 0 | E135: 0 | F135: 0 | G135: 656 | H135: 0 / 306 | I135: 0 | J135: 0 | K135: 0 | L135: 0 | M135: 0 | N135: 0 | O135: 0 | P135: 0.00 | Q135: Германия | R135: 0
A136: 133 | B136: 133 | C136: TES-1 | D136: 0 | E136: 0 | F136: 0 | G136: 656 | H136: 0 / 306 | I136: 0 | J136: 0 | K136: 0 | L136: 0 | M136: 0 | N136: 0 | O136: 0 | P136: 0.00 | Q136: Германия | R136: 0
A137: 134 | B137: 134 | C137: Динамо | D137: 0 | E137: 0 | F137: 0 | G137: 656 | H137: 0 / 306 | I137: 0 | J137: 0 | K137: 0 | L137: 0 | M137: 0 | N137: 0 | O137: 0 | P137: 0.00 | Q137: Германия | R137: 387
A138: 135 | B138: 135 | C138: Andriy14 | D138: 0 | E138: 0 | F138: 0 | G138: 656 | H138: 0 / 306 | I138: 0 | J138: 0 | K138: 0 | L138: 0 | M138: 0 | N138: 0 | O138: 0 | P138: 0.00 | Q138: Германия | R138: 0
A139: 136 | B139: 136 | C139: Yarmolenko | D139: 0 | E139: 0 | F139: 0 | G139: 656 | H139: 0 / 306 | I139: 0 | J139: 0 | K139: 0 | L139: 0 | M139: 0 | N139: 0 | O139: 0 | P139: 0.00 | Q139: Германия | R139: 0
A140: 137 | B140: 137 | C140: Богдан | D140: 0 | E140: 0 | F140: 0 | G140: 656 | H140: 0 / 306 | I140: 0 | J140: 0 | K140: 0 | L140: 0 | M140: 0 | N140: 0 | O140: 0 | P140: 0.00 | Q140: Германия | R140: 0
A141: 138 | B141: 138 | C141: Outdated Joke | D141: 0 | E141: 0 | F141: 0 | G141: 656 | H141: 0 / 306 | I141: 0 | J141: 0 | K141: 0 | L141: 0 | M141: 0 | N141: 0 | O141: 0 | P141: 0.00 | Q141: Германия | R141: 0
A142: 139 | B142: 139 | C142: Sanya | D142: 0 | E142: 0 | F142: 0 | G142: 656 | H142: 0 / 306 | I142: 0 | J142: 0 | K142: 0 | L142: 0 | M142: 0 | N142: 0 | O142: 0 | P142: 0.00 | Q142: Германия | R142: 0
A143: 140 | B143: 140 | C143: Тарас Романюк | D143: 0 | E143: 0 | F143: 0 | G143: 656 | H143: 0 / 306 | I143: 0 | J143: 0 | K143: 0 | L143: 0 | M143: 0 | N143: 0 | O143: 0 | P143: 0.00 | Q143: Германия | R143: 0
A144: 141 | B144: 141 | C144: Burtaze | D144: 0 | E144: 0 | F144: 0 | G144: 656 | H144: 0 / 306 | I144: 0 | J144: 0 | K144: 0 | L144: 0 | M144: 0 | N144: 0 | O144: 0 | P144: 0.00 | Q144: Германия | R144: 0
A145: 142 | B145: 142 | C145: Damilola Opeyemi | D145: 0 | E145: 0 | F145: 0 | G145: 656 | H145: 0 / 306 | I145: 0 | J145: 0 | K145: 0 | L145: 0 | M145: 0 | N145: 0 | O145: 0 | P145: 0.00 | Q145: Германия | R145: 0
A146: 143 | B146: 143 | C146: Olayinka90 | D146: 0 | E146: 0 | F146: 0 | G146: 656 | H146: 0 / 306 | I146: 0 | J146: 0 | K146: 0 | L146: 0 | M146: 0 | N146: 0 | O146: 0 | P146: 0.00 | Q146: Германия | R146: 0
A147: 144 | B147: 144 | C147: ChR Zoom | D147: 0 | E147: 0 | F147: 0 | G147: 656 | H147: 0 / 306 | I147: 0 | J147: 0 | K147: 0 | L147: 0 | M147: 0 | N147: 0 | O147: 0 | P147: 0.00 | Q147: Германия | R147: 0
A148: 145 | B148: 145 | C148: Imel69 | D148: 0 | E148: 0 | F148: 0 | G148: 656 | H148: 0 / 306 | I148: 0 | J148: 0 | K148: 0 | L148: 0 | M148: 0 | N148: 0 | O148: 0 | P148: 0.00 | Q148: Германия | R148: 0
A149: 146 | B149: 146 | C149: kolay965 | D149: 0 | E149: 0 | F149: 0 | G149: 656 | H149: 0 / 306 | I149: 0 | J149: 0 | K149: 0 | L149: 0 | M149: 0 | N149: 0 | O149: 0 | P149: 0.00 | Q149: Германия | R149: 0
A150: 147 | B150: 147 | C150: Евгений Пономарев | D150: 0 | E150: 0 | F150: 0 | G150: 656 | H150: 0 / 306 | I150: 0 | J150: 0 | K150: 0 | L150: 0 | M150: 0 | N150: 0 | O150: 0 | P150: 0.00 | Q150: Германия | R150: 0
A151: 148 | B151: 148 | C151: Мурат Балтаев | D151: 0 | E151: 0 | F151: 0 | G151: 656 | H151: 0 / 306 | I151: 0 | J151: 0 | K151: 0 | L151: 0 | M151: 0 | N151: 0 | O151: 0 | P151: 0.00 | Q151: Германия | R151: 0
A152: 149 | B152: 149 | C152: юра сафонов | D152: 0 | E152: 0 | F152: 0 | G152: 656 | H152: 0 / 306 | I152: 0 | J152: 0 | K152: 0 | L152: 0 | M152: 0 | N152: 0 | O152: 0 | P152: 0.00 | Q152: Германия | R152: 0
A153: 150 | B153: 150 | C153: deepraj07 | D153: 0 | E153: 0 | F153: 0 | G153: 656 | H153: 0 / 306 | I153: 0 | J153: 0 | K153: 0 | L153: 0 | M153: 0 | N153: 0 | O153: 0 | P153: 0.00 | Q153: Германия | R153: 0
A154: 151 | B154: 151 | C154: Unreal 17 | D154: 0 | E154: 0 | F154: 0 | G154: 656 | H154: 0 / 306 | I154: 0 | J154: 0 | K154: 0 | L154: 0 | M154: 0 | N154: 0 | O154: 0 | P154: 0.00 | Q154: Германия | R154: 0
A155: 152 | B155: 152 | C155: Zhenis | D155: 0 | E155: 0 | F155: 0 | G155: 656 | H155: 0 / 306 | I155: 0 | J155: 0 | K155: 0 | L155: 0 | M155: 0 | N155: 0 | O155: 0 | P155: 0.00 | Q155: Германия | R155: 0
A156: 153 | B156: 153 | C156: Karim Mairakzz | D156: 0 | E156: 0 | F156: 0 | G156: 656 | H156: 0 / 306 | I156: 0 | J156: 0 | K156: 0 | L156: 0 | M156: 0 | N156: 0 | O156: 0 | P156: 0.00 | Q156: Германия | R156: 0
A157: 154 | B157: 154 | C157: Татьяна Афанасьева | D157: 0 | E157: 0 | F157: 0 | G157: 656 | H157: 0 / 306 | I157: 0 | J157: 0 | K157: 0 | L157: 0 | M157: 0 | N157: 0 | O157: 0 | P157: 0.00 | Q157: Германия | R157: 0
A158: 155 | B158: 155 | C158: Ridik058 | D158: 0 | E158: 0 | F158: 0 | G158: 656 | H158: 0 / 306 | I158: 0 | J158: 0 | K158: 0 | L158: 0 | M158: 0 | N158: 0 | O158: 0 | P158: 0.00 | Q158: Германия | R158: 0
A159: 156 | B159: 156 | C159: Parker | D159: 0 | E159: 0 | F159: 0 | G159: 656 | H159: 0 / 306 | I159: 0 | J159: 0 | K159: 0 | L159: 0 | M159: 0 | N159: 0 | O159: 0 | P159: 0.00 | Q159: Германия | R159: 0
A160: 157 | B160: 157 | C160: Veanyk | D160: 0 | E160: 0 | F160: 0 | G160: 656 | H160: 0 / 306 | I160: 0 | J160: 0 | K160: 0 | L160: 0 | M160: 0 | N160: 0 | O160: 0 | P160: 0.00 | Q160: Германия | R160: 0
A161: 158 | B161: 158 | C161: Alegik_27 | D161: 0 | E161: 0 | F161: 0 | G161: 656 | H161: 0 / 306 | I161: 0 | J161: 0 | K161: 0 | L161: 0 | M161: 0 | N161: 0 | O161: 0 | P161: 0.00 | Q161: Германия | R161: 0
A162: 159 | B162: 159 | C162: Сергій Шевченко | D162: 0 | E162: 0 | F162: 0 | G162: 656 | H162: 0 / 306 | I162: 0 | J162: 0 | K162: 0 | L162: 0 | M162: 0 | N162: 0 | O162: 0 | P162: 0.00 | Q162: Германия | R162: 0
A163: 160 | B163: 160 | C163: igorko | D163: 0 | E163: 0 | F163: 0 | G163: 656 | H163: 0 / 306 | I163: 0 | J163: 0 | K163: 0 | L163: 0 | M163: 0 | N163: 0 | O163: 0 | P163: 0.00 | Q163: Германия | R163: 0
A164: 161 | B164: 161 | C164: Фаныч | D164: 0 | E164: 0 | F164: 0 | G164: 656 | H164: 0 / 306 | I164: 0 | J164: 0 | K164: 0 | L164: 0 | M164: 0 | N164: 0 | O164: 0 | P164: 0.00 | Q164: Германия | R164: 0
A165: 162 | B165: 162 | C165: Шахриер Негматов | D165: 0 | E165: 0 | F165: 0 | G165: 656 | H165: 0 / 306 | I165: 0 | J165: 0 | K165: 0 | L165: 0 | M165: 0 | N165: 0 | O165: 0 | P165: 0.00 | Q165: Германия | R165: 0
A166: 163 | B166: 163 | C166: Bizon | D166: 0 | E166: 0 | F166: 0 | G166: 656 | H166: 0 / 306 | I166: 0 | J166: 0 | K166: 0 | L166: 0 | M166: 0 | N166: 0 | O166: 0 | P166: 0.00 | Q166: Германия | R166: 0
A167: 164 | B167: 164 | C167: Elbek Yuldashev | D167: 0 | E167: 0 | F167: 0 | G167: 656 | H167: 0 / 306 | I167: 0 | J167: 0 | K167: 0 | L167: 0 | M167: 0 | N167: 0 | O167: 0 | P167: 0.00 | Q167: Германия | R167: 0
A168: 165 | B168: 165 | C168: AdLaBat | D168: 0 | E168: 0 | F168: 0 | G168: 656 | H168: 0 / 306 | I168: 0 | J168: 0 | K168: 0 | L168: 0 | M168: 0 | N168: 0 | O168: 0 | P168: 0.00 | Q168: Германия | R168: 0
A169: 166 | B169: 166 | C169: maradona86 | D169: 0 | E169: 0 | F169: 0 | G169: 656 | H169: 0 / 306 | I169: 0 | J169: 0 | K169: 0 | L169: 0 | M169: 0 | N169: 0 | O169: 0 | P169: 0.00 | Q169: Германия | R169: 0
A170: 167 | Q170: Германия | R170: 0
A171: 168 | Q171: Германия | R171: 0
A172: 169 | Q172: Германия | R172: 0
A173: 170 | Q173: Германия | R173: 0
A174: 171 | Q174: Германия | R174: 0
A175: 172 | Q175: Германия | R175: 0
A176: 173 | Q176: Германия | R176: 0
A177: 174 | Q177: Германия | R177: 0
A178: 175 | Q178: Германия | R178: 0
A179: 176 | Q179: Германия | R179: 0
A180: 177 | Q180: Германия | R180: 0
A181: 178 | Q181: Германия | R181: 0
A182: 179 | Q182: Германия | R182: 0
A183: 180 | Q183: Германия | R183: 0
A184: 181 | Q184: Германия | R184: 0
A185: 182 | Q185: Германия | R185: 0
A186: 183 | Q186: Германия | R186: 0
A187: 184 | Q187: Германия | R187: 0
A188: 185 | Q188: Германия | R188: 0
A189: 186 | Q189: Германия | R189: 0
A190: 187 | Q190: Германия | R190: 0
A191: 188 | Q191: Германия | R191: 0
A192: 189 | Q192: Германия | R192: 0
A193: 190 | Q193: Германия | R193: 0
A194: 191 | Q194: Германия | R194: 0
A195: 192 | Q195: Германия | R195: 0
A196: 193 | Q196: Германия | R196: =SUMIF(C:C,C196,D:D) -> 0
A197: 194 | Q197: Германия | R197: 0
A198: 195 | Q198: Германия | R198: 0
A199: 196 | Q199: Германия | R199: 0
A200: 197 | Q200: Германия | R200: 0
... 1990 more rows
